Workbook

Sheet Summary (2)
A1: Essay's Title | B1: Magazine | C1: Volume | D1: Year | E1: Pages | F1: Folder | G1: File Name | H1: Pauls Computer | I1: Sheet | J1: Excel File | K1: Citation | L1: Dating | N1: Minimum | O1: Maximum | P1: Difference | Q1: Age
L2: Method | M2: Citation | N2: Million Years | O2: Million Years | P2: Million Years | Q2: Ratio
A3: Ar-39/Ar-40 Dating of Mesosiderites | B3: Geochimica et Cosmochimica Acta | C3: 54 | D3: 1990 | E3: Pages 2549-2564 | F3: ="C:\Essays\Geo_Dating\Neller\" -> C:\Essays\Geo_Dating\Neller\ | G3: BOGARD_A | H3: ="C:\Essays\Geo_Dating\Neller\" & G3 & ".pdf" -> C:\Essays\Geo_Dating\Neller\BOGARD_A.pdf | I3: A1 | J3: AA_Index.xlsm | K3: =B3 & ", " & D3 & ", " & C3 & ", " & E3 -> Geochimica et Cosmochimica Acta, 1990, 54, Pages 2549-2564 | L3: Ar/Ar | M3: 1 | N3: 1770 | O3: 13960 | P3: =O3-N3 -> 12190 | Q3: =ABS(P3/N3) -> 6.88700565
A4: 39Ar-40Ar Ages of Eucrites | B4: Meteoritics And Planetary Science | C4: 38 | D4: 2003 | E4: Pages 669–710 | F4: C:\Essays\Geo_Dating\Neller\ | G4: BOGARD_E | H4: C:\Essays\Geo_Dating\Neller\BOGARD_E.pdf | I4: A2 | J4: AA_Index.xlsm | K4: =B4 & ", " & D4 & ", " & C4 & ", " & E4 -> Meteoritics And Planetary Science, 2003, 38, Pages 669–710 | L4: Ar/Ar | M4: 2 | N4: 162 | O4: 9669 | P4: 9507 | Q4: 58.68518519
A5: Ar diffusion properties, Meteorites | B5: Geochimica et Cosmochimica Acta | C5: 44 | D5: 1980 | E5: Pages 1667-1682 | F5: C:\Essays\Geo_Dating\Neller\ | G5: BOGARD_B | H5: C:\Essays\Geo_Dating\Neller\BOGARD_B.pdf | I5: A3 | J5: AA_Index.xlsm | K5: =B5 & ", " & D5 & ", " & C5 & ", " & E5 -> Geochimica et Cosmochimica Acta, 1980, 44, Pages 1667-1682 | L5: Ar/Ar | M5: 3 | N5: 120 | O5: 9710 | P5: 9590 | Q5: 79.91666667
A6: Argon-39/Argon-40 Ages | B6: Meteoritics And Planetary Science | C6: 36 | D6: 2001 | E6: Pages 107-122 | F6: C:\Essays\Geo_Dating\Neller\ | G6: BOGARD_F | H6: C:\Essays\Geo_Dating\Neller\BOGARD_F.pdf | I6: A4 | J6: AA_Index.xlsm | K6: =B6 & ", " & D6 & ", " & C6 & ", " & E6 -> Meteoritics And Planetary Science, 2001, 36, Pages 107-122 | L6: Ar/Ar | M6: 4 | N6: 1102 | O6: 8058 | P6: 6956 | Q6: 6.31215971
A7: U-Th-Pb dating of Abee E4 Meteorite | B7: Earth Planetary Science Letters | C7: 62 | D7: 1983 | E7: Pages 132-146 | F7: C:\Essays\Geo_Dating\Neller\ | G7: BOGARD_C | H7: C:\Essays\Geo_Dating\Neller\BOGARD_C.pdf | I7: A5 | J7: AA_Index.xlsm | K7: =B7 & ", " & D7 & ", " & C7 & ", " & E7 -> Earth Planetary Science Letters, 1983, 62, Pages 132-146 | L7: Ar/Ar | M7: 5 | N7: 3560 | O7: 8900 | P7: 5340 | Q7: 1.5
A8: 40Ar-39Ar Chronology | B8: Meteoritics And Planetary Science | C8: 44 | D8: 2009 | E8: Pages 293-321 | F8: C:\Essays\Geo_Dating\Neller\ | G8: Meteorite_Korochantseva | H8: C:\Essays\Geo_Dating\Neller\Meteorite_Korochantseva.pdf | I8: B0 | J8: AA_Index.xlsm | K8: =B8 & ", " & D8 & ", " & C8 & ", " & E8 -> Meteoritics And Planetary Science, 2009, 44, Pages 293-321 | L8: Ar/Ar | M8: 6 | N8: 94 | O8: 14917 | P8: 14823 | Q8: 157.6914894
A9: 40-Ar / 39-Ar Ages of Allende | B9: Icarus | C9: 42 | D9: 1980 | E9: Pages 380-405 | F9: C:\Essays\Geo_Dating\Neller\ | G9: Meteorite_Jessberger | H9: C:\Essays\Geo_Dating\Neller\Meteorite_Jessberger.pdf | I9: B1 | J9: AA_Index.xlsm | K9: =B9 & ", " & D9 & ", " & C9 & ", " & E9 -> Icarus, 1980, 42, Pages 380-405 | L9: Ar/Ar | M9: 7 | N9: 1871 | O9: 7460 | P9: 5589 | Q9: 2.987172635
A10: The Fossil LL6 Chondrite | B10: Geochimica et Cosmochimica Acta | C10: 74 | D10: 2010 | E10: Pages 1734-1747 | F10: C:\Essays\Geo_Dating\Neller\ | G10: Older_Than_Earth_3 | H10: C:\Essays\Geo_Dating\Neller\Older_Than_Earth_3.pdf | I10: B2 | J10: AA_Index.xlsm | K10: =B10 & ", " & D10 & ", " & C10 & ", " & E10 -> Geochimica et Cosmochimica Acta, 2010, 74, Pages 1734-1747 | L10: Ar/Ar | M10: 8 | N10: 164 | O10: 11250 | P10: 11086 | Q10: 67.59756098
A11: 40Ar-39Ar Dating of Pseudo Tachylytes | B11: Earth Planetary Science Letters | C11: 223 | D11: 2004 | E11: Pages 349-364 | F11: C:\Essays\Geo_Dating\Neller\ | G11: Older_Than_Earth_1 | H11: C:\Essays\Geo_Dating\Neller\Older_Than_Earth_1.pdf | I11: B6 | J11: AA_Index.xlsm | K11: =B11 & ", " & D11 & ", " & C11 & ", " & E11 -> Earth Planetary Science Letters, 2004, 223, Pages 349-364 | L11: Ar/Ar | M11: 9 | N11: 42 | O11: 7347 | P11: 7305 | Q11: 173.9285714
A12: Location of extraneous argon | B12: Chemical Geology | C12: 80 | D12: 1990 | E12: Pages 201-204 | F12: C:\Essays\Geo_Dating\Neller\ | G12: Maluski | H12: C:\Essays\Geo_Dating\Neller\Maluski.pdf | I12: B7 | J12: AA_Index.xlsm | K12: =B12 & ", " & D12 & ", " & C12 & ", " & E12 -> Chemical Geology, 1990, 80, Pages 201-204 | L12: Ar/Ar | M12: 10 | N12: 1700 | O12: 22090 | P12: 20390 | Q12: 11.99411765
A13: Excess Argon In Ultramafic Rocks | B13: Earth Planetary Science Letters | C13: 22 | D13: 1974 | E13: Pages 145-156 | F13: C:\Essays\Geo_Dating\Neller\ | G13: Ages_012 | H13: C:\Essays\Geo_Dating\Neller\Ages_012.pdf | I13: B8 | J13: AA_Index.xlsm | K13: =B13 & ", " & D13 & ", " & C13 & ", " & E13 -> Earth Planetary Science Letters, 1974, 22, Pages 145-156 | L13: Ar/Ar | M13: 11 | N13: 580 | O13: 9840 | P13: 9260 | Q13: 15.96551724
A14: Analyses of the chondritic meteorite Orvinio | B14: Meteoritics And Planetary Science | C14: 39 | D14: 2004 | E14: Pages 1475-1493 | F14: C:\Essays\Geo_Dating\Neller\ | G14: Meteorite_Grier | H14: C:\Essays\Geo_Dating\Neller\Meteorite_Grier.pdf | I14: C1 | J14: AA_Index.xlsm | K14: =B14 & ", " & D14 & ", " & C14 & ", " & E14 -> Meteoritics And Planetary Science, 2004, 39, Pages 1475-1493 | L14: Ar/Ar | M14: 12 | N14: 324 | O14: 17178 | P14: 16854 | Q14: 52.01851852
A15: Shocked meteorites: Argon-40-argon-39 | B15: Meteoritics And Planetary Science | C15: 32 | D15: 1997 | E15: Pages 647-670 | F15: C:\Essays\Geo_Dating\Neller\ | G15: Meteorite_Kunz | H15: C:\Essays\Geo_Dating\Neller\Meteorite_Kunz.pdf | I15: C2 | J15: AA_Index.xlsm | K15: =B15 & ", " & D15 & ", " & C15 & ", " & E15 -> Meteoritics And Planetary Science, 1997, 32, Pages 647-670 | L15: Ar/Ar | M15: 13 | N15: 506 | O15: 13348 | P15: 12842 | Q15: 25.37944664
A16: The Strangways impact structure | B16: Earth Planetary Science Letters | C16: 172 | D16: 1999 | E16: Pages 199–211 | F16: C:\Essays\Geo_Dating\Neller\ | G16: Older_Than_Earth_4 | H16: C:\Essays\Geo_Dating\Neller\Older_Than_Earth_4.pdf | I16: C3 | J16: AA_Index.xlsm | K16: =B16 & ", " & D16 & ", " & C16 & ", " & E16 -> Earth Planetary Science Letters, 1999, 172, Pages 199–211 | L16: Ar/Ar | M16: 14 | N16: 633 | O16: 8569 | P16: 7936 | Q16: 12.5371248
A17: 40Ar-39Ar Quartz Ages | B17: Geochimica et Cosmochimica Acta | C17: 70 | D17: 2006 | E17: Pages 2573-2575 | F17: C:\Essays\Geo_Dating\Neller\ | G17: Older_Than_Earth_9 | H17: C:\Essays\Geo_Dating\Neller\Older_Than_Earth_9.pdf | I17: C7 | J17: AA_Index.xlsm | K17: =B17 & ", " & D17 & ", " & C17 & ", " & E17 -> Geochimica et Cosmochimica Acta, 2006, 70, Pages 2573-2575 | L17: Ar/Ar | M17: 15 | N17: 1115 | O17: 9969 | P17: 8854 | Q17: 7.940807175
A18: The Peace River shocked M chondrite | B18: Geochimica et Cosmochimica Acta | C18: 52 | D18: 1988 | E18: Pages 2487-2499 | F18: C:\Essays\Geo_Dating\Neller\ | G18: Meteorite_MCCONVILL | H18: C:\Essays\Geo_Dating\Neller\Meteorite_MCCONVILL.pdf | I18: D0 | J18: AA_Index.xlsm | K18: =B18 & ", " & D18 & ", " & C18 & ", " & E18 -> Geochimica et Cosmochimica Acta, 1988, 52, Pages 2487-2499 | L18: Ar/Ar | M18: 16 | N18: 510 | O18: 7100 | P18: 6590 | Q18: 12.92156863
A19: History Of The Acapulco Meteorite | B19: Geochimica et Cosmochimica Acta | C19: 61 | D19: 1997 | E19: Pages 3477-3501 | F19: C:\Essays\Geo_Dating\Neller\ | G19: Meteorite_Pellas | H19: C:\Essays\Geo_Dating\Neller\Meteorite_Pellas.pdf | I19: D1 | J19: AA_Index.xlsm | K19: =B19 & ", " & D19 & ", " & C19 & ", " & E19 -> Geochimica et Cosmochimica Acta, 1997, 61, Pages 3477-3501 | L19: Ar/Ar | M19: 17 | N19: 3841 | O19: 11421 | P19: 7580 | Q19: 1.973444416
A20: Pressure Metamorphism in Northeast Japan | B20: Gondwana Research | C20: 8 | D20: 2005 | E20: Pages 617-621 | F20: C:\Essays\Geo_Dating\Neller\ | G20: Itaya | H20: C:\Essays\Geo_Dating\Neller\Itaya.pdf | I20: D7 | J20: AA_Index.xlsm | K20: =B20 & ", " & D20 & ", " & C20 & ", " & E20 -> Gondwana Research, 2005, 8, Pages 617-621 | L20: Ar/Ar | M20: 18 | N20: 7700 | O20: 16300 | P20: 8600 | Q20: 1.116883117
A21: 40 Ar/39ar Dating Of The Long Range Dikes | B21: Earth Planetary Science Letters | C21: 22 | D21: 1974 | E21: Pages 256-266 | F21: C:\Essays\Geo_Dating\Neller\ | G21: Ages_002 | H21: C:\Essays\Geo_Dating\Neller\Ages_002.pdf | I21: D8 | J21: AA_Index.xlsm | K21: =B21 & ", " & D21 & ", " & C21 & ", " & E21 -> Earth Planetary Science Letters, 1974, 22, Pages 256-266 | L21: Ar/Ar | M21: 19 | N21: 651 | O21: 18620 | P21: 17969 | Q21: 27.60215054
L22: Total | N22: =MIN(N3:N21) -> 42 | O22: =MAX(O3:O21) -> 22090 | P22: 22048 | Q22: 524.952381
L23: Method | M23: Citation | N23: Minimum | O23: Maximum | P23: Difference | Q23: Ratio
A24: Potassium: Argon Dating of Iron Meteorites | B24: Science | C24: 155 | D24: 1967 | E24: Pages 999-1000 | F24: C:\Essays\Geo_Dating\Neller\ | G24: Meteor_Rancitelli | H24: C:\Essays\Geo_Dating\Neller\Meteor_Rancitelli.pdf | I24: C6 | J24: AA_Index.xlsm | K24: =B24 & ", " & D24 & ", " & C24 & ", " & E24 -> Science, 1967, 155, Pages 999-1000 | L24: K/Ar | M24: 20 | N24: 4700 | O24: 10400 | P24: 5700 | Q24: 1.212765957
A25: Potassium-argon age of iron meteorites | B25: Geochimica et Cosmochimica Acta | C25: 15 | D25: 1958 | E25: Pages 40-50 | F25: C:\Essays\Geo_Dating\Neller\ | G25: Meteorite_Stoenner | H25: C:\Essays\Geo_Dating\Neller\Meteorite_Stoenner.pdf | I25: D4 | J25: AA_Index.xlsm | K25: =B25 & ", " & D25 & ", " & C25 & ", " & E25 -> Geochimica et Cosmochimica Acta, 1958, 15, Pages 40-50 | L25: K/Ar | M25: 21 | N25: 5300 | O25: 13000 | P25: 7700 | Q25: 1.452830189
A26: Ar/Ar dating of inclusions from IAB iron meteorites | B26: Geochimica et Cosmochimica Acta | C26: 43 | D26: 1979 | E26: Pages 1829-1840 | F26: C:\Essays\Geo_Dating\Neller\ | G26: Meteorite_NIEMEYER | H26: C:\Essays\Geo_Dating\Neller\Meteorite_NIEMEYER.pdf | I26: D6 | J26: AA_Index.xlsm | K26: =B26 & ", " & D26 & ", " & C26 & ", " & E26 -> Geochimica et Cosmochimica Acta, 1979, 43, Pages 1829-1840 | L26: K/Ar | M26: 22 | N26: 4460 | O26: 9500 | P26: 5040 | Q26: 1.130044843
A27: K/Ar Age Determinations of Iron Meteorites | B27: Earth Planetary Science Letters | C27: 4 | D27: 1968 | E27: Pages 84-88 | F27: C:\Essays\Geo_Dating\Neller\ | G27: Meteorite_Kaiser | H27: C:\Essays\Geo_Dating\Neller\Meteorite_Kaiser.pdf | I27: D9 | J27: AA_Index.xlsm | K27: =B27 & ", " & D27 & ", " & C27 & ", " & E27 -> Earth Planetary Science Letters, 1968, 4, Pages 84-88 | L27: K/Ar | M27: 23 | N27: 4200 | O27: 7400 | P27: 3200 | Q27: 0.7619047619
L28: Total | N28: =MIN(N24:N27) -> 4200 | O28: =MAX(O24:O27) -> 13000 | P28: 8800 | Q28: 2.095238095
L29: Method | M29: Citation | N29: Minimum | O29: Maximum | P29: Difference | Q29: Ratio
A30: Upper Crust in North-East Australia | B30: International Journal Earth Science | C30: 101 | D30: 2012 | E30: Pages 1091-1109 | F30: C:\Essays\Geo_Dating\Neller\ | G30: Older_Than_Earth_11 | H30: C:\Essays\Geo_Dating\Neller\Older_Than_Earth_11.pdf | I30: O_6 | J30: AB_Index.xlsm | K30: =B30 & ", " & D30 & ", " & C30 & ", " & E30 -> International Journal Earth Science, 2012, 101, Pages 1091-1109 | L30: Lu/Hf | M30: 27 | N30: -3220 | O30: 3870 | P30: 7090 | Q30: 2.201863354
A31: Barren Miocene granitoids | B31: Andean Geology | C31: 37 | D31: 2010 | E31: Pages 1-31 | F31: C:\Essays\Geo_Dating\Neller\ | G31: R1 | H31: C:\Essays\Geo_Dating\Neller\R1.pdf | I31: R1 | J31: AB_Index.xlsm | K31: =B31 & ", " & D31 & ", " & C31 & ", " & E31 -> Andean Geology, 2010, 37, Pages 1-31 | L31: Lu/Hf | M31: 68 | N31: -8800 | O31: -630 | P31: 8170 | Q31: 0.9284090909
A32: Mantle xenoliths from North Korea | B32: Geology | C32: 38 | D32: 2010 | E32: Pages 799-802 | F32: C:\Essays\Geo_Dating\Neller\ | G32: R4 | H32: C:\Essays\Geo_Dating\Neller\R4.pdf | I32: R4 | J32: AB_Index.xlsm | K32: =B32 & ", " & D32 & ", " & C32 & ", " & E32 -> Geology, 2010, 38, Pages 799-802 | L32: Lu/Hf | M32: 71 | N32: -1649 | O32: 8590 | P32: 10239 | Q32: 6.209217708
A33: The Kaapvaal Cratonic Lithospheric Mantle | B33: Journal Of Petrology | C33: 48 | D33: 2007 | E33: Pages 589-625 | F33: C:\Essays\Geo_Dating\Neller\ | G33: To_Old_01 | H33: C:\Essays\Geo_Dating\Neller\To_Old_01.pdf | I33: T_1 | J33: AB_Index.xlsm | K33: =B33 & ", " & D33 & ", " & C33 & ", " & E33 -> Journal Of Petrology, 2007, 48, Pages 589-625 | L33: Lu/Hf | M33: 86 | N33: -320 | O33: 1730 | P33: 2050 | Q33: 6.40625
A34: Multi-stage origin of Roberts Victor eclogites | B34: Lithos | C34: 142-143 | D34: 2012 | E34: Pages 161-181 | F34: C:\Essays\Geo_Dating\Neller\ | G34: Future_Ages_02 | H34: C:\Essays\Geo_Dating\Neller\Future_Ages_02.pdf | I34: F02 | J34: AC_Index.xlsm | K34: =B34 & ", " & D34 & ", " & C34 & ", " & E34 -> Lithos, 2012, 142-143, Pages 161-181 | L34: Lu/Hf | M34: 92 | N34: -12340 | O34: 19870 | P34: 32210 | Q34: 2.610210697
A35: Re–Os Evidence | B35: Chemical Geology | C35: 236 | D35: 2007 | E35: Pages 323-338 | F35: C:\Essays\Geo_Dating\Neller\ | G35: Future_Ages_12 | H35: C:\Essays\Geo_Dating\Neller\Future_Ages_12.pdf | I35: F12 | J35: AC_Index.xlsm | K35: =B35 & ", " & D35 & ", " & C35 & ", " & E35 -> Chemical Geology, 2007, 236, Pages 323-338 | L35: Lu/Hf | M35: 101 | N35: -30 | O35: 14650 | P35: 14680 | Q35: 489.3333333
A36: Central Asian Orogenic Belt | B36: Lithos | C36: 126 | D36: 2011 | E36: Pages 233-247 | F36: C:\Essays\Geo_Dating\Neller\ | G36: Future_Ages_13 | H36: C:\Essays\Geo_Dating\Neller\Future_Ages_13.pdf | I36: F13 | J36: AC_Index.xlsm | K36: =B36 & ", " & D36 & ", " & C36 & ", " & E36 -> Lithos, 2011, 126, Pages 233-247 | L36: Lu/Hf | M36: 104 | N36: -9270 | O36: 14650 | P36: 23920 | Q36: 2.580366775
L37: Total | N37: =MIN(N30:N36) -> -12340 | O37: =MAX(O30:O36) -> 19870 | P37: 32210 | Q37: 2.610210697
L38: Method | M38: Citation | N38: Minimum | O38: Maximum | P38: Difference | Q38: Ratio
A39: The Siberian Craton | B39: Geochimica et Cosmochimica Acta | C39: 59 | D39: 1995 | E39: Pages 959-977 | F39: C:\Essays\Geo_Dating\Neller\ | G39: Older_Than_Earth_6 | H39: C:\Essays\Geo_Dating\Neller\Older_Than_Earth_6.pdf | I39: A8 | J39: AA_Index.xlsm | K39: =B39 & ", " & D39 & ", " & C39 & ", " & E39 -> Geochimica et Cosmochimica Acta, 1995, 59, Pages 959-977 | L39: Nd/Sm | M39: 38 | N39: -1 | O39: 3200 | P39: 3201 | Q39: 3201
A40: African Peridotite Xenoliths | B40: Geochimica et Cosmochimica Acta | C40: 53 | D40: 1989 | E40: Pages 1583-1595 | F40: C:\Essays\Geo_Dating\Neller\ | G40: Older_Than_Earth_5 | H40: C:\Essays\Geo_Dating\Neller\Older_Than_Earth_5.pdf | I40: D2 | J40: AA_Index.xlsm | K40: =B40 & ", " & D40 & ", " & C40 & ", " & E40 -> Geochimica et Cosmochimica Acta, 1989, 53, Pages 1583-1595 | L40: Nd/Sm | M40: 26 | N40: 1070 | O40: 12600 | P40: 11530 | Q40: 10.77570093
A41: Upper Crust in North-East Australia | B41: International Journal Earth Science | C41: 101 | D41: 2012 | E41: Pages 1091-1109 | F41: C:\Essays\Geo_Dating\Neller\ | G41: Older_Than_Earth_11 | H41: C:\Essays\Geo_Dating\Neller\Older_Than_Earth_11.pdf | I41: O_6 | J41: AB_Index.xlsm | K41: =B41 & ", " & D41 & ", " & C41 & ", " & E41 -> International Journal Earth Science, 2012, 101, Pages 1091-1109 | L41: Nd/Sm | M41: 27 | N41: -800 | O41: 9730 | P41: 10530 | Q41: 13.1625
A42: The Kaapvaal Cratonic Lithospheric Mantle | B42: Journal Of Petrology | C42: 48 | D42: 2007 | E42: Pages 589-625 | F42: C:\Essays\Geo_Dating\Neller\ | G42: To_Old_01 | H42: C:\Essays\Geo_Dating\Neller\To_Old_01.pdf | I42: T_1 | J42: AB_Index.xlsm | K42: =B42 & ", " & D42 & ", " & C42 & ", " & E42 -> Journal Of Petrology, 2007, 48, Pages 589-625 | L42: Nd/Sm | M42: 86 | N42: -2247 | O42: 96661 | P42: 98908 | Q42: 44.01780151
A43: Multi-stage origin of Roberts Victor eclogites | B43: Lithos | C43: 142-143 | D43: 2012 | E43: Pages 161-181 | F43: C:\Essays\Geo_Dating\Neller\ | G43: Future_Ages_02 | H43: C:\Essays\Geo_Dating\Neller\Future_Ages_02.pdf | I43: F02 | J43: AC_Index.xlsm | K43: =B43 & ", " & D43 & ", " & C43 & ", " & E43 -> Lithos, 2012, 142-143, Pages 161-181 | L43: Nd/Sm | M43: 92 | N43: -22420 | O43: 8100 | P43: 30520 | Q43: 1.361284567
A44: Lu-Hf Geochronology | B44: Chemical Geology | C44: 142 | D44: 1997 | E44: Pages 63-78 | F44: C:\Essays\Geo_Dating\Neller\ | G44: Future_Ages_08 | H44: C:\Essays\Geo_Dating\Neller\Future_Ages_08.pdf | I44: F08 | J44: AC_Index.xlsm | K44: =B44 & ", " & D44 & ", " & C44 & ", " & E44 -> Chemical Geology, 1997, 142, Pages 63-78 | L44: Nd/Sm | M44: 96 | N44: -659 | O44: 1137 | P44: 1796 | Q44: 2.725341426
A45: Multiple Metasomatic Events | B45: Lithos | C45: 112-S | D45: 2009 | E45: Pages 896-912 | F45: C:\Essays\Geo_Dating\Neller\ | G45: Future_Ages_11 | H45: C:\Essays\Geo_Dating\Neller\Future_Ages_11.pdf | I45: F11 | J45: AC_Index.xlsm | K45: =B45 & ", " & D45 & ", " & C45 & ", " & E45 -> Lithos, 2009, 112-S, Pages 896-912 | L45: Nd/Sm | M45: 98 | N45: -2192 | O45: 2013 | P45: 4205 | Q45: 1.918339416
A46: Re–Os Evidence | B46: Chemical Geology | C46: 236 | D46: 2007 | E46: Pages 323-338 | F46: C:\Essays\Geo_Dating\Neller\ | G46: Future_Ages_12 | H46: C:\Essays\Geo_Dating\Neller\Future_Ages_12.pdf | I46: F12 | J46: AC_Index.xlsm | K46: =B46 & ", " & D46 & ", " & C46 & ", " & E46 -> Chemical Geology, 2007, 236, Pages 323-338 | L46: Nd/Sm | M46: 101 | N46: 820 | O46: 5910 | P46: 5090 | Q46: 6.207317073
A47: Central Asian Orogenic Belt | B47: Lithos | C47: 126 | D47: 2011 | E47: Pages 233-247 | F47: C:\Essays\Geo_Dating\Neller\ | G47: Future_Ages_13 | H47: C:\Essays\Geo_Dating\Neller\Future_Ages_13.pdf | I47: F13 | J47: AC_Index.xlsm | K47: =B47 & ", " & D47 & ", " & C47 & ", " & E47 -> Lithos, 2011, 126, Pages 233-247 | L47: Nd/Sm | M47: 104 | N47: 490 | O47: 5910 | P47: 5420 | Q47: 11.06122449
L48: Total | N48: =MIN(N39:N47) -> -22420 | O48: =MAX(O39:O47) -> 96661 | P48: 119081 | Q48: 5.311373773
L49: Method | M49: Citation | N49: Minimum | O49: Maximum | P49: Difference | Q49: Ratio
A50: The Allende and Orgueil Chondrites | B50: Geochimica et Cosmochimica Acta | C50: 40 | D50: 1976 | E50: Pages 617-634 | F50: C:\Essays\Geo_Dating\Neller\ | G50: Meteorite_Tatsumoto | H50: C:\Essays\Geo_Dating\Neller\Meteorite_Tatsumoto.pdf | I50: C8 | J50: AA_Index.xlsm | K50: =B50 & ", " & D50 & ", " & C50 & ", " & E50 -> Geochimica et Cosmochimica Acta, 1976, 40, Pages 617-634 | L50: Pb/Pb | M50: 62 | N50: 4467 | O50: 4569 | P50: 102 | Q50: 0.02283411686
A51: Silica Mineral Formation | B51: Geochimica et Cosmochimica Acta | C51: 67 | D51: 2003 | E51: Pages 1145-1176 | F51: C:\Essays\Geo_Dating\Neller\ | G51: Amelin_G | H51: C:\Essays\Geo_Dating\Neller\Amelin_G.pdf | I51: E5 | J51: AA_Index.xlsm | K51: =B51 & ", " & D51 & ", " & C51 & ", " & E51 -> Geochimica et Cosmochimica Acta, 2003, 67, Pages 1145-1176 | L51: Pb/Pb | M51: 29 | N51: -3879 | O51: 11 | P51: 3890 | Q51: 1.002835782
L52: Total | N52: =MIN(N50:N51) -> -3879 | O52: =MAX(O50:O51) -> 4569 | P52: 8448 | Q52: 2.177880897
L53: Method | M53: Citation | N53: Minimum | O53: Maximum | P53: Difference | Q53: Ratio
A54: The Siberian Craton | B54: Geochimica et Cosmochimica Acta | C54: 59 | D54: 1995 | E54: Pages 959-977 | F54: C:\Essays\Geo_Dating\Neller\ | G54: Older_Than_Earth_6 | H54: C:\Essays\Geo_Dating\Neller\Older_Than_Earth_6.pdf | I54: A8 | J54: AA_Index.xlsm | K54: =B54 & ", " & D54 & ", " & C54 & ", " & E54 -> Geochimica et Cosmochimica Acta, 1995, 59, Pages 959-977 | L54: Rb/Sr | M54: 38 | N54: 5445 | O54: 12716 | P54: 7271 | Q54: 1.335353535
A55: Rb-Sr Ages Of Iron Meteorites | B55: Earth Planetary Science Letters | C55: 2 | D55: 1967 | E55: Pages 397-408 | F55: C:\Essays\Geo_Dating\Neller\ | G55: Meteorite_Burnett | H55: C:\Essays\Geo_Dating\Neller\Meteorite_Burnett.pdf | I55: A9 | J55: AA_Index.xlsm | K55: =B55 & ", " & D55 & ", " & C55 & ", " & E55 -> Earth Planetary Science Letters, 1967, 2, Pages 397-408 | L55: Rb/Sr | M55: 31 | N55: 3700 | O55: 9300 | P55: 5600 | Q55: 1.513513514
A56: Isotopic discrepancies in Black Hills, South Dakota | B56: Geochimica et Cosmochimica Acta | C56: 34 | D56: 1970 | E56: Pages 713-725 | F56: C:\Essays\Geo_Dating\Neller\ | G56: Riley | H56: C:\Essays\Geo_Dating\Neller\Riley.pdf | I56: B3 | J56: AA_Index.xlsm | K56: =B56 & ", " & D56 & ", " & C56 & ", " & E56 -> Geochimica et Cosmochimica Acta, 1970, 34, Pages 713-725 | L56: Rb/Sr | M56: 32 | N56: 1400 | O56: 900000 | P56: 898600 | Q56: 641.8571429
A57: Rhenium-187-Osmium-187 in iron meteorites | B57: Meteoritics And Planetary Science | C57: 33 | D57: 1998 | E57: Pages 647-653 | F57: C:\Essays\Geo_Dating\Neller\ | G57: Meteorite_Birck | H57: C:\Essays\Geo_Dating\Neller\Meteorite_Birck.pdf | I57: B9 | J57: AA_Index.xlsm | K57: =B57 & ", " & D57 & ", " & C57 & ", " & E57 -> Meteoritics And Planetary Science, 1998, 33, Pages 647-653 | L57: Rb/Sr | M57: 33 | N57: 1180 | O57: 13700 | P57: 12520 | Q57: 10.61016949
A58: Antarctic LL-chondrites | B58: Geochimica et Cosmochimica Acta | C58: 54 | D58: 1990 | E58: Pages 3509-3523 | F58: C:\Essays\Geo_Dating\Neller\ | G58: Meteorite_Okano | H58: C:\Essays\Geo_Dating\Neller\Meteorite_Okano.pdf | I58: C9 | J58: AA_Index.xlsm | K58: =B58 & ", " & D58 & ", " & C58 & ", " & E58 -> Geochimica et Cosmochimica Acta, 1990, 54, Pages 3509-3523 | L58: Rb/Sr | M58: 34 | N58: 3110 | O58: 7330 | P58: 4220 | Q58: 1.356913183
A59: North Western Wyoming Craton | B59: Earth Planetary Science Letters | C59: 126 | D59: 1994 | E59: Pages 457-472 | F59: C:\Essays\Geo_Dating\Neller\ | G59: Older_Than_Earth_2 | H59: C:\Essays\Geo_Dating\Neller\Older_Than_Earth_2.pdf | I59: D3 | J59: AA_Index.xlsm | K59: =B59 & ", " & D59 & ", " & C59 & ", " & E59 -> Earth Planetary Science Letters, 1994, 126, Pages 457-472 | L59: Rb/Sr | M59: 35 | N59: -3440 | O59: 15500 | P59: 18940 | Q59: 5.505813953
A60: Age and Origin of Base and Precious Metal | B60: Economic Geology | C60: 97 | D60: 2002 | E60: Pages 35-37 | F60: C:\Essays\Geo_Dating\Neller\ | G60: Ages_001 | H60: C:\Essays\Geo_Dating\Neller\Ages_001.pdf | I60: D5 | J60: AA_Index.xlsm | K60: =B60 & ", " & D60 & ", " & C60 & ", " & E60 -> Economic Geology, 2002, 97, Pages 35-37 | L60: Rb/Sr | M60: 36 | N60: 79 | O60: 23312 | P60: 23233 | Q60: 294.0886076
A61: Rb-Sr And Sm-Nd Studies | B61: Chemical Geology | C61: 52 | D61: 1985 | E61: Pages 249-271 | F61: C:\Essays\Geo_Dating\Neller\ | G61: To_Old_06 | H61: C:\Essays\Geo_Dating\Neller\To_Old_06.pdf | I61: T_3 | J61: AB_Index.xlsm | K61: =B61 & ", " & D61 & ", " & C61 & ", " & E61 -> Chemical Geology, 1985, 52, Pages 249-271 | L61: Rb/Sr | M61: 88 | N61: 267 | O61: 20000 | P61: 19733 | Q61: 73.90636704
A62: Norwegian Caledonides: An isotopic investigation | B62: Lithos | C62: 117 | D62: 2010 | E62: Pages 1-19 | F62: C:\Essays\Geo_Dating\Neller\ | G62: Future_Ages_01 | H62: C:\Essays\Geo_Dating\Neller\Future_Ages_01.pdf | I62: F01 | J62: AC_Index.xlsm | K62: =B62 & ", " & D62 & ", " & C62 & ", " & E62 -> Lithos, 2010, 117, Pages 1-19 | L62: Rb/Sr | M62: 89 | N62: -31071 | O62: 76523 | P62: 107594 | Q62: 3.462843166
A63: Multi-stage origin of Roberts Victor eclogites | B63: Lithos | C63: 142-143 | D63: 2012 | E63: Pages 161-181 | F63: C:\Essays\Geo_Dating\Neller\ | G63: Future_Ages_02 | H63: C:\Essays\Geo_Dating\Neller\Future_Ages_02.pdf | I63: F02 | J63: AC_Index.xlsm | K63: =B63 & ", " & D63 & ", " & C63 & ", " & E63 -> Lithos, 2012, 142-143, Pages 161-181 | L63: Rb/Sr | M63: 92 | N63: 32 | O63: 6874 | P63: 6842 | Q63: 213.8125
A64: Isotopic Disequilibrium | B64: Chemical Geology | C64: 162 | D64: 2000 | E64: Pages 169-191 | F64: C:\Essays\Geo_Dating\Neller\ | G64: Future_Ages_09 | H64: C:\Essays\Geo_Dating\Neller\Future_Ages_09.pdf | I64: F09 | J64: AC_Index.xlsm | K64: =B64 & ", " & D64 & ", " & C64 & ", " & E64 -> Chemical Geology, 2000, 162, Pages 169-191 | L64: Rb/Sr | M64: 97 | N64: -15 | O64: 201 | P64: 216 | Q64: 14.4
L65: Total | N65: =MIN(N54:N64) -> -31071 | O65: =MAX(O54:O64) -> 900000 | P65: 931071 | Q65: 29.96591677
L66: Method | N66: Minimum | O66: Maximum | P66: Difference | Q66: Ratio
A67: Canadian Cordillera lithosphere | B67: Chemical Geology | C67: 166 | D67: 2000 | E67: Pages 85-101 | F67: ="C:\Essays\Geo_Dating\Neller\" -> C:\Essays\Geo_Dating\Neller\ | G67: Older_Than_Earth_09 | H67: ="C:\Essays\Geo_Dating\Neller\" & G67 & ".pdf" -> C:\Essays\Geo_Dating\Neller\Older_Than_Earth_09.pdf | I67: O_5 | J67: AB_Index.xlsm | K67: =B67 & ", " & D67 & ", " & C67 & ", " & E67 -> Chemical Geology, 2000, 166, Pages 85-101 | L67: Re/Os | M67: 55 | N67: -1 | O67: 748 | P67: =O67-N67 -> 749 | Q67: =ABS(P67/N67) -> 749
A68: The Mamonia complex, Cyprus | B68: Chemical Geology | C68: 248 | D68: 2008 | E68: Pages 195-212 | F68: C:\Essays\Geo_Dating\Neller\ | G68: Future_Ages_14 | H68: C:\Essays\Geo_Dating\Neller\Future_Ages_14.pdf | I68: F14 | J68: AC_Index.xlsm | K68: =B68 & ", " & D68 & ", " & C68 & ", " & E68 -> Chemical Geology, 2008, 248, Pages 195-212 | L68: Re/Os | M68: 105 | N68: -1 | O68: 1550 | P68: 1551 | Q68: 1551
A69: The western North China Craton | B69: Lithos | C69: 149 | D69: 2012 | E69: Pages 100-114 | F69: C:\Essays\Geo_Dating\Neller\ | G69: RF | H69: C:\Essays\Geo_Dating\Neller\RF.pdf | I69: RF | J69: AB_Index.xlsm | K69: =B69 & ", " & D69 & ", " & C69 & ", " & E69 -> Lithos, 2012, 149, Pages 100-114 | L69: Re/Os | M69: 82 | N69: -1 | O69: 2240 | P69: 2241 | Q69: 2241
A70: The Study of Molybdenites | B70: Earth Planetary Science Letters | C70: 61 | D70: 1982 | E70: Pages 291-296 | F70: C:\Essays\Geo_Dating\Neller\ | G70: Older_Than_Earth_7 | H70: C:\Essays\Geo_Dating\Neller\Older_Than_Earth_7.pdf | I70: C0 | J70: AA_Index.xlsm | K70: =B70 & ", " & D70 & ", " & C70 & ", " & E70 -> Earth Planetary Science Letters, 1982, 61, Pages 291-296 | L70: Re/Os | M70: 39 | N70: 2700 | O70: 5800 | P70: 3100 | Q70: 1.148148148
A71: Reliable Re-Os Ages | B71: Geochimica et Cosmochimica Acta | C71: 57 | D71: 1993 | E71: Pages 1625-1628 | F71: C:\Essays\Geo_Dating\Neller\ | G71: Older_Than_Earth_8 | H71: C:\Essays\Geo_Dating\Neller\Older_Than_Earth_8.pdf | I71: C4 | J71: AA_Index.xlsm | K71: =B71 & ", " & D71 & ", " & C71 & ", " & E71 -> Geochimica et Cosmochimica Acta, 1993, 57, Pages 1625-1628 | L71: Re/Os | M71: 40 | N71: 2655 | O71: 6300 | P71: 3645 | Q71: 1.372881356
A72: Re-Os systematics of mantle xenoliths | B72: Geochimica et Cosmochimica Acta | C72: 63 | D72: 1999 | E72: Pages 1203-1217 | F72: C:\Essays\Geo_Dating\Neller\ | G72: Future_Ages_03 | H72: C:\Essays\Geo_Dating\Neller\Future_Ages_03.pdf | I72: F03 | J72: AC_Index.xlsm | K72: =B72 & ", " & D72 & ", " & C72 & ", " & E72 -> Geochimica et Cosmochimica Acta, 1999, 63, Pages 1203-1217 | L72: Re/Os | M72: 93 | N72: -1 | O72: 4000 | P72: 4001 | Q72: 4001
A73: Northern Canadian Cordillera Xenoliths | B73: Geochimica et Cosmochimica Acta | C73: 64 | D73: 2000 | E73: Pages 3061-3071 | F73: C:\Essays\Geo_Dating\Neller\ | G73: Future_Ages_17 | H73: C:\Essays\Geo_Dating\Neller\Future_Ages_17.pdf | I73: F17 | J73: AC_Index.xlsm | K73: =B73 & ", " & D73 & ", " & C73 & ", " & E73 -> Geochimica et Cosmochimica Acta, 2000, 64, Pages 3061-3071 | L73: Re/Os | M73: 107 | N73: -1 | O73: 4500 | P73: 4501 | Q73: 4501
A74: Single abyssal peridotite sulfides | B74: Earth Planetary Science Letters | C74: 359 | D74: 2012 | E74: Pages 279-293 | F74: C:\Essays\Geo_Dating\Neller\ | G74: RG | H74: C:\Essays\Geo_Dating\Neller\RG.pdf | I74: RG | J74: AB_Index.xlsm | K74: =B74 & ", " & D74 & ", " & C74 & ", " & E74 -> Earth Planetary Science Letters, 2012, 359, Pages 279-293 | L74: Re/Os | M74: 83 | N74: -2500 | O74: 2800 | P74: 5300 | Q74: 2.12
A75: The Age of Continental Roots | B75: Lithos | C75: 48 | D75: 1999 | E75: Pages 171-194 | F75: C:\Essays\Geo_Dating\Neller\ | G75: Greater_Than_Earth_05 | H75: C:\Essays\Geo_Dating\Neller\Greater_Than_Earth_05.pdf | I75: G5 | J75: AB_Index.xlsm | K75: =B75 & ", " & D75 & ", " & C75 & ", " & E75 -> Lithos, 1999, 48, Pages 171-194 | L75: Re/Os | M75: 51 | N75: 2780 | O75: 8380 | P75: 5600 | Q75: 2.014388489
A76: Re-Os systematics of peridotites | B76: Journal of the Geological Society | C76: 168 | D76: 2011 | E76: Pages 1201-1214 | F76: C:\Essays\Geo_Dating\Neller\ | G76: RA | H76: C:\Essays\Geo_Dating\Neller\RA.pdf | I76: RA | J76: AB_Index.xlsm | K76: =B76 & ", " & D76 & ", " & C76 & ", " & E76 -> Journal of the Geological Society, 2011, 168, Pages 1201-1214 | L76: Re/Os | M76: 77 | N76: -2860 | O76: 2820 | P76: 5680 | Q76: 1.986013986
A77: Lithospheric Mantle and Diamonds | B77: Lithos | C77: 112-S | D77: 2009 | E77: Pages 1120-1132 | F77: C:\Essays\Geo_Dating\Neller\ | G77: Older_Than_Earth_12 | H77: C:\Essays\Geo_Dating\Neller\Older_Than_Earth_12.pdf | I77: O_7 | J77: AB_Index.xlsm | K77: =B77 & ", " & D77 & ", " & C77 & ", " & E77 -> Lithos, 2009, 112-S, Pages 1120-1132 | L77: Re/Os | M77: 56 | N77: 1980 | O77: 7850 | P77: 5870 | Q77: 2.964646465
A78: Osmium Isotopes | B78: Chemical Geology | C78: 130 | D78: 1996 | E78: Pages 55-64 | F78: C:\Essays\Geo_Dating\Neller\ | G78: Greater_Than_Earth_01 | H78: C:\Essays\Geo_Dating\Neller\Greater_Than_Earth_01.pdf | I78: G1 | J78: AB_Index.xlsm | K78: =B78 & ", " & D78 & ", " & C78 & ", " & E78 -> Chemical Geology, 1996, 130, Pages 55-64 | L78: Re/Os | M78: 49 | N78: 90 | O78: 6900 | P78: 6810 | Q78: 75.66666667
A79: Principles of Re-Os Isotopic System | B79: Journal Petrology Society Korea | C79: 15 | D79: 2006 | E79: Pages 106-117 | F79: C:\Essays\Geo_Dating\Neller\ | G79: RE | H79: C:\Essays\Geo_Dating\Neller\RE.pdf | I79: RE | J79: AB_Index.xlsm | K79: =B79 & ", " & D79 & ", " & C79 & ", " & E79 -> Journal Petrology Society Korea, 2006, 15, Pages 106-117 | L79: Re/Os | M79: 81 | N79: -770 | O79: 6790 | P79: 7560 | Q79: 9.818181818
A80: Isotopic signatures in Zealandia | B80: Geology | D80: 2012 | E80: Pages 1-19 | F80: C:\Essays\Geo_Dating\Neller\ | G80: R3 | H80: C:\Essays\Geo_Dating\Neller\R3.pdf | I80: R3 | J80: AB_Index.xlsm | K80: =B80 & ", " & D80 & ", " & C80 & ", " & E80 -> Geology, 2012, , Pages 1-19 | L80: Re/Os | M80: 70 | N80: -6240 | O80: 3510 | P80: 9750 | Q80: 1.5625
A81: The Scottish margin of the North Atlantic Craton | B81: Precambrian Research | C81: 250 | D81: 2014 | E81: Pages 97-126 | F81: C:\Essays\Geo_Dating\Neller\ | G81: R8 | H81: C:\Essays\Geo_Dating\Neller\R8.pdf | I81: R8 | J81: AB_Index.xlsm | K81: =B81 & ", " & D81 & ", " & C81 & ", " & E81 -> Precambrian Research, 2014, 250, Pages 97-126 | L81: Re/Os | M81: 75 | N81: -7307 | O81: 3505 | P81: 10812 | Q81: 1.479677022
A82: Constraints on mantle processes and late | B82: University Berlin, Thesis | D82: 2014 | E82: Pages 1-168 | F82: C:\Essays\Geo_Dating\Neller\ | G82: RB | H82: C:\Essays\Geo_Dating\Neller\RB.pdf | I82: RB | J82: AB_Index.xlsm | K82: =B82 & ", " & D82 & ", " & C82 & ", " & E82 -> University Berlin, Thesis, 2014, , Pages 1-168 | L82: Re/Os | M82: 78 | N82: -9260 | O82: 1620 | P82: 10880 | Q82: 1.174946004
A83: The Siberian Craton | B83: Geochimica et Cosmochimica Acta | C83: 59 | D83: 1995 | E83: Pages 959-977 | F83: C:\Essays\Geo_Dating\Neller\ | G83: Older_Than_Earth_6 | H83: C:\Essays\Geo_Dating\Neller\Older_Than_Earth_6.pdf | I83: A8 | J83: AA_Index.xlsm | K83: =B83 & ", " & D83 & ", " & C83 & ", " & E83 -> Geochimica et Cosmochimica Acta, 1995, 59, Pages 959-977 | L83: Re/Os | M83: 38 | N83: -1 | O83: 11000 | P83: 11001 | Q83: 11001
A84: Re–Os Isotopic Results | B84: Chemical Geology | C84: 291 | D84: 2012 | E84: Pages 186–198 | F84: C:\Essays\Geo_Dating\Neller\ | G84: Future_Ages_006 | H84: C:\Essays\Geo_Dating\Neller\Future_Ages_006.pdf | I84: F3 | J84: AA_Index.xlsm | K84: =B84 & ", " & D84 & ", " & C84 & ", " & E84 -> Chemical Geology, 2012, 291, Pages 186–198 | L84: Re/Os | M84: 46 | N84: -675 | O84: 10430 | P84: 11105 | Q84: 16.45185185
A85: Hebi, North China Craton | B85: Chemical Geology | C85: 328 | D85: 2012 | E85: Pages 123–136 | F85: C:\Essays\Geo_Dating\Neller\ | G85: Future_Ages_005 | H85: C:\Essays\Geo_Dating\Neller\Future_Ages_005.pdf | I85: F2 | J85: AA_Index.xlsm | K85: =B85 & ", " & D85 & ", " & C85 & ", " & E85 -> Chemical Geology, 2012, 328, Pages 123–136 | L85: Re/Os | M85: 45 | N85: -3100 | O85: 8400 | P85: 11500 | Q85: 3.709677419
A86: Early Archean partial melting events | B86: University Bonn, Thesis | D86: 2004 | E86: Pages 1-132 | F86: C:\Essays\Geo_Dating\Neller\ | G86: R2 | H86: C:\Essays\Geo_Dating\Neller\R2.pdf | I86: R2 | J86: AB_Index.xlsm | K86: =B86 & ", " & D86 & ", " & C86 & ", " & E86 -> University Bonn, Thesis, 2004, , Pages 1-132 | L86: Re/Os | M86: 69 | N86: -8620 | O86: 3220 | P86: 11840 | Q86: 1.373549884
A87: Rocks From the Earth’s Mantle | B87: University Berlin, Thesis | D87: 2013 | E87: Pages 1-186 | F87: C:\Essays\Geo_Dating\Neller\ | G87: TRD_06 | H87: C:\Essays\Geo_Dating\Neller\TRD_06.pdf | I87: E9 | J87: AA_Index.xlsm | K87: =B87 & ", " & D87 & ", " & C87 & ", " & E87 -> University Berlin, Thesis, 2013, , Pages 1-186 | L87: Re/Os | M87: 44 | N87: -9260 | O87: 3200 | P87: 12460 | Q87: 1.345572354
A88: North Patagonian Mantle Xenoliths | B88: Journal of Petrology | C88: 57 | D88: 2016 | E88: Pages 685-715 | F88: C:\Essays\Geo_Dating\Neller\ | G88: R6 | H88: C:\Essays\Geo_Dating\Neller\R6.pdf | I88: R6 | J88: AB_Index.xlsm | K88: =B88 & ", " & D88 & ", " & C88 & ", " & E88 -> Journal of Petrology, 2016, 57, Pages 685-715 | L88: Re/Os | M88: 73 | N88: -2400 | O88: 10700 | P88: 13100 | Q88: 5.458333333
A89: A Paleozoic Convergent Plate | B89: Chemical Geology | C89: 208 | D89: 2004 | E89: Pages 141-156 | F89: C:\Essays\Geo_Dating\Neller\ | G89: Future_Ages_16 | H89: C:\Essays\Geo_Dating\Neller\Future_Ages_16.pdf | I89: F16 | J89: AC_Index.xlsm | K89: =B89 & ", " & D89 & ", " & C89 & ", " & E89 -> Chemical Geology, 2004, 208, Pages 141-156 | L89: Re/Os | M89: 106 | N89: -4300 | O89: 9100 | P89: 13400 | Q89: 3.11627907
A90: Re–Os Evidence | B90: Chemical Geology | C90: 236 | D90: 2007 | E90: Pages 323-338 | F90: C:\Essays\Geo_Dating\Neller\ | G90: Future_Ages_12 | H90: C:\Essays\Geo_Dating\Neller\Future_Ages_12.pdf | I90: F12 | J90: AC_Index.xlsm | K90: =B90 & ", " & D90 & ", " & C90 & ", " & E90 -> Chemical Geology, 2007, 236, Pages 323-338 | L90: Re/Os | M90: 101 | N90: -3830 | O90: 10620 | P90: 14450 | Q90: 3.772845953
A91: Central Asian Orogenic Belt | B91: Lithos | C91: 126 | D91: 2011 | E91: Pages 233-247 | F91: C:\Essays\Geo_Dating\Neller\ | G91: Future_Ages_13 | H91: C:\Essays\Geo_Dating\Neller\Future_Ages_13.pdf | I91: F13 | J91: AC_Index.xlsm | K91: =B91 & ", " & D91 & ", " & C91 & ", " & E91 -> Lithos, 2011, 126, Pages 233-247 | L91: Re/Os | M91: 104 | N91: -3830 | O91: 10620 | P91: 14450 | Q91: 3.772845953
A92: In situ Measurement of Re-Os Isotopes | B92: Geochimica et Cosmochimica Acta | C92: 66 | D92: 2002 | E92: Pages 1037-1050 | F92: C:\Essays\Geo_Dating\Neller\ | G92: Future_Ages_26 | H92: C:\Essays\Geo_Dating\Neller\Future_Ages_26.pdf | I92: F26 | J92: AC_Index.xlsm | K92: =B92 & ", " & D92 & ", " & C92 & ", " & E92 -> Geochimica et Cosmochimica Acta, 2002, 66, Pages 1037-1050 | L92: Re/Os | M92: 110 | N92: -7120 | O92: 7690 | P92: 14810 | Q92: 2.08005618
A93: The age of Lithospheric Mantle | B93: Chemical Geology | C93: 196 | D93: 2003 | E93: Pages 107–129 | F93: C:\Essays\Geo_Dating\Neller\ | G93: Future_Ages_008 | H93: C:\Essays\Geo_Dating\Neller\Future_Ages_008.pdf | I93: F5 | J93: AA_Index.xlsm | K93: =B93 & ", " & D93 & ", " & C93 & ", " & E93 -> Chemical Geology, 2003, 196, Pages 107–129 | L93: Re/Os | M93: 48 | N93: 150 | O93: 15410 | P93: 15260 | Q93: 101.7333333
A94: Stabilisation of Archaean lithosphere | B94: Earth Planetary Science Letters | C94: 134 | D94: 1995 | E94: Pages 341-357 | F94: C:\Essays\Geo_Dating\Neller\ | G94: Pearson | H94: C:\Essays\Geo_Dating\Neller\Pearson.pdf | I94: A7 | J94: AA_Index.xlsm | K94: =B94 & ", " & D94 & ", " & C94 & ", " & E94 -> Earth Planetary Science Letters, 1995, 134, Pages 341-357 | L94: Re/Os | M94: 37 | N94: 100 | O94: 15600 | P94: 15500 | Q94: 155
A95: Xenoliths from Yangyuan and Fansi | B95: Lithos | C95: 102 | D95: 2008 | E95: Pages 25-42 | F95: C:\Essays\Geo_Dating\Neller\ | G95: Future_Ages_19 | H95: C:\Essays\Geo_Dating\Neller\Future_Ages_19.pdf | I95: F19 | J95: AC_Index.xlsm | K95: =B95 & ", " & D95 & ", " & C95 & ", " & E95 -> Lithos, 2008, 102, Pages 25-42 | L95: Re/Os | M95: 108 | N95: -10800 | O95: 9700 | P95: 20500 | Q95: 1.898148148
A96: Formation of the North Atlantic Craton | B96: Chemical Geology | C96: 276 | D96: 2010 | E96: Pages 166-187 | F96: C:\Essays\Geo_Dating\Neller\ | G96: Future_Ages_21 | H96: C:\Essays\Geo_Dating\Neller\Future_Ages_21.pdf | I96: F21 | J96: AC_Index.xlsm | K96: =B96 & ", " & D96 & ", " & C96 & ", " & E96 -> Chemical Geology, 2010, 276, Pages 166-187 | L96: Re/Os | M96: 109 | N96: -14258 | O96: 6994 | P96: 21252 | Q96: 1.490531631
A97: Age and geochemistry of lithospheric mantle | B97: University Maryland, Thesis | D97: 2015 | E97: Pages 1-17 | F97: C:\Essays\Geo_Dating\Neller\ | G97: R7 | H97: C:\Essays\Geo_Dating\Neller\R7.pdf | I97: R7 | J97: AB_Index.xlsm | K97: =B97 & ", " & D97 & ", " & C97 & ", " & E97 -> University Maryland, Thesis, 2015, , Pages 1-17 | L97: Re/Os | M97: 74 | N97: -2080 | O97: 21500 | P97: 23580 | Q97: 11.33653846
A98: The Raobazhai peridotite massifs | B98: Chemical Geology | C98: 268 | D98: 2009 | E98: Pages 1-14 | F98: C:\Essays\Geo_Dating\Neller\ | G98: Future_Ages_04 | H98: C:\Essays\Geo_Dating\Neller\Future_Ages_04.pdf | I98: F04 | J98: AC_Index.xlsm | K98: =B98 & ", " & D98 & ", " & C98 & ", " & E98 -> Chemical Geology, 2009, 268, Pages 1-14 | L98: Re/Os | M98: 94 | N98: -27744 | O98: 3094 | P98: 30838 | Q98: 1.111519608
A99: Lithospheric Mantle Evolution | B99: Lithos | C99: 125 | D99: 2011 | E99: Pages 405–422 | F99: ="C:\Essays\Geo_Dating\Neller\" -> C:\Essays\Geo_Dating\Neller\ | G99: Older_Than_Earth_07 | H99: C:\Essays\Geo_Dating\Neller\Older_Than_Earth_07.pdf | I99: F4 | J99: AA_Index.xlsm | K99: =B99 & ", " & D99 & ", " & C99 & ", " & E99 -> Lithos, 2011, 125, Pages 405–422 | L99: Re/Os | M99: 47 | N99: -24710 | O99: 8620 | P99: 33330 | Q99: 1.348846621
A100: The Kaapvaal Cratonic Lithospheric Mantle | B100: Journal Of Petrology | C100: 48 | D100: 2007 | E100: Pages 589-625 | F100: C:\Essays\Geo_Dating\Neller\ | G100: To_Old_01 | H100: C:\Essays\Geo_Dating\Neller\To_Old_01.pdf | I100: T_1 | J100: AB_Index.xlsm | K100: =B100 & ", " & D100 & ", " & C100 & ", " & E100 -> Journal Of Petrology, 2007, 48, Pages 589-625 | L100: Re/Os | M100: 86 | N100: 600 | O100: 34600 | P100: 34000 | Q100: 56.66666667
A101: Rhenium/Osmium Geochronology of Oxide Minerals | B101: University Alberta, Thesis | D101: 2010 | E101: Pages 1-152 | F101: C:\Essays\Geo_Dating\Neller\ | G101: TRD_05 | H101: C:\Essays\Geo_Dating\Neller\TRD_05.pdf | I101: E8 | J101: AA_Index.xlsm | K101: =B101 & ", " & D101 & ", " & C101 & ", " & E101 -> University Alberta, Thesis, 2010, , Pages 1-152 | L101: Re/Os | M101: 43 | N101: -3700 | O101: 38190 | P101: 41890 | Q101: 11.32162162
A102: Diamond Formation Episodes | B102: Contributions Mineral Petrology | C102: 157 | D102: 2009 | E102: Pages 525–540 | F102: C:\Essays\Geo_Dating\Neller\ | G102: Older_Than_Earth_03 | H102: C:\Essays\Geo_Dating\Neller\Older_Than_Earth_03.pdf | I102: O_3 | J102: AB_Index.xlsm | K102: =B102 & ", " & D102 & ", " & C102 & ", " & E102 -> Contributions Mineral Petrology, 2009, 157, Pages 525–540 | L102: Re/Os | M102: 53 | N102: -51000 | O102: 10300 | P102: 61300 | Q102: 1.201960784
A103: In Situ Analysis of Sulphides | B103: Earth Planetary Science Letters | C103: 203 | D103: 2002 | E103: Pages 651-663 | F103: C:\Essays\Geo_Dating\Neller\ | G103: To_Old_03 | H103: C:\Essays\Geo_Dating\Neller\To_Old_03.pdf | I103: T_2 | J103: AB_Index.xlsm | K103: =B103 & ", " & D103 & ", " & C103 & ", " & E103 -> Earth Planetary Science Letters, 2002, 203, Pages 651-663 | L103: Re/Os | M103: 87 | N103: -32000 | O103: 34000 | P103: 66000 | Q103: 2.0625
A104: Xenoliths from the Bohemian Massif | B104: Chemical Geology | C104: 430 | D104: 2016 | E104: Pages 90-107 | F104: C:\Essays\Geo_Dating\Neller\ | G104: R9 | H104: C:\Essays\Geo_Dating\Neller\R9.pdf | I104: R9 | J104: AB_Index.xlsm | K104: =B104 & ", " & D104 & ", " & C104 & ", " & E104 -> Chemical Geology, 2016, 430, Pages 90-107 | L104: Re/Os | M104: 76 | N104: -1 | O104: 68000 | P104: 68001 | Q104: 68001
A105: The North China Craton | B105: University Maryland, Thesis | D105: 2011 | E105: Pages 1-238 | F105: C:\Essays\Geo_Dating\Neller\ | G105: TRD_04 | H105: C:\Essays\Geo_Dating\Neller\TRD_04.pdf | I105: E7 | J105: AA_Index.xlsm | K105: =B105 & ", " & D105 & ", " & C105 & ", " & E105 -> University Maryland, Thesis, 2011, , Pages 1-238 | L105: Re/Os | M105: 42 | N105: -30000 | O105: 40000 | P105: 70000 | Q105: 2.333333333
A106: Archean Man Shield, West Africa | B106: Precambrian Research | C106: 118 | D106: 2002 | E106: Pages 267-283 | F106: C:\Essays\Geo_Dating\Neller\ | G106: Older_Than_Earth_05 | H106: C:\Essays\Geo_Dating\Neller\Older_Than_Earth_05.pdf | I106: O_2 | J106: AB_Index.xlsm | K106: =B106 & ", " & D106 & ", " & C106 & ", " & E106 -> Precambrian Research, 2002, 118, Pages 267-283 | L106: Re/Os | M106: 52 | N106: 1390 | O106: 77160 | P106: 75770 | Q106: 54.51079137
A107: Evolution of the South China Block | B107: Geochimica et Cosmochimica Acta | C107: 73 | D107: 2009 | E107: Pages 4531–4557 | F107: C:\Essays\Geo_Dating\Neller\ | G107: TRD_03 | H107: C:\Essays\Geo_Dating\Neller\TRD_03.pdf | I107: E6 | J107: AA_Index.xlsm | K107: =B107 & ", " & D107 & ", " & C107 & ", " & E107 -> Geochimica et Cosmochimica Acta, 2009, 73, Pages 4531–4557 | L107: Re/Os | M107: 41 | N107: -59500 | O107: 25900 | P107: 85400 | Q107: 1.435294118
A108: Re–Os isotope constraints | B108: Earth and Planetary Science Letters | C108: 268 | D108: 2008 | E108: Pages 89-101 | F108: C:\Essays\Geo_Dating\Neller\ | G108: EPSL_268.89 | H108: C:\Essays\Geo_Dating\Neller\EPSL_268.89.pdf | I108: F01 | J108: AD_Index.xlsm | K108: =B108 & ", " & D108 & ", " & C108 & ", " & E108 -> Earth and Planetary Science Letters, 2008, 268, Pages 89-101 | L108: Re/Os | M108: 111 | N108: 30 | O108: 52250 | P108: 52220 | Q108: 1740.666667
A109: Highly siderophile element fractionations | B109: Earth and Planetary Science Letters | C109: 297 | D109: 2010 | E109: Pages 287–297 | F109: C:\Essays\Geo_Dating\Neller\ | G109: EPSL_297.287 | H109: C:\Essays\Geo_Dating\Neller\EPSL_297.287.pdf | I109: F02 | J109: AD_Index.xlsm | K109: =B109 & ", " & D109 & ", " & C109 & ", " & E109 -> Earth and Planetary Science Letters, 2010, 297, Pages 287–297 | L109: Re/Os | M109: 112 | N109: -8600 | O109: 40000 | P109: 48600 | Q109: 5.651162791
A110: Archean mantle residues | B110: Earth and Planetary Science Letters | C110: 424 | D110: 2015 | E110: Pages 109-118 | F110: C:\Essays\Geo_Dating\Neller\ | G110: EPSL_424.109 | H110: C:\Essays\Geo_Dating\Neller\EPSL_424.109.pdf | I110: F03 | J110: AD_Index.xlsm | K110: =B110 & ", " & D110 & ", " & C110 & ", " & E110 -> Earth and Planetary Science Letters, 2015, 424, Pages 109-118 | L110: Re/Os | M110: 113 | N110: -11800 | O110: 27500 | P110: 39300 | Q110: 3.330508475
A111: Xenoliths from the Obnazhennaya kimberlite | B111: Earth and Planetary Science Letters | C111: 428 | D111: 2015 | E111: Pages 108-119 | F111: C:\Essays\Geo_Dating\Neller\ | G111: EPSL_428.108 | H111: C:\Essays\Geo_Dating\Neller\EPSL_428.108.pdf | I111: F04 | J111: AD_Index.xlsm | K111: =B111 & ", " & D111 & ", " & C111 & ", " & E111 -> Earth and Planetary Science Letters, 2015, 428, Pages 108-119 | L111: Re/Os | M111: 114 | N111: -4040 | O111: 8520 | P111: 12560 | Q111: 3.108910891
A112: Osmium mass balance in peridotite | B112: Geochimica et Cosmochimica Acta | C112: 75 | D112: 2011 | E112: Pages 5574-5596 | F112: C:\Essays\Geo_Dating\Neller\ | G112: GCA_075.5574 | H112: C:\Essays\Geo_Dating\Neller\GCA_075.5574.pdf | I112: F05 | J112: AD_Index.xlsm | K112: =B112 & ", " & D112 & ", " & C112 & ", " & E112 -> Geochimica et Cosmochimica Acta, 2011, 75, Pages 5574-5596 | L112: Re/Os | M112: 115 | N112: -1 | O112: 1640 | P112: 1641 | Q112: 1641
A113: Mantle keel beneath West Greenland | B113: Geochimica et Cosmochimica Acta | C113: 203 | D113: 2017 | E113: Pages 37-53 | F113: C:\Essays\Geo_Dating\Neller\ | G113: GCA_203.37 | H113: C:\Essays\Geo_Dating\Neller\GCA_203.37.pdf | I113: F06 | J113: AD_Index.xlsm | K113: =B113 & ", " & D113 & ", " & C113 & ", " & E113 -> Geochimica et Cosmochimica Acta, 2017, 203, Pages 37-53 | L113: Re/Os | M113: 116 | N113: -11275 | O113: 3426 | P113: 14701 | Q113: 1.303858093
A114: Re/Os Isotopes of Sulfides | B114: Lithos | C114: 102 | D114: 2008 | E114: Pages 43-64 | F114: C:\Essays\Geo_Dating\Neller\ | G114: Older_Than_Earth_04 | H114: C:\Essays\Geo_Dating\Neller\Older_Than_Earth_04.pdf | I114: O_4 | J114: AB_Index.xlsm | K114: =B114 & ", " & D114 & ", " & C114 & ", " & E114 -> Lithos, 2008, 102, Pages 43-64 | L114: Re/Os | M114: 54 | N114: -47693 | O114: 39229 | P114: 86922 | Q114: 1.822531608
A115: Re-Os Geochronology of Oxide Minerals | B115: University Alberta, Thesis | D115: 2010 | E115: Pages 1-153 | F115: C:\Essays\Geo_Dating\Neller\ | G115: R5 | H115: C:\Essays\Geo_Dating\Neller\R5.pdf | I115: R5 | J115: AB_Index.xlsm | K115: =B115 & ", " & D115 & ", " & C115 & ", " & E115 -> University Alberta, Thesis, 2010, , Pages 1-153 | L115: Re/Os | M115: 72 | N115: =MIN(N96:N114) -> -59500 | O115: 38190 | P115: 97690 | Q115: 1.641848739
A116: The Taitao Ophiolite, Southern Chile | B116: University Maryland, Thesis | D116: 2007 | E116: Pages 1-117 | F116: C:\Essays\Geo_Dating\Neller\ | G116: RC | H116: C:\Essays\Geo_Dating\Neller\RC.pdf | I116: RC | J116: AB_Index.xlsm | K116: =B116 & ", " & D116 & ", " & C116 & ", " & E116 -> University Maryland, Thesis, 2007, , Pages 1-117 | L116: Re/Os | M116: 79 | N116: -111000 | O116: 1500 | P116: 112500 | Q116: 1.013513514
A117: In situ Re–Os evidence | B117: Journal of Asian Earth Sciences | C117: 62 | D117: 2013 | E117: Pages 37-50 | F117: C:\Essays\Geo_Dating\Neller\ | G117: Future_Ages_07 | H117: C:\Essays\Geo_Dating\Neller\Future_Ages_07.pdf | I117: F07 | J117: AC_Index.xlsm | K117: =B117 & ", " & D117 & ", " & C117 & ", " & E117 -> Journal of Asian Earth Sciences, 2013, 62, Pages 37-50 | L117: Re/Os | M117: 95 | N117: -79140 | O117: 144550 | P117: 223690 | Q117: 2.826509982
A118: Evolution Beneath the Kaapvaal Craton | B118: Chemical Geology | C118: 208 | D118: 2004 | E118: Pages 89-118 | F118: ="C:\Essays\Geo_Dating\Neller\" -> C:\Essays\Geo_Dating\Neller\ | G118: Greater_Than_Earth_02 | H118: C:\Essays\Geo_Dating\Neller\Greater_Than_Earth_02.pdf | I118: G2 | J118: AB_Index.xlsm | K118: =B118 & ", " & D118 & ", " & C118 & ", " & E118 -> Chemical Geology, 2004, 208, Pages 89-118 | L118: Re/Os | M118: 50 | N118: -279000 | O118: 79000 | P118: 358000 | Q118: 1.283154122
A119: Samarium/Neodymium geochronology | B119: University Boston, Thesis | D119: 2014 | E119: Pages 1-207 | F119: ="C:\Essays\Geo_Dating\Neller\" -> C:\Essays\Geo_Dating\Neller\ | G119: RD | H119: C:\Essays\Geo_Dating\Neller\RD.pdf | I119: RD | J119: AB_Index.xlsm | K119: =B119 & ", " & D119 & ", " & C119 & ", " & E119 -> University Boston, Thesis, 2014, , Pages 1-207 | L119: Re/Os | M119: 80 | N119: -15000001 | O119: 14999999 | P119: 30000000 | Q119: 1.999999867
L120: Total | N120: =MIN(N67:N119) -> -15000001 | O120: =MAX(O67:O119) -> 14999999 | P120: 30000000 | Q120: 1.999999867
L121: Method | N121: Minimum | O121: Maximum | P121: Difference | Q121: Ratio
A122: Three Apollo 14 Basalts | B122: Earth Planetary Science Letters | C122: 14 | D122: 1972 | E122: Pages 281-304. | F122: ="C:\Essays\Geo_Dating\Neller\" -> C:\Essays\Geo_Dating\Neller\ | G122: Wasserburg | H122: ="C:\Essays\Geo_Dating\Neller\" & G122 & ".pdf" -> C:\Essays\Geo_Dating\Neller\Wasserburg.pdf | I122: B4 | J122: AA_Index.xlsm | K122: =B122 & ", " & D122 & ", " & C122 & ", " & E122 -> Earth Planetary Science Letters, 1972, 14, Pages 281-304. | L122: Th/Pb | M122: 57 | N122: 4010 | O122: 28140 | P122: =O122-N122 -> 24130 | Q122: =ABS(P122/N122) -> 6.017456359
A123: The Allende and Orgueil Chondrites | B123: Geochimica et Cosmochimica Acta | C123: 40 | D123: 1976 | E123: Pages 617-634 | F123: C:\Essays\Geo_Dating\Neller\ | G123: Meteorite_Tatsumoto | H123: C:\Essays\Geo_Dating\Neller\Meteorite_Tatsumoto.pdf | I123: C8 | J123: AA_Index.xlsm | K123: =B123 & ", " & D123 & ", " & C123 & ", " & E123 -> Geochimica et Cosmochimica Acta, 1976, 40, Pages 617-634 | L123: Th/Pb | M123: 62 | N123: 4810 | O123: 16490 | P123: 11680 | Q123: 2.428274428
A124: Natural Radionuclide Mobility | B124: Geochimica et Cosmochimica Acta | C124: 72 | D124: 2008 | E124: Pages 2067-2089 | F124: C:\Essays\Geo_Dating\Neller\ | G124: Amelin_F | H124: C:\Essays\Geo_Dating\Neller\Amelin_F.pdf | I124: E2 | J124: AA_Index.xlsm | K124: =B124 & ", " & D124 & ", " & C124 & ", " & E124 -> Geochimica et Cosmochimica Acta, 2008, 72, Pages 2067-2089 | L124: Th/Pb | M124: 59 | N124: 4 | O124: 82030 | P124: 82026 | Q124: 20506.5
A125: Natural Radionuclide Mobility | B125: Geochimica et Cosmochimica Acta | C125: 72 | D125: 2008 | E125: Pages 2067-2089 | F125: C:\Essays\Geo_Dating\Neller\ | G125: Amelin_F | H125: C:\Essays\Geo_Dating\Neller\Amelin_F.pdf | I125: E2 | J125: AA_Index.xlsm | K125: =B125 & ", " & D125 & ", " & C125 & ", " & E125 -> Geochimica et Cosmochimica Acta, 2008, 72, Pages 2067-2089 | L125: Th/Pb | M125: 59 | N125: -98470 | O125: 262350 | P125: 360820 | Q125: 3.664263227
L126: Total | N126: =MIN(N122:N125) -> -98470 | O126: =MAX(O122:O125) -> 262350 | P126: 360820 | Q126: 3.664263227
L127: Method | N127: Minimum | O127: Maximum | P127: Difference | Q127: Ratio
A128: Isotopic Lead Ages Of Meteorites | B128: Earth Planetary Science Letters | C128: 19 | D128: 1973 | E128: Pages 321-329 | F128: C:\Essays\Geo_Dating\Neller\ | G128: Pb-206_14 | H128: C:\Essays\Geo_Dating\Neller\Pb-206_14.pdf | I128: B5 | J128: AA_Index.xlsm | K128: =B128 & ", " & D128 & ", " & C128 & ", " & E128 -> Earth Planetary Science Letters, 1973, 19, Pages 321-329 | L128: U/Pb | M128: 60 | N128: 4126 | O128: 8615 | P128: 4489 | Q128: 1.087978672
A129: The Allende and Orgueil Chondrites | B129: Geochimica et Cosmochimica Acta | C129: 40 | D129: 1976 | E129: Pages 617-634 | F129: C:\Essays\Geo_Dating\Neller\ | G129: Meteorite_Tatsumoto | H129: C:\Essays\Geo_Dating\Neller\Meteorite_Tatsumoto.pdf | I129: C8 | J129: AA_Index.xlsm | K129: =B129 & ", " & D129 & ", " & C129 & ", " & E129 -> Geochimica et Cosmochimica Acta, 1976, 40, Pages 617-634 | L129: U/Pb | M129: 62 | N129: 4920 | O129: 9860 | P129: 4940 | Q129: 1.004065041
A130: The Allende and Orgueil Chondrites | B130: Geochimica et Cosmochimica Acta | C130: 40 | D130: 1976 | E130: Pages 617-634 | F130: C:\Essays\Geo_Dating\Neller\ | G130: Meteorite_Tatsumoto | H130: C:\Essays\Geo_Dating\Neller\Meteorite_Tatsumoto.pdf | I130: C8 | J130: AA_Index.xlsm | K130: =B130 & ", " & D130 & ", " & C130 & ", " & E130 -> Geochimica et Cosmochimica Acta, 1976, 40, Pages 617-634 | L130: U/Pb | M130: 62 | N130: 4700 | O130: 5780 | P130: 1080 | Q130: 0.229787234
A131: U-Pb ages of angrites | B131: Geochimica et Cosmochimica Acta | C131: 72 | D131: 2008 | E131: Pages 221-232 | F131: C:\Essays\Geo_Dating\Neller\ | G131: Amelin_D | H131: C:\Essays\Geo_Dating\Neller\Amelin_D.pdf | I131: E0 | J131: AA_Index.xlsm | K131: =B131 & ", " & D131 & ", " & C131 & ", " & E131 -> Geochimica et Cosmochimica Acta, 2008, 72, Pages 221-232 | L131: U/Pb | M131: 63 | N131: 3727.8 | O131: 6625 | P131: 2897.2 | Q131: 0.7771876174
A132: Pb isotopic age of the Allende chondrules | B132: Meteoritics And Planetary Science | C132: 42 | D132: 2007 | E132: Pages 1321-1335 | F132: C:\Essays\Geo_Dating\Neller\ | G132: Amelin_C | H132: C:\Essays\Geo_Dating\Neller\Amelin_C.pdf | I132: E3 | J132: AA_Index.xlsm | K132: =B132 & ", " & D132 & ", " & C132 & ", " & E132 -> Meteoritics And Planetary Science, 2007, 42, Pages 1321-1335 | L132: U/Pb | M132: 64 | N132: 1799 | O132: 10066 | P132: 8267 | Q132: 4.595330739
A133: Precise U-Pb dating | B133: Geochimica et Cosmochimica Acta | C133: 69 | D133: 2005 | E133: Pages 505-518 | F133: C:\Essays\Geo_Dating\Neller\ | G133: Amelin_A | H133: C:\Essays\Geo_Dating\Neller\Amelin_A.pdf | I133: E4 | J133: AA_Index.xlsm | K133: =B133 & ", " & D133 & ", " & C133 & ", " & E133 -> Geochimica et Cosmochimica Acta, 2005, 69, Pages 505-518 | L133: U/Pb | M133: 65 | N133: 4249 | O133: 6473 | P133: 2224 | Q133: 0.5234172747
L134: Total | N134: =MIN(N128:N133) -> 1799 | O134: =MAX(O128:O133) -> 10066 | P134: 8267 | Q134: 4.595330739
L135: Method | N135: Minimum | O135: Maximum | P135: Difference | Q135: Ratio
A136: Single grain (U-Th)/He ages, Acapulco meteorite | B136: Earth Planetary Science Letters | C136: 209 | D136: 2003 | E136: Pages 323-336 | F136: C:\Essays\Geo_Dating\Neller\ | G136: Meteorite_Kyoungwon | H136: C:\Essays\Geo_Dating\Neller\Meteorite_Kyoungwon.pdf | I136: C5 | J136: AA_Index.xlsm | K136: =B136 & ", " & D136 & ", " & C136 & ", " & E136 -> Earth Planetary Science Letters, 2003, 209, Pages 323-336 | L136: U/Th | M136: 66 | N136: 1452 | O136: 4909 | P136: 3457 | Q136: 2.380853994
A137: Totals | B137: Totals | F137: C:\Essays\Geo_Dating\Neller\ | G137: Origin | H137: C:\Essays\Geo_Dating\Neller\Origin.pdf
L138: Method | M138: Citation | N138: Minimum | O138: Maximum | P138: Difference | Q138: Ratio
L139: Pb/Pb | M139: 62 | N139: 4467 | O139: 4569 | P139: =O139-N139 -> 102 | Q139: =ABS(P139/N139) -> 0.02283411686
L140: Pb/Pb | M140: 29 | N140: -3879 | O140: 11 | P140: 3890 | Q140: 1.002835782

Sheet Samples
A1: Essay's Title | B1: Magazine | C1: Volume | D1: Year | E1: Pages | F1: Folder | G1: File Name | H1: Pauls Computer | I1: Sheet | J1: Excel File | K1: Citation | L1: Method | M1: Citation | N1: Minimum | O1: Maximum | P1: Difference | Q1: Ratio
A3: Upper Crust in North-East Australia | B3: International Journal Earth Science | C3: 101 | D3: 2012 | E3: Pages 1091-1109 | F3: ="C:\Essays\Geo_Dating\Neller\" -> C:\Essays\Geo_Dating\Neller\ | G3: Older_Than_Earth_11 | H3: ="C:\Essays\Geo_Dating\Neller\" & G3 & ".pdf" -> C:\Essays\Geo_Dating\Neller\Older_Than_Earth_11.pdf | I3: O_6 | J3: AB_Index.xlsm | K3: =B3 & ", " & D3 & ", " & C3 & ", " & E3 -> International Journal Earth Science, 2012, 101, Pages 1091-1109 | L3: Lu/Hf | M3: 27 | N3: -3220 | O3: 3870 | P3: =O3-N3 -> 7090 | Q3: =ABS(P3/N3) -> 2.201863354
A4: Upper Crust in North-East Australia | B4: International Journal Earth Science | C4: 101 | D4: 2012 | E4: Pages 1091-1109 | F4: C:\Essays\Geo_Dating\Neller\ | G4: Older_Than_Earth_11 | H4: C:\Essays\Geo_Dating\Neller\Older_Than_Earth_11.pdf | I4: O_6 | J4: AB_Index.xlsm | K4: International Journal Earth Science, 2012, 101, Pages 1091-1109 | L4: Nd/Sm | M4: 27 | N4: -800 | O4: 9730 | P4: 10530 | Q4: 13.1625
A5: The Siberian Craton | B5: Geochimica et Cosmochimica Acta | C5: 59 | D5: 1995 | E5: Pages 959-977 | F5: C:\Essays\Geo_Dating\Neller\ | G5: Older_Than_Earth_6 | H5: C:\Essays\Geo_Dating\Neller\Older_Than_Earth_6.pdf | I5: A8 | J5: AA_Index.xlsm | K5: Geochimica et Cosmochimica Acta, 1995, 59, Pages 959-977 | L5: Nd/Sm | M5: 38 | N5: -1 | O5: 3200 | P5: 3201 | Q5: 3201
A6: The Siberian Craton | B6: Geochimica et Cosmochimica Acta | C6: 59 | D6: 1995 | E6: Pages 959-977 | F6: C:\Essays\Geo_Dating\Neller\ | G6: Older_Than_Earth_6 | H6: C:\Essays\Geo_Dating\Neller\Older_Than_Earth_6.pdf | I6: A8 | J6: AA_Index.xlsm | K6: Geochimica et Cosmochimica Acta, 1995, 59, Pages 959-977 | L6: Rb/Sr | M6: 38 | N6: 5445 | O6: 12716 | P6: 7271 | Q6: 1.335353535
A7: The Siberian Craton | B7: Geochimica et Cosmochimica Acta | C7: 59 | D7: 1995 | E7: Pages 959-977 | F7: C:\Essays\Geo_Dating\Neller\ | G7: Older_Than_Earth_6 | H7: C:\Essays\Geo_Dating\Neller\Older_Than_Earth_6.pdf | I7: A8 | J7: AA_Index.xlsm | K7: Geochimica et Cosmochimica Acta, 1995, 59, Pages 959-977 | L7: Re/Os | M7: 38 | N7: -1 | O7: 11000 | P7: 11001 | Q7: 11001
A8: The Allende and Orgueil Chondrites | B8: Geochimica et Cosmochimica Acta | C8: 40 | D8: 1976 | E8: Pages 617-634 | F8: C:\Essays\Geo_Dating\Neller\ | G8: Meteorite_Tatsumoto | H8: C:\Essays\Geo_Dating\Neller\Meteorite_Tatsumoto.pdf | I8: C8 | J8: AA_Index.xlsm | K8: Geochimica et Cosmochimica Acta, 1976, 40, Pages 617-634 | L8: Pb/Pb | M8: 62 | N8: 4467 | O8: 4569 | P8: 102 | Q8: 0.02283411686
A9: The Allende and Orgueil Chondrites | B9: Geochimica et Cosmochimica Acta | C9: 40 | D9: 1976 | E9: Pages 617-634 | F9: C:\Essays\Geo_Dating\Neller\ | G9: Meteorite_Tatsumoto | H9: C:\Essays\Geo_Dating\Neller\Meteorite_Tatsumoto.pdf | I9: C8 | J9: AA_Index.xlsm | K9: Geochimica et Cosmochimica Acta, 1976, 40, Pages 617-634 | L9: Th/Pb | M9: 62 | N9: 4810 | O9: 16490 | P9: 11680 | Q9: 2.428274428
A10: The Allende and Orgueil Chondrites | B10: Geochimica et Cosmochimica Acta | C10: 40 | D10: 1976 | E10: Pages 617-634 | F10: C:\Essays\Geo_Dating\Neller\ | G10: Meteorite_Tatsumoto | H10: C:\Essays\Geo_Dating\Neller\Meteorite_Tatsumoto.pdf | I10: C8 | J10: AA_Index.xlsm | K10: Geochimica et Cosmochimica Acta, 1976, 40, Pages 617-634 | L10: U/Pb | M10: 62 | N10: 4920 | O10: 9860 | P10: 4940 | Q10: 1.004065041
A11: The Allende and Orgueil Chondrites | B11: Geochimica et Cosmochimica Acta | C11: 40 | D11: 1976 | E11: Pages 617-634 | F11: C:\Essays\Geo_Dating\Neller\ | G11: Meteorite_Tatsumoto | H11: C:\Essays\Geo_Dating\Neller\Meteorite_Tatsumoto.pdf | I11: C8 | J11: AA_Index.xlsm | K11: Geochimica et Cosmochimica Acta, 1976, 40, Pages 617-634 | L11: U/Pb | M11: 62 | N11: 4700 | O11: 5780 | P11: 1080 | Q11: 0.229787234
A12: The Kaapvaal Cratonic Lithospheric Mantle | B12: Journal Of Petrology | C12: 48 | D12: 2007 | E12: Pages 589-625 | F12: C:\Essays\Geo_Dating\Neller\ | G12: To_Old_01 | H12: C:\Essays\Geo_Dating\Neller\To_Old_01.pdf | I12: T_1 | J12: AB_Index.xlsm | K12: Journal Of Petrology, 2007, 48, Pages 589-625 | L12: Lu/Hf | M12: 86 | N12: -320 | O12: 1730 | P12: 2050 | Q12: 6.40625
A13: The Kaapvaal Cratonic Lithospheric Mantle | B13: Journal Of Petrology | C13: 48 | D13: 2007 | E13: Pages 589-625 | F13: C:\Essays\Geo_Dating\Neller\ | G13: To_Old_01 | H13: C:\Essays\Geo_Dating\Neller\To_Old_01.pdf | I13: T_1 | J13: AB_Index.xlsm | K13: Journal Of Petrology, 2007, 48, Pages 589-625 | L13: Nd/Sm | M13: 86 | N13: -2247 | O13: 96661 | P13: 98908 | Q13: 44.01780151
A14: The Kaapvaal Cratonic Lithospheric Mantle | B14: Journal Of Petrology | C14: 48 | D14: 2007 | E14: Pages 589-625 | F14: C:\Essays\Geo_Dating\Neller\ | G14: To_Old_01 | H14: C:\Essays\Geo_Dating\Neller\To_Old_01.pdf | I14: T_1 | J14: AB_Index.xlsm | K14: Journal Of Petrology, 2007, 48, Pages 589-625 | L14: Re/Os | M14: 86 | N14: 600 | O14: 34600 | P14: 34000 | Q14: 56.66666667
A15: Multi-stage origin of Roberts Victor eclogites | B15: Lithos | C15: 142-143 | D15: 2012 | E15: Pages 161-181 | F15: C:\Essays\Geo_Dating\Neller\ | G15: Future_Ages_02 | H15: C:\Essays\Geo_Dating\Neller\Future_Ages_02.pdf | I15: F02 | J15: AC_Index.xlsm | K15: Lithos, 2012, 142-143, Pages 161-181 | L15: Lu/Hf | M15: 92 | N15: -12340 | O15: 19870 | P15: 32210 | Q15: 2.610210697
A16: Multi-stage origin of Roberts Victor eclogites | B16: Lithos | C16: 142-143 | D16: 2012 | E16: Pages 161-181 | F16: C:\Essays\Geo_Dating\Neller\ | G16: Future_Ages_02 | H16: C:\Essays\Geo_Dating\Neller\Future_Ages_02.pdf | I16: F02 | J16: AC_Index.xlsm | K16: Lithos, 2012, 142-143, Pages 161-181 | L16: Nd/Sm | M16: 92 | N16: -22420 | O16: 8100 | P16: 30520 | Q16: 1.361284567
A17: Multi-stage origin of Roberts Victor eclogites | B17: Lithos | C17: 142-143 | D17: 2012 | E17: Pages 161-181 | F17: C:\Essays\Geo_Dating\Neller\ | G17: Future_Ages_02 | H17: C:\Essays\Geo_Dating\Neller\Future_Ages_02.pdf | I17: F02 | J17: AC_Index.xlsm | K17: Lithos, 2012, 142-143, Pages 161-181 | L17: Rb/Sr | M17: 92 | N17: 32 | O17: 6874 | P17: 6842 | Q17: 213.8125
A18: Re–Os Evidence | B18: Chemical Geology | C18: 236 | D18: 2007 | E18: Pages 323-338 | F18: C:\Essays\Geo_Dating\Neller\ | G18: Future_Ages_12 | H18: C:\Essays\Geo_Dating\Neller\Future_Ages_12.pdf | I18: F12 | J18: AC_Index.xlsm | K18: Chemical Geology, 2007, 236, Pages 323-338 | L18: Lu/Hf | M18: 101 | N18: -30 | O18: 14650 | P18: 14680 | Q18: 489.3333333
A19: Re–Os Evidence | B19: Chemical Geology | C19: 236 | D19: 2007 | E19: Pages 323-338 | F19: C:\Essays\Geo_Dating\Neller\ | G19: Future_Ages_12 | H19: C:\Essays\Geo_Dating\Neller\Future_Ages_12.pdf | I19: F12 | J19: AC_Index.xlsm | K19: Chemical Geology, 2007, 236, Pages 323-338 | L19: Nd/Sm | M19: 101 | N19: 820 | O19: 5910 | P19: 5090 | Q19: 6.207317073
A20: Re–Os Evidence | B20: Chemical Geology | C20: 236 | D20: 2007 | E20: Pages 323-338 | F20: C:\Essays\Geo_Dating\Neller\ | G20: Future_Ages_12 | H20: C:\Essays\Geo_Dating\Neller\Future_Ages_12.pdf | I20: F12 | J20: AC_Index.xlsm | K20: Chemical Geology, 2007, 236, Pages 323-338 | L20: Re/Os | M20: 101 | N20: -3830 | O20: 10620 | P20: 14450 | Q20: 3.772845953
A21: Central Asian Orogenic Belt | B21: Lithos | C21: 126 | D21: 2011 | E21: Pages 233-247 | F21: C:\Essays\Geo_Dating\Neller\ | G21: Future_Ages_13 | H21: C:\Essays\Geo_Dating\Neller\Future_Ages_13.pdf | I21: F13 | J21: AC_Index.xlsm | K21: Lithos, 2011, 126, Pages 233-247 | L21: Lu/Hf | M21: 104 | N21: -9270 | O21: 14650 | P21: 23920 | Q21: 2.580366775
A22: Central Asian Orogenic Belt | B22: Lithos | C22: 126 | D22: 2011 | E22: Pages 233-247 | F22: C:\Essays\Geo_Dating\Neller\ | G22: Future_Ages_13 | H22: C:\Essays\Geo_Dating\Neller\Future_Ages_13.pdf | I22: F13 | J22: AC_Index.xlsm | K22: Lithos, 2011, 126, Pages 233-247 | L22: Nd/Sm | M22: 104 | N22: 490 | O22: 5910 | P22: 5420 | Q22: 11.06122449
A23: Central Asian Orogenic Belt | B23: Lithos | C23: 126 | D23: 2011 | E23: Pages 233-247 | F23: C:\Essays\Geo_Dating\Neller\ | G23: Future_Ages_13 | H23: C:\Essays\Geo_Dating\Neller\Future_Ages_13.pdf | I23: F13 | J23: AC_Index.xlsm | K23: Lithos, 2011, 126, Pages 233-247 | L23: Re/Os | M23: 104 | N23: -3830 | O23: 10620 | P23: 14450 | Q23: 3.772845953
L25: Method | M25: Citation | N25: Minimum | O25: Maximum | P25: Difference | Q25: Ratio
L26: Lu/Hf | M26: 27 | N26: -3220 | O26: 3870 | P26: =O26-N26 -> 7090 | Q26: =ABS(P26/N26) -> 2.201863354
L27: Nd/Sm | M27: 27 | N27: -800 | O27: 9730 | P27: =O27-N27 -> 10530 | Q27: =ABS(P27/N27) -> 13.1625
L28: Age Range | N28: -3220 | O28: 9730 | P28: 12950 | Q28: 4.02173913
L29: Nd/Sm | M29: 38 | N29: -1 | O29: 3200 | P29: 3201 | Q29: 3201
L30: Rb/Sr | M30: 38 | N30: 5445 | O30: 12716 | P30: 7271 | Q30: 1.335353535
L31: Re/Os | M31: 38 | N31: -1 | O31: 11000 | P31: 11001 | Q31: 11001
L32: Age Range | N32: -1 | O32: 12716 | P32: 12717 | Q32: 12717
L33: Pb/Pb | M33: 62 | N33: 4467 | O33: 4569 | P33: 102 | Q33: 0.02283411686
L34: Th/Pb | M34: 62 | N34: 4810 | O34: 16490 | P34: 11680 | Q34: 2.428274428
L35: U/Pb | M35: 62 | N35: 4920 | O35: 9860 | P35: 4940 | Q35: 1.004065041
L36: U/Pb | M36: 62 | N36: 4700 | O36: 5780 | P36: 1080 | Q36: 0.229787234
L37: Age Range | N37: 4467 | O37: 16490 | P37: =O37-N37 -> 12023 | Q37: =ABS(P37/N37) -> 2.691515559
L38: Lu/Hf | M38: 86 | N38: -320 | O38: 1730 | P38: 2050 | Q38: 6.40625
L39: Nd/Sm | M39: 86 | N39: -2247 | O39: 96661 | P39: 98908 | Q39: 44.01780151
L40: Re/Os | M40: 86 | N40: 600 | O40: 34600 | P40: 34000 | Q40: 56.66666667
L41: Age Range | N41: -2247 | O41: 96661 | P41: 98908 | Q41: 44.01780151
L42: Lu/Hf | M42: 92 | N42: -12340 | O42: 19870 | P42: 32210 | Q42: 2.610210697
L43: Nd/Sm | M43: 92 | N43: -22420 | O43: 8100 | P43: 30520 | Q43: 1.361284567
L44: Rb/Sr | M44: 92 | N44: 32 | O44: 6874 | P44: 6842 | Q44: 213.8125
L45: Age Range | N45: 32 | O45: 19870 | P45: 19838 | Q45: 619.9375
L46: Lu/Hf | M46: 101 | N46: -30 | O46: 14650 | P46: 14680 | Q46: 489.3333333
L47: Nd/Sm | M47: 101 | N47: 820 | O47: 5910 | P47: 5090 | Q47: 6.207317073
L48: Re/Os | M48: 101 | N48: -3830 | O48: 10620 | P48: 14450 | Q48: 3.772845953
L49: Age Range | N49: -3830 | O49: 14650 | P49: 18480 | Q49: 4.825065274
L50: Lu/Hf | M50: 104 | N50: -9270 | O50: 14650 | P50: 23920 | Q50: 2.580366775
L51: Nd/Sm | M51: 104 | N51: 490 | O51: 5910 | P51: 5420 | Q51: 11.06122449
L52: Re/Os | M52: 104 | N52: -3830 | O52: 10620 | P52: 14450 | Q52: 3.772845953
L53: Age Range | N53: -9270 | O53: 14650 | P53: =O53-N53 -> 23920 | Q53: =ABS(P53/N53) -> 2.580366775

Sheet Argon
A1: Reference | B1: Minimum | C1: Maximum | D1: Difference | E1: Age
A2: Number | B2: Million Years | C2: Million Years | D2: Million Years | E2: Ratio
A3: 1 | B3: 1770 | C3: 13960 | D3: =C3-B3 -> 12190 | E3: =ABS(D3/B3) -> 6.88700565
A4: 2 | B4: 162 | C4: 9669 | D4: 9507 | E4: 58.68518519
A5: 3 | B5: 120 | C5: 9710 | D5: 9590 | E5: 79.91666667
A6: 4 | B6: 1102 | C6: 8058 | D6: 6956 | E6: 6.31215971
A7: 5 | B7: 3560 | C7: 8900 | D7: 5340 | E7: 1.5
A8: 6 | B8: 94 | C8: 14917 | D8: 14823 | E8: 157.6914894
A9: 7 | B9: 1871 | C9: 7460 | D9: 5589 | E9: 2.987172635
A10: 8 | B10: 164 | C10: 11250 | D10: 11086 | E10: 67.59756098
A11: 9 | B11: 42 | C11: 7347 | D11: 7305 | E11: 173.9285714
A12: 10 | B12: 1700 | C12: 22090 | D12: 20390 | E12: 11.99411765
A13: 11 | B13: 580 | C13: 9840 | D13: 9260 | E13: 15.96551724
A14: 12 | B14: 324 | C14: 17178 | D14: 16854 | E14: 52.01851852
A15: 13 | B15: 506 | C15: 13348 | D15: 12842 | E15: 25.37944664
A16: 14 | B16: 633 | C16: 8569 | D16: 7936 | E16: 12.5371248
A17: 15 | B17: 1115 | C17: 9969 | D17: 8854 | E17: 7.940807175
A18: 16 | B18: 510 | C18: 7100 | D18: 6590 | E18: 12.92156863
A19: 17 | B19: 3841 | C19: 11421 | D19: 7580 | E19: 1.973444416
A20: 18 | B20: 7700 | C20: 16300 | D20: 8600 | E20: 1.116883117
A21: 19 | B21: 651 | C21: 18620 | D21: 17969 | E21: 27.60215054

Sheet Rubidium
A1: Method | B1: Reference | C1: Minimum | D1: Maximum | E1: Difference | F1: Age
B2: Number | C2: Million Years | D2: Million Years | E2: Million Years | F2: Ratio
A3: Rb/Sr | B3: 31 | C3: 3700 | D3: 9300 | E3: =D3-C3 -> 5600 | F3: =ABS(E3/C3) -> 1.513513514
A4: Rb/Sr | B4: 32 | C4: 1400 | D4: 900000 | E4: 898600 | F4: 641.8571429
A5: Rb/Sr | B5: 33 | C5: 1180 | D5: 13700 | E5: 12520 | F5: 10.61016949
A6: Rb/Sr | B6: 34 | C6: 3110 | D6: 7330 | E6: 4220 | F6: 1.356913183
A7: Rb/Sr | B7: 35 | C7: -3440 | D7: 15500 | E7: 18940 | F7: 5.505813953
A8: Rb/Sr | B8: 36 | C8: 79 | D8: 23312 | E8: 23233 | F8: 294.0886076
A9: Rb/Sr | B9: 38 | C9: 5445 | D9: 12716 | E9: 7271 | F9: 1.335353535
A10: Rb/Sr | B10: 88 | C10: 267 | D10: 20000 | E10: 19733 | F10: 73.90636704
A11: Rb/Sr | B11: 89 | C11: -31071 | D11: 76523 | E11: 107594 | F11: 3.462843166
A12: Rb/Sr | B12: 92 | C12: 32 | D12: 6874 | E12: 6842 | F12: 213.8125
A13: Rb/Sr | B13: 97 | C13: -15 | D13: 201 | E13: 216 | F13: 14.4

Sheet Rhenium
A1: Method | B1: Citation | C1: Minimum | D1: Maximum | E1: Difference | F1: Ratio | R1: Reference | S1: Minimum | T1: Maximum | U1: Difference | V1: Reference | W1: Minimum | X1: Maximum | Y1: Difference
R2: Number | S2: 106 Years | T2: 106 Years | U2: 106 Years | V2: Number | W2: 106 Years | X2: 106 Years | Y2: 106 Years
A3: Re/Os | B3: 37 | C3: 100 | D3: 15600 | E3: =D3-C3 -> 15500 | F3: =ABS(E3/C3) -> 155 | R3: 37 | S3: 100 | T3: 15600 | U3: =T3-S3 -> 15500 | V3: 77 | W3: -2860 | X3: 2820 | Y3: =X3-W3 -> 5680
A4: Re/Os | B4: 38 | C4: -1 | D4: 11000 | E4: 11001 | F4: 11001 | R4: 38 | S4: -1 | T4: 11000 | U4: 11001 | V4: 78 | W4: -9260 | X4: 1620 | Y4: 10880
A5: Re/Os | B5: 39 | C5: 2700 | D5: 5800 | E5: 3100 | F5: 1.148148148 | R5: 39 | S5: 2700 | T5: 5800 | U5: 3100 | V5: 79 | W5: -111000 | X5: 1500 | Y5: 112500
A6: Re/Os | B6: 40 | C6: 2655 | D6: 6300 | E6: 3645 | F6: 1.372881356 | R6: 40 | S6: 2655 | T6: 6300 | U6: 3645 | V6: 80 | W6: -15000001 | X6: 14999999 | Y6: 30000000
A7: Re/Os | B7: 41 | C7: -59500 | D7: 25900 | E7: 85400 | F7: 1.435294118 | R7: 41 | S7: -59500 | T7: 25900 | U7: 85400 | V7: 81 | W7: -770 | X7: 6790 | Y7: 7560
A8: Re/Os | B8: 42 | C8: -30000 | D8: 40000 | E8: 70000 | F8: 2.333333333 | R8: 42 | S8: -30000 | T8: 40000 | U8: 70000 | V8: 82 | W8: -1 | X8: 2240 | Y8: 2241
A9: Re/Os | B9: 43 | C9: -3700 | D9: 38190 | E9: 41890 | F9: 11.32162162 | R9: 43 | S9: -3700 | T9: 38190 | U9: 41890 | V9: 83 | W9: -2500 | X9: 2800 | Y9: 5300
A10: Re/Os | B10: 44 | C10: -9260 | D10: 3200 | E10: 12460 | F10: 1.345572354 | R10: 44 | S10: -9260 | T10: 3200 | U10: 12460 | V10: 86 | W10: 600 | X10: 34600 | Y10: 34000
A11: Re/Os | B11: 45 | C11: -3100 | D11: 8400 | E11: 11500 | F11: 3.709677419 | R11: 45 | S11: -3100 | T11: 8400 | U11: 11500 | V11: 87 | W11: -32000 | X11: 34000 | Y11: 66000
A12: Re/Os | B12: 46 | C12: -675 | D12: 10430 | E12: 11105 | F12: 16.45185185 | R12: 46 | S12: -675 | T12: 10430 | U12: 11105 | V12: 93 | W12: -1 | X12: 4000 | Y12: 4001
A13: Re/Os | B13: 47 | C13: -24710 | D13: 8620 | E13: 33330 | F13: 1.348846621 | R13: 47 | S13: -24710 | T13: 8620 | U13: 33330 | V13: 94 | W13: -27744 | X13: 3094 | Y13: 30838
A14: Re/Os | B14: 48 | C14: 150 | D14: 15410 | E14: 15260 | F14: 101.7333333 | R14: 48 | S14: 150 | T14: 15410 | U14: 15260 | V14: 95 | W14: -79140 | X14: 144550 | Y14: 223690
A15: Re/Os | B15: 49 | C15: 90 | D15: 6900 | E15: 6810 | F15: 75.66666667 | R15: 49 | S15: 90 | T15: 6900 | U15: 6810 | V15: 101 | W15: -3830 | X15: 10620 | Y15: 14450
A16: Re/Os | B16: 50 | C16: -279000 | D16: 79000 | E16: 358000 | F16: 1.283154122 | R16: 50 | S16: -279000 | T16: 79000 | U16: 358000 | V16: 104 | W16: -3830 | X16: 10620 | Y16: 14450
A17: Re/Os | B17: 51 | C17: 2780 | D17: 8380 | E17: 5600 | F17: 2.014388489 | R17: 51 | S17: 2780 | T17: 8380 | U17: 5600 | V17: 105 | W17: -1 | X17: 1550 | Y17: 1551
A18: Re/Os | B18: 52 | C18: 1390 | D18: 77160 | E18: 75770 | F18: 54.51079137 | R18: 52 | S18: 1390 | T18: 77160 | U18: 75770 | V18: 106 | W18: -4300 | X18: 9100 | Y18: 13400
A19: Re/Os | B19: 53 | C19: -51000 | D19: 10300 | E19: 61300 | F19: 1.201960784 | R19: 53 | S19: -51000 | T19: 10300 | U19: 61300 | V19: 107 | W19: -1 | X19: 4500 | Y19: 4501
A20: Re/Os | B20: 54 | C20: -47693 | D20: 39229 | E20: 86922 | F20: 1.822531608 | R20: 54 | S20: -47693 | T20: 39229 | U20: 86922 | V20: 108 | W20: -10800 | X20: 9700 | Y20: 20500
A21: Re/Os | B21: 55 | C21: -1 | D21: 748 | E21: 749 | F21: 749 | R21: 55 | S21: -1 | T21: 748 | U21: 749 | V21: 109 | W21: -14258 | X21: 6994 | Y21: 21252
A22: Re/Os | B22: 56 | C22: 1980 | D22: 7850 | E22: 5870 | F22: 2.964646465 | R22: 56 | S22: 1980 | T22: 7850 | U22: 5870 | V22: 110 | W22: -7120 | X22: 7690 | Y22: 14810
A23: Re/Os | B23: 69 | C23: -8620 | D23: 3220 | E23: 11840 | F23: 1.373549884 | R23: 69 | S23: -8620 | T23: 3220 | U23: 11840 | V23: 111 | W23: 30 | X23: 52250 | Y23: 52220
A24: Re/Os | B24: 70 | C24: -6240 | D24: 3510 | E24: 9750 | F24: 1.5625 | R24: 70 | S24: -6240 | T24: 3510 | U24: 9750 | V24: 112 | W24: -8600 | X24: 40000 | Y24: 48600
A25: Re/Os | B25: 72 | C25: =MIN(C6:C24) -> -279000 | D25: 38190 | E25: 317190 | F25: 1.13688172 | R25: 72 | S25: =MIN(S6:S24) -> -279000 | T25: 38190 | U25: 317190 | V25: 113 | W25: -11800 | X25: 27500 | Y25: 39300
A26: Re/Os | B26: 73 | C26: -2400 | D26: 10700 | E26: 13100 | F26: 5.458333333 | R26: 73 | S26: -2400 | T26: 10700 | U26: 13100 | V26: 114 | W26: -4040 | X26: 8520 | Y26: 12560
A27: Re/Os | B27: 74 | C27: -2080 | D27: 21500 | E27: 23580 | F27: 11.33653846 | R27: 74 | S27: -2080 | T27: 21500 | U27: 23580 | V27: 115 | W27: -1 | X27: 1640 | Y27: 1641
A28: Re/Os | B28: 75 | C28: -7307 | D28: 3505 | E28: 10812 | F28: 1.479677022 | R28: 75 | S28: -7307 | T28: 3505 | U28: 10812 | V28: 116 | W28: -11275 | X28: 3426 | Y28: 14701
A29: Re/Os | B29: 76 | C29: -1 | D29: 68000 | E29: 68001 | F29: 68001 | R29: 76 | S29: -1 | T29: 68000 | U29: 68001 | V29: =ABS(U29/S29) -> 68001
A30: Re/Os | B30: 77 | C30: -2860 | D30: 2820 | E30: 5680 | F30: 1.986013986 | R30: 77 | S30: -2860 | T30: 2820 | U30: 5680 | V30: 1.986013986
A31: Re/Os | B31: 78 | C31: -9260 | D31: 1620 | E31: 10880 | F31: 1.174946004 | R31: 78 | S31: -9260 | T31: 1620 | U31: 10880 | V31: 1.174946004
A32: Re/Os | B32: 79 | C32: -111000 | D32: 1500 | E32: 112500 | F32: 1.013513514 | R32: 79 | S32: -111000 | T32: 1500 | U32: 112500 | V32: 1.013513514
A33: Re/Os | B33: 80 | C33: -15000001 | D33: 14999999 | E33: 30000000 | F33: 1.999999867 | R33: 80 | S33: -15000001 | T33: 14999999 | U33: 30000000 | V33: 1.999999867
A34: Re/Os | B34: 81 | C34: -770 | D34: 6790 | E34: 7560 | F34: 9.818181818 | R34: 81 | S34: -770 | T34: 6790 | U34: 7560 | V34: 9.818181818
A35: Re/Os | B35: 82 | C35: -1 | D35: 2240 | E35: =D35-C35 -> 2241 | F35: =ABS(E35/C35) -> 2241 | R35: 82 | S35: -1 | T35: 2240 | U35: 2241 | V35: 2241
A36: Re/Os | B36: 83 | C36: -2500 | D36: 2800 | E36: 5300 | F36: 2.12 | R36: 83 | S36: -2500 | T36: 2800 | U36: 5300 | V36: 2.12
A37: Re/Os | B37: 86 | C37: 600 | D37: 34600 | E37: 34000 | F37: 56.66666667 | R37: 86 | S37: 600 | T37: 34600 | U37: 34000 | V37: 56.66666667
A38: Re/Os | B38: 87 | C38: -32000 | D38: 34000 | E38: 66000 | F38: 2.0625 | R38: 87 | S38: -32000 | T38: 34000 | U38: 66000 | V38: 2.0625
A39: Re/Os | B39: 93 | C39: -1 | D39: 4000 | E39: 4001 | F39: 4001 | R39: 93 | S39: -1 | T39: 4000 | U39: 4001 | V39: 4001
A40: Re/Os | B40: 94 | C40: -27744 | D40: 3094 | E40: 30838 | F40: 1.111519608 | R40: 94 | S40: -27744 | T40: 3094 | U40: 30838 | V40: 1.111519608
A41: Re/Os | B41: 95 | C41: -79140 | D41: 144550 | E41: 223690 | F41: 2.826509982 | R41: 95 | S41: -79140 | T41: 144550 | U41: 223690 | V41: 2.826509982
A42: Re/Os | B42: 101 | C42: -3830 | D42: 10620 | E42: 14450 | F42: 3.772845953 | R42: 101 | S42: -3830 | T42: 10620 | U42: 14450 | V42: 3.772845953
A43: Re/Os | B43: 104 | C43: -3830 | D43: 10620 | E43: 14450 | F43: 3.772845953 | R43: 104 | S43: -3830 | T43: 10620 | U43: 14450 | V43: 3.772845953
A44: Re/Os | B44: 105 | C44: -1 | D44: 1550 | E44: 1551 | F44: 1551 | R44: 105 | S44: -1 | T44: 1550 | U44: 1551 | V44: 1551
A45: Re/Os | B45: 106 | C45: -4300 | D45: 9100 | E45: 13400 | F45: 3.11627907 | R45: 106 | S45: -4300 | T45: 9100 | U45: 13400 | V45: 3.11627907
A46: Re/Os | B46: 107 | C46: -1 | D46: 4500 | E46: 4501 | F46: 4501 | R46: 107 | S46: -1 | T46: 4500 | U46: 4501 | V46: 4501
A47: Re/Os | B47: 108 | C47: -10800 | D47: 9700 | E47: 20500 | F47: 1.898148148 | R47: 108 | S47: -10800 | T47: 9700 | U47: 20500 | V47: 1.898148148
A48: Re/Os | B48: 109 | C48: -14258 | D48: 6994 | E48: 21252 | F48: 1.490531631 | R48: 109 | S48: -14258 | T48: 6994 | U48: 21252 | V48: 1.490531631
A49: Re/Os | B49: 110 | C49: -7120 | D49: 7690 | E49: 14810 | F49: 2.08005618 | R49: 110 | S49: -7120 | T49: 7690 | U49: 14810 | V49: 2.08005618
A50: Re/Os | B50: 111 | C50: 30 | D50: 52250 | E50: 52220 | F50: 1740.666667 | R50: 111 | S50: 30 | T50: 52250 | U50: 52220 | V50: 1740.666667
A51: Re/Os | B51: 112 | C51: -8600 | D51: 40000 | E51: 48600 | F51: 5.651162791 | R51: 112 | S51: -8600 | T51: 40000 | U51: 48600 | V51: 5.651162791
A52: Re/Os | B52: 113 | C52: -11800 | D52: 27500 | E52: 39300 | F52: 3.330508475 | R52: 113 | S52: -11800 | T52: 27500 | U52: 39300 | V52: 3.330508475
A53: Re/Os | B53: 114 | C53: -4040 | D53: 8520 | E53: 12560 | F53: 3.108910891 | R53: 114 | S53: -4040 | T53: 8520 | U53: 12560 | V53: 3.108910891
A54: Re/Os | B54: 115 | C54: -1 | D54: 1640 | E54: 1641 | F54: 1641 | R54: 115 | S54: -1 | T54: 1640 | U54: 1641 | V54: 1641
A55: Re/Os | B55: 116 | C55: -11275 | D55: 3426 | E55: 14701 | F55: 1.303858093 | R55: 116 | S55: -11275 | T55: 3426 | U55: 14701 | V55: 1.303858093

Sheet Citations
A1: Citation | B1: Essay's Title | C1: Magazine | D1: Volume | E1: Year | F1: Pages | G1: Folder | H1: File Name | I1: Pauls Computer | J1: Sheet | K1: Excel File | L1: Citation | M1: Dating | N1: Minimum | O1: Maximum | P1: Difference | Q1: Age
M2: Method | N2: Million Years | O2: Million Years | P2: Million Years | Q2: Ratio
A3: 1 | B3: Ar-39/Ar-40 Dating of Mesosiderites | C3: Geochimica et Cosmochimica Acta | D3: 54 | E3: 1990 | F3: Pages 2549-2564 | G3: ="C:\Essays\Geo_Dating\Neller\" -> C:\Essays\Geo_Dating\Neller\ | H3: BOGARD_A | I3: ="C:\Essays\Geo_Dating\Neller\" & H3 & ".pdf" -> C:\Essays\Geo_Dating\Neller\BOGARD_A.pdf | J3: A1 | K3: AA_Index.xlsm | L3: =B3 & ", " & C3 & ", " & E3 & ", " & D3 & ", " & F3 -> Ar-39/Ar-40 Dating of Mesosiderites, Geochimica et Cosmochimica Acta, 1990, 54, Pages 2549-2564 | M3: Ar/Ar | N3: 1770 | O3: 13960 | P3: =O3-N3 -> 12190 | Q3: =ABS(P3/N3) -> 6.88700565
A4: 2 | B4: 39Ar-40Ar Ages of Eucrites | C4: Meteoritics And Planetary Science | D4: 38 | E4: 2003 | F4: Pages 669–710 | G4: C:\Essays\Geo_Dating\Neller\ | H4: BOGARD_E | I4: C:\Essays\Geo_Dating\Neller\BOGARD_E.pdf | J4: A2 | K4: AA_Index.xlsm | L4: =B4 & ", " & C4 & ", " & E4 & ", " & D4 & ", " & F4 -> 39Ar-40Ar Ages of Eucrites, Meteoritics And Planetary Science, 2003, 38, Pages 669–710 | M4: Ar/Ar | N4: 162 | O4: 9669 | P4: 9507 | Q4: 58.68518519
A5: 3 | B5: Ar diffusion properties, Meteorites | C5: Geochimica et Cosmochimica Acta | D5: 44 | E5: 1980 | F5: Pages 1667-1682 | G5: C:\Essays\Geo_Dating\Neller\ | H5: BOGARD_B | I5: C:\Essays\Geo_Dating\Neller\BOGARD_B.pdf | J5: A3 | K5: AA_Index.xlsm | L5: Ar diffusion properties, Meteorites, Geochimica et Cosmochimica Acta, 1980, 44, Pages 1667-1682 | M5: Ar/Ar | N5: 120 | O5: 9710 | P5: 9590 | Q5: 79.91666667
A6: 4 | B6: Argon-39/Argon-40 Ages | C6: Meteoritics And Planetary Science | D6: 36 | E6: 2001 | F6: Pages 107-122 | G6: C:\Essays\Geo_Dating\Neller\ | H6: BOGARD_F | I6: C:\Essays\Geo_Dating\Neller\BOGARD_F.pdf | J6: A4 | K6: AA_Index.xlsm | L6: Argon-39/Argon-40 Ages, Meteoritics And Planetary Science, 2001, 36, Pages 107-122 | M6: Ar/Ar | N6: 1102 | O6: 8058 | P6: 6956 | Q6: 6.31215971
A7: 5 | B7: U-Th-Pb dating of Abee E4 Meteorite | C7: Earth Planetary Science Letters | D7: 62 | E7: 1983 | F7: Pages 132-146 | G7: C:\Essays\Geo_Dating\Neller\ | H7: BOGARD_C | I7: C:\Essays\Geo_Dating\Neller\BOGARD_C.pdf | J7: A5 | K7: AA_Index.xlsm | L7: U-Th-Pb dating of Abee E4 Meteorite, Earth Planetary Science Letters, 1983, 62, Pages 132-146 | M7: Ar/Ar | N7: 3560 | O7: 8900 | P7: 5340 | Q7: 1.5
A8: 6 | B8: 40Ar-39Ar Chronology | C8: Meteoritics And Planetary Science | D8: 44 | E8: 2009 | F8: Pages 293-321 | G8: C:\Essays\Geo_Dating\Neller\ | H8: Meteorite_Korochantseva | I8: C:\Essays\Geo_Dating\Neller\Meteorite_Korochantseva.pdf | J8: B0 | K8: AA_Index.xlsm | L8: 40Ar-39Ar Chronology, Meteoritics And Planetary Science, 2009, 44, Pages 293-321 | M8: Ar/Ar | N8: 94 | O8: 14917 | P8: 14823 | Q8: 157.6914894
A9: 7 | B9: 40-Ar / 39-Ar Ages of Allende | C9: Icarus | D9: 42 | E9: 1980 | F9: Pages 380-405 | G9: C:\Essays\Geo_Dating\Neller\ | H9: Meteorite_Jessberger | I9: C:\Essays\Geo_Dating\Neller\Meteorite_Jessberger.pdf | J9: B1 | K9: AA_Index.xlsm | L9: 40-Ar / 39-Ar Ages of Allende, Icarus, 1980, 42, Pages 380-405 | M9: Ar/Ar | N9: 1871 | O9: 7460 | P9: 5589 | Q9: 2.987172635
A10: 8 | B10: The Fossil LL6 Chondrite | C10: Geochimica et Cosmochimica Acta | D10: 74 | E10: 2010 | F10: Pages 1734-1747 | G10: C:\Essays\Geo_Dating\Neller\ | H10: Older_Than_Earth_3 | I10: C:\Essays\Geo_Dating\Neller\Older_Than_Earth_3.pdf | J10: B2 | K10: AA_Index.xlsm | L10: The Fossil LL6 Chondrite, Geochimica et Cosmochimica Acta, 2010, 74, Pages 1734-1747 | M10: Ar/Ar | N10: 164 | O10: 11250 | P10: 11086 | Q10: 67.59756098
A11: 9 | B11: 40Ar-39Ar Dating of Pseudo Tachylytes | C11: Earth Planetary Science Letters | D11: 223 | E11: 2004 | F11: Pages 349-364 | G11: C:\Essays\Geo_Dating\Neller\ | H11: Older_Than_Earth_1 | I11: C:\Essays\Geo_Dating\Neller\Older_Than_Earth_1.pdf | J11: B6 | K11: AA_Index.xlsm | L11: 40Ar-39Ar Dating of Pseudo Tachylytes, Earth Planetary Science Letters, 2004, 223, Pages 349-364 | M11: Ar/Ar | N11: 42 | O11: 7347 | P11: 7305 | Q11: 173.9285714
A12: 10 | B12: Location of extraneous argon | C12: Chemical Geology | D12: 80 | E12: 1990 | F12: Pages 201-204 | G12: C:\Essays\Geo_Dating\Neller\ | H12: Maluski | I12: C:\Essays\Geo_Dating\Neller\Maluski.pdf | J12: B7 | K12: AA_Index.xlsm | L12: Location of extraneous argon, Chemical Geology, 1990, 80, Pages 201-204 | M12: Ar/Ar | N12: 1700 | O12: 22090 | P12: 20390 | Q12: 11.99411765
A13: 11 | B13: Excess Argon In Ultramafic Rocks | C13: Earth Planetary Science Letters | D13: 22 | E13: 1974 | F13: Pages 145-156 | G13: C:\Essays\Geo_Dating\Neller\ | H13: Ages_012 | I13: C:\Essays\Geo_Dating\Neller\Ages_012.pdf | J13: B8 | K13: AA_Index.xlsm | L13: Excess Argon In Ultramafic Rocks, Earth Planetary Science Letters, 1974, 22, Pages 145-156 | M13: Ar/Ar | N13: 580 | O13: 9840 | P13: 9260 | Q13: 15.96551724
A14: 12 | B14: Analyses of the chondritic meteorite Orvinio | C14: Meteoritics And Planetary Science | D14: 39 | E14: 2004 | F14: Pages 1475-1493 | G14: C:\Essays\Geo_Dating\Neller\ | H14: Meteorite_Grier | I14: C:\Essays\Geo_Dating\Neller\Meteorite_Grier.pdf | J14: C1 | K14: AA_Index.xlsm | L14: Analyses of the chondritic meteorite Orvinio, Meteoritics And Planetary Science, 2004, 39, Pages 1475-1493 | M14: Ar/Ar | N14: 324 | O14: 17178 | P14: 16854 | Q14: 52.01851852
A15: 13 | B15: Shocked meteorites: Argon-40-argon-39 | C15: Meteoritics And Planetary Science | D15: 32 | E15: 1997 | F15: Pages 647-670 | G15: C:\Essays\Geo_Dating\Neller\ | H15: Meteorite_Kunz | I15: C:\Essays\Geo_Dating\Neller\Meteorite_Kunz.pdf | J15: C2 | K15: AA_Index.xlsm | L15: Shocked meteorites: Argon-40-argon-39, Meteoritics And Planetary Science, 1997, 32, Pages 647-670 | M15: Ar/Ar | N15: 506 | O15: 13348 | P15: 12842 | Q15: 25.37944664
A16: 14 | B16: The Strangways impact structure | C16: Earth Planetary Science Letters | D16: 172 | E16: 1999 | F16: Pages 199–211 | G16: C:\Essays\Geo_Dating\Neller\ | H16: Older_Than_Earth_4 | I16: C:\Essays\Geo_Dating\Neller\Older_Than_Earth_4.pdf | J16: C3 | K16: AA_Index.xlsm | L16: The Strangways impact structure, Earth Planetary Science Letters, 1999, 172, Pages 199–211 | M16: Ar/Ar | N16: 633 | O16: 8569 | P16: 7936 | Q16: 12.5371248
A17: 15 | B17: 40Ar-39Ar Quartz Ages | C17: Geochimica et Cosmochimica Acta | D17: 70 | E17: 2006 | F17: Pages 2573-2575 | G17: C:\Essays\Geo_Dating\Neller\ | H17: Older_Than_Earth_9 | I17: C:\Essays\Geo_Dating\Neller\Older_Than_Earth_9.pdf | J17: C7 | K17: AA_Index.xlsm | L17: 40Ar-39Ar Quartz Ages, Geochimica et Cosmochimica Acta, 2006, 70, Pages 2573-2575 | M17: Ar/Ar | N17: 1115 | O17: 9969 | P17: 8854 | Q17: 7.940807175
A18: 16 | B18: The Peace River shocked M chondrite | C18: Geochimica et Cosmochimica Acta | D18: 52 | E18: 1988 | F18: Pages 2487-2499 | G18: C:\Essays\Geo_Dating\Neller\ | H18: Meteorite_MCCONVILL | I18: C:\Essays\Geo_Dating\Neller\Meteorite_MCCONVILL.pdf | J18: D0 | K18: AA_Index.xlsm | L18: The Peace River shocked M chondrite, Geochimica et Cosmochimica Acta, 1988, 52, Pages 2487-2499 | M18: Ar/Ar | N18: 510 | O18: 7100 | P18: 6590 | Q18: 12.92156863
A19: 17 | B19: History Of The Acapulco Meteorite | C19: Geochimica et Cosmochimica Acta | D19: 61 | E19: 1997 | F19: Pages 3477-3501 | G19: C:\Essays\Geo_Dating\Neller\ | H19: Meteorite_Pellas | I19: C:\Essays\Geo_Dating\Neller\Meteorite_Pellas.pdf | J19: D1 | K19: AA_Index.xlsm | L19: History Of The Acapulco Meteorite, Geochimica et Cosmochimica Acta, 1997, 61, Pages 3477-3501 | M19: Ar/Ar | N19: 3841 | O19: 11421 | P19: 7580 | Q19: 1.973444416
A20: 18 | B20: Pressure Metamorphism in Northeast Japan | C20: Gondwana Research | D20: 8 | E20: 2005 | F20: Pages 617-621 | G20: C:\Essays\Geo_Dating\Neller\ | H20: Itaya | I20: C:\Essays\Geo_Dating\Neller\Itaya.pdf | J20: D7 | K20: AA_Index.xlsm | L20: Pressure Metamorphism in Northeast Japan, Gondwana Research, 2005, 8, Pages 617-621 | M20: Ar/Ar | N20: 7700 | O20: 16300 | P20: 8600 | Q20: 1.116883117
A21: 19 | B21: 40 Ar/39ar Dating Of The Long Range Dikes | C21: Earth Planetary Science Letters | D21: 22 | E21: 1974 | F21: Pages 256-266 | G21: C:\Essays\Geo_Dating\Neller\ | H21: Ages_002 | I21: C:\Essays\Geo_Dating\Neller\Ages_002.pdf | J21: D8 | K21: AA_Index.xlsm | L21: 40 Ar/39ar Dating Of The Long Range Dikes, Earth Planetary Science Letters, 1974, 22, Pages 256-266 | M21: Ar/Ar | N21: 651 | O21: 18620 | P21: 17969 | Q21: 27.60215054
M22: Total | N22: =MIN(N3:N21) -> 42 | O22: =MAX(O3:O21) -> 22090 | P22: 22048 | Q22: 524.952381
M23: Method | N23: Minimum | O23: Maximum | P23: Difference | Q23: Ratio
A24: 20 | B24: Potassium: Argon Dating of Iron Meteorites | C24: Science | D24: 155 | E24: 1967 | F24: Pages 999-1000 | G24: C:\Essays\Geo_Dating\Neller\ | H24: Meteor_Rancitelli | I24: C:\Essays\Geo_Dating\Neller\Meteor_Rancitelli.pdf | J24: C6 | K24: AA_Index.xlsm | L24: Potassium: Argon Dating of Iron Meteorites, Science, 1967, 155, Pages 999-1000 | M24: K/Ar | N24: 4700 | O24: 10400 | P24: 5700 | Q24: 1.212765957
A25: 21 | B25: Potassium-argon age of iron meteorites | C25: Geochimica et Cosmochimica Acta | D25: 15 | E25: 1958 | F25: Pages 40-50 | G25: C:\Essays\Geo_Dating\Neller\ | H25: Meteorite_Stoenner | I25: C:\Essays\Geo_Dating\Neller\Meteorite_Stoenner.pdf | J25: D4 | K25: AA_Index.xlsm | L25: Potassium-argon age of iron meteorites, Geochimica et Cosmochimica Acta, 1958, 15, Pages 40-50 | M25: K/Ar | N25: 5300 | O25: 13000 | P25: 7700 | Q25: 1.452830189
A26: 22 | B26: Ar/Ar dating of inclusions from IAB iron meteorites | C26: Geochimica et Cosmochimica Acta | D26: 43 | E26: 1979 | F26: Pages 1829-1840 | G26: C:\Essays\Geo_Dating\Neller\ | H26: Meteorite_NIEMEYER | I26: C:\Essays\Geo_Dating\Neller\Meteorite_NIEMEYER.pdf | J26: D6 | K26: AA_Index.xlsm | L26: Ar/Ar dating of inclusions from IAB iron meteorites, Geochimica et Cosmochimica Acta, 1979, 43, Pages 1829-1840 | M26: K/Ar | N26: 4460 | O26: 9500 | P26: 5040 | Q26: 1.130044843
A27: 23 | B27: K/Ar Age Determinations of Iron Meteorites | C27: Earth Planetary Science Letters | D27: 4 | E27: 1968 | F27: Pages 84-88 | G27: C:\Essays\Geo_Dating\Neller\ | H27: Meteorite_Kaiser | I27: C:\Essays\Geo_Dating\Neller\Meteorite_Kaiser.pdf | J27: D9 | K27: AA_Index.xlsm | L27: K/Ar Age Determinations of Iron Meteorites, Earth Planetary Science Letters, 1968, 4, Pages 84-88 | M27: K/Ar | N27: 4200 | O27: 7400 | P27: 3200 | Q27: 0.7619047619
M28: Total | N28: =MIN(N24:N27) -> 4200 | O28: =MAX(O24:O27) -> 13000 | P28: 8800 | Q28: 2.095238095
M29: Method | N29: Minimum | O29: Maximum | P29: Difference | Q29: Ratio
A30: 27 | B30: Upper Crust in North-East Australia | C30: International Journal Earth Science | D30: 101 | E30: 2012 | F30: Pages 1091-1109 | G30: C:\Essays\Geo_Dating\Neller\ | H30: Older_Than_Earth_11 | I30: C:\Essays\Geo_Dating\Neller\Older_Than_Earth_11.pdf | J30: O_6 | K30: AB_Index.xlsm | L30: Upper Crust in North-East Australia, International Journal Earth Science, 2012, 101, Pages 1091-1109 | M30: Lu/Hf | N30: -3220 | O30: 3870 | P30: 7090 | Q30: 2.201863354
A31: 68 | B31: Barren Miocene granitoids | C31: Andean Geology | D31: 37 | E31: 2010 | F31: Pages 1-31 | G31: C:\Essays\Geo_Dating\Neller\ | H31: R1 | I31: C:\Essays\Geo_Dating\Neller\R1.pdf | J31: R1 | K31: AB_Index.xlsm | L31: Barren Miocene granitoids, Andean Geology, 2010, 37, Pages 1-31 | M31: Lu/Hf | N31: -8800 | O31: -630 | P31: 8170 | Q31: 0.9284090909
A32: 71 | B32: Mantle xenoliths from North Korea | C32: Geology | D32: 38 | E32: 2010 | F32: Pages 799-802 | G32: C:\Essays\Geo_Dating\Neller\ | H32: R4 | I32: C:\Essays\Geo_Dating\Neller\R4.pdf | J32: R4 | K32: AB_Index.xlsm | L32: Mantle xenoliths from North Korea, Geology, 2010, 38, Pages 799-802 | M32: Lu/Hf | N32: -1649 | O32: 8590 | P32: 10239 | Q32: 6.209217708
A33: 86 | B33: The Kaapvaal Cratonic Lithospheric Mantle | C33: Journal Of Petrology | D33: 48 | E33: 2007 | F33: Pages 589-625 | G33: C:\Essays\Geo_Dating\Neller\ | H33: To_Old_01 | I33: C:\Essays\Geo_Dating\Neller\To_Old_01.pdf | J33: T_1 | K33: AB_Index.xlsm | L33: The Kaapvaal Cratonic Lithospheric Mantle, Journal Of Petrology, 2007, 48, Pages 589-625 | M33: Lu/Hf | N33: -320 | O33: 1730 | P33: 2050 | Q33: 6.40625
A34: 92 | B34: Multi-stage origin of Roberts Victor eclogites | C34: Lithos | D34: 142-143 | E34: 2012 | F34: Pages 161-181 | G34: C:\Essays\Geo_Dating\Neller\ | H34: Future_Ages_02 | I34: C:\Essays\Geo_Dating\Neller\Future_Ages_02.pdf | J34: F02 | K34: AC_Index.xlsm | L34: Multi-stage origin of Roberts Victor eclogites, Lithos, 2012, 142-143, Pages 161-181 | M34: Lu/Hf | N34: -12340 | O34: 19870 | P34: 32210 | Q34: 2.610210697
A35: 101 | B35: Re–Os Evidence | C35: Chemical Geology | D35: 236 | E35: 2007 | F35: Pages 323-338 | G35: C:\Essays\Geo_Dating\Neller\ | H35: Future_Ages_12 | I35: C:\Essays\Geo_Dating\Neller\Future_Ages_12.pdf | J35: F12 | K35: AC_Index.xlsm | L35: Re–Os Evidence, Chemical Geology, 2007, 236, Pages 323-338 | M35: Lu/Hf | N35: -30 | O35: 14650 | P35: 14680 | Q35: 489.3333333
A36: 104 | B36: Central Asian Orogenic Belt | C36: Lithos | D36: 126 | E36: 2011 | F36: Pages 233-247 | G36: C:\Essays\Geo_Dating\Neller\ | H36: Future_Ages_13 | I36: C:\Essays\Geo_Dating\Neller\Future_Ages_13.pdf | J36: F13 | K36: AC_Index.xlsm | L36: Central Asian Orogenic Belt, Lithos, 2011, 126, Pages 233-247 | M36: Lu/Hf | N36: -9270 | O36: 14650 | P36: 23920 | Q36: 2.580366775
M37: Total | N37: =MIN(N30:N36) -> -12340 | O37: =MAX(O30:O36) -> 19870 | P37: 32210 | Q37: 2.610210697
M38: Method | N38: Minimum | O38: Maximum | P38: Difference | Q38: Ratio
A39: 38 | B39: The Siberian Craton | C39: Geochimica et Cosmochimica Acta | D39: 59 | E39: 1995 | F39: Pages 959-977 | G39: C:\Essays\Geo_Dating\Neller\ | H39: Older_Than_Earth_6 | I39: C:\Essays\Geo_Dating\Neller\Older_Than_Earth_6.pdf | J39: A8 | K39: AA_Index.xlsm | L39: The Siberian Craton, Geochimica et Cosmochimica Acta, 1995, 59, Pages 959-977 | M39: Nd/Sm | N39: -1 | O39: 3200 | P39: 3201 | Q39: 3201
A40: 26 | B40: African Peridotite Xenoliths | C40: Geochimica et Cosmochimica Acta | D40: 53 | E40: 1989 | F40: Pages 1583-1595 | G40: C:\Essays\Geo_Dating\Neller\ | H40: Older_Than_Earth_5 | I40: C:\Essays\Geo_Dating\Neller\Older_Than_Earth_5.pdf | J40: D2 | K40: AA_Index.xlsm | L40: African Peridotite Xenoliths, Geochimica et Cosmochimica Acta, 1989, 53, Pages 1583-1595 | M40: Nd/Sm | N40: 1070 | O40: 12600 | P40: 11530 | Q40: 10.77570093
A41: 27 | B41: Upper Crust in North-East Australia | C41: International Journal Earth Science | D41: 101 | E41: 2012 | F41: Pages 1091-1109 | G41: C:\Essays\Geo_Dating\Neller\ | H41: Older_Than_Earth_11 | I41: C:\Essays\Geo_Dating\Neller\Older_Than_Earth_11.pdf | J41: O_6 | K41: AB_Index.xlsm | L41: Upper Crust in North-East Australia, International Journal Earth Science, 2012, 101, Pages 1091-1109 | M41: Nd/Sm | N41: -800 | O41: 9730 | P41: 10530 | Q41: 13.1625
A42: 86 | B42: The Kaapvaal Cratonic Lithospheric Mantle | C42: Journal Of Petrology | D42: 48 | E42: 2007 | F42: Pages 589-625 | G42: C:\Essays\Geo_Dating\Neller\ | H42: To_Old_01 | I42: C:\Essays\Geo_Dating\Neller\To_Old_01.pdf | J42: T_1 | K42: AB_Index.xlsm | L42: The Kaapvaal Cratonic Lithospheric Mantle, Journal Of Petrology, 2007, 48, Pages 589-625 | M42: Nd/Sm | N42: -2247 | O42: 96661 | P42: 98908 | Q42: 44.01780151
A43: 92 | B43: Multi-stage origin of Roberts Victor eclogites | C43: Lithos | D43: 142-143 | E43: 2012 | F43: Pages 161-181 | G43: C:\Essays\Geo_Dating\Neller\ | H43: Future_Ages_02 | I43: C:\Essays\Geo_Dating\Neller\Future_Ages_02.pdf | J43: F02 | K43: AC_Index.xlsm | L43: Multi-stage origin of Roberts Victor eclogites, Lithos, 2012, 142-143, Pages 161-181 | M43: Nd/Sm | N43: -22420 | O43: 8100 | P43: 30520 | Q43: 1.361284567
A44: 96 | B44: Lu-Hf Geochronology | C44: Chemical Geology | D44: 142 | E44: 1997 | F44: Pages 63-78 | G44: C:\Essays\Geo_Dating\Neller\ | H44: Future_Ages_08 | I44: C:\Essays\Geo_Dating\Neller\Future_Ages_08.pdf | J44: F08 | K44: AC_Index.xlsm | L44: Lu-Hf Geochronology, Chemical Geology, 1997, 142, Pages 63-78 | M44: Nd/Sm | N44: -659 | O44: 1137 | P44: 1796 | Q44: 2.725341426
A45: 98 | B45: Multiple Metasomatic Events | C45: Lithos | D45: 112-S | E45: 2009 | F45: Pages 896-912 | G45: C:\Essays\Geo_Dating\Neller\ | H45: Future_Ages_11 | I45: C:\Essays\Geo_Dating\Neller\Future_Ages_11.pdf | J45: F11 | K45: AC_Index.xlsm | L45: Multiple Metasomatic Events, Lithos, 2009, 112-S, Pages 896-912 | M45: Nd/Sm | N45: -2192 | O45: 2013 | P45: 4205 | Q45: 1.918339416
A46: 101 | B46: Re–Os Evidence | C46: Chemical Geology | D46: 236 | E46: 2007 | F46: Pages 323-338 | G46: C:\Essays\Geo_Dating\Neller\ | H46: Future_Ages_12 | I46: C:\Essays\Geo_Dating\Neller\Future_Ages_12.pdf | J46: F12 | K46: AC_Index.xlsm | L46: Re–Os Evidence, Chemical Geology, 2007, 236, Pages 323-338 | M46: Nd/Sm | N46: 820 | O46: 5910 | P46: 5090 | Q46: 6.207317073
A47: 104 | B47: Central Asian Orogenic Belt | C47: Lithos | D47: 126 | E47: 2011 | F47: Pages 233-247 | G47: C:\Essays\Geo_Dating\Neller\ | H47: Future_Ages_13 | I47: C:\Essays\Geo_Dating\Neller\Future_Ages_13.pdf | J47: F13 | K47: AC_Index.xlsm | L47: Central Asian Orogenic Belt, Lithos, 2011, 126, Pages 233-247 | M47: Nd/Sm | N47: 490 | O47: 5910 | P47: 5420 | Q47: 11.06122449
M48: Total | N48: =MIN(N39:N47) -> -22420 | O48: =MAX(O39:O47) -> 96661 | P48: 119081 | Q48: 5.311373773
M49: Method | N49: Minimum | O49: Maximum | P49: Difference | Q49: Ratio
A50: 62 | B50: The Allende and Orgueil Chondrites | C50: Geochimica et Cosmochimica Acta | D50: 40 | E50: 1976 | F50: Pages 617-634 | G50: C:\Essays\Geo_Dating\Neller\ | H50: Meteorite_Tatsumoto | I50: C:\Essays\Geo_Dating\Neller\Meteorite_Tatsumoto.pdf | J50: C8 | K50: AA_Index.xlsm | L50: The Allende and Orgueil Chondrites , Geochimica et Cosmochimica Acta, 1976, 40, Pages 617-634 | M50: Pb/Pb | N50: 4467 | O50: 4569 | P50: 102 | Q50: 0.02283411686
A51: 29 | B51: Silica Mineral Formation | C51: Geochimica et Cosmochimica Acta | D51: 67 | E51: 2003 | F51: Pages 1145-1176 | G51: C:\Essays\Geo_Dating\Neller\ | H51: Amelin_G | I51: C:\Essays\Geo_Dating\Neller\Amelin_G.pdf | J51: E5 | K51: AA_Index.xlsm | L51: Silica Mineral Formation, Geochimica et Cosmochimica Acta, 2003, 67, Pages 1145-1176 | M51: Pb/Pb | N51: -3879 | O51: 11 | P51: 3890 | Q51: 1.002835782
M52: Total | N52: =MIN(N50:N51) -> -3879 | O52: =MAX(O50:O51) -> 4569 | P52: 8448 | Q52: 2.177880897
M53: Method | N53: Minimum | O53: Maximum | P53: Difference | Q53: Ratio
A54: 38 | B54: The Siberian Craton | C54: Geochimica et Cosmochimica Acta | D54: 59 | E54: 1995 | F54: Pages 959-977 | G54: C:\Essays\Geo_Dating\Neller\ | H54: Older_Than_Earth_6 | I54: C:\Essays\Geo_Dating\Neller\Older_Than_Earth_6.pdf | J54: A8 | K54: AA_Index.xlsm | L54: The Siberian Craton, Geochimica et Cosmochimica Acta, 1995, 59, Pages 959-977 | M54: Rb/Sr | N54: 5445 | O54: 12716 | P54: 7271 | Q54: 1.335353535
A55: 31 | B55: Rb-Sr Ages Of Iron Meteorites | C55: Earth Planetary Science Letters | D55: 2 | E55: 1967 | F55: Pages 397-408 | G55: C:\Essays\Geo_Dating\Neller\ | H55: Meteorite_Burnett | I55: C:\Essays\Geo_Dating\Neller\Meteorite_Burnett.pdf | J55: A9 | K55: AA_Index.xlsm | L55: Rb-Sr Ages Of Iron Meteorites, Earth Planetary Science Letters, 1967, 2, Pages 397-408 | M55: Rb/Sr | N55: 3700 | O55: 9300 | P55: 5600 | Q55: 1.513513514
A56: 32 | B56: Isotopic discrepancies in Black Hills, South Dakota | C56: Geochimica et Cosmochimica Acta | D56: 34 | E56: 1970 | F56: Pages 713-725 | G56: C:\Essays\Geo_Dating\Neller\ | H56: Riley | I56: C:\Essays\Geo_Dating\Neller\Riley.pdf | J56: B3 | K56: AA_Index.xlsm | L56: Isotopic discrepancies in Black Hills, South Dakota, Geochimica et Cosmochimica Acta, 1970, 34, Pages 713-725 | M56: Rb/Sr | N56: 1400 | O56: 900000 | P56: 898600 | Q56: 641.8571429
A57: 33 | B57: Rhenium-187-Osmium-187 in iron meteorites | C57: Meteoritics And Planetary Science | D57: 33 | E57: 1998 | F57: Pages 647-653 | G57: C:\Essays\Geo_Dating\Neller\ | H57: Meteorite_Birck | I57: C:\Essays\Geo_Dating\Neller\Meteorite_Birck.pdf | J57: B9 | K57: AA_Index.xlsm | L57: Rhenium-187-Osmium-187 in iron meteorites, Meteoritics And Planetary Science, 1998, 33, Pages 647-653 | M57: Rb/Sr | N57: 1180 | O57: 13700 | P57: 12520 | Q57: 10.61016949
A58: 34 | B58: Antarctic LL-chondrites | C58: Geochimica et Cosmochimica Acta | D58: 54 | E58: 1990 | F58: Pages 3509-3523 | G58: C:\Essays\Geo_Dating\Neller\ | H58: Meteorite_Okano | I58: C:\Essays\Geo_Dating\Neller\Meteorite_Okano.pdf | J58: C9 | K58: AA_Index.xlsm | L58: Antarctic LL-chondrites, Geochimica et Cosmochimica Acta, 1990, 54, Pages 3509-3523 | M58: Rb/Sr | N58: 3110 | O58: 7330 | P58: 4220 | Q58: 1.356913183
A59: 35 | B59: North Western Wyoming Craton | C59: Earth Planetary Science Letters | D59: 126 | E59: 1994 | F59: Pages 457-472 | G59: C:\Essays\Geo_Dating\Neller\ | H59: Older_Than_Earth_2 | I59: C:\Essays\Geo_Dating\Neller\Older_Than_Earth_2.pdf | J59: D3 | K59: AA_Index.xlsm | L59: North Western Wyoming Craton, Earth Planetary Science Letters, 1994, 126, Pages 457-472 | M59: Rb/Sr | N59: -3440 | O59: 15500 | P59: 18940 | Q59: 5.505813953
A60: 36 | B60: Age and Origin of Base and Precious Metal | C60: Economic Geology | D60: 97 | E60: 2002 | F60: Pages 35-37 | G60: C:\Essays\Geo_Dating\Neller\ | H60: Ages_001 | I60: C:\Essays\Geo_Dating\Neller\Ages_001.pdf | J60: D5 | K60: AA_Index.xlsm | L60: Age and Origin of Base and Precious Metal, Economic Geology, 2002, 97, Pages 35-37 | M60: Rb/Sr | N60: 79 | O60: 23312 | P60: 23233 | Q60: 294.0886076
A61: 88 | B61: Rb-Sr And Sm-Nd Studies | C61: Chemical Geology | D61: 52 | E61: 1985 | F61: Pages 249-271 | G61: C:\Essays\Geo_Dating\Neller\ | H61: To_Old_06 | I61: C:\Essays\Geo_Dating\Neller\To_Old_06.pdf | J61: T_3 | K61: AB_Index.xlsm | L61: Rb-Sr And Sm-Nd Studies, Chemical Geology, 1985, 52, Pages 249-271 | M61: Rb/Sr | N61: 267 | O61: 20000 | P61: 19733 | Q61: 73.90636704
A62: 89 | B62: Norwegian Caledonides: An isotopic investigation | C62: Lithos | D62: 117 | E62: 2010 | F62: Pages 1-19 | G62: C:\Essays\Geo_Dating\Neller\ | H62: Future_Ages_01 | I62: C:\Essays\Geo_Dating\Neller\Future_Ages_01.pdf | J62: F01 | K62: AC_Index.xlsm | L62: Norwegian Caledonides: An isotopic investigation, Lithos, 2010, 117, Pages 1-19 | M62: Rb/Sr | N62: -31071 | O62: 76523 | P62: 107594 | Q62: 3.462843166
A63: 92 | B63: Multi-stage origin of Roberts Victor eclogites | C63: Lithos | D63: 142-143 | E63: 2012 | F63: Pages 161-181 | G63: C:\Essays\Geo_Dating\Neller\ | H63: Future_Ages_02 | I63: C:\Essays\Geo_Dating\Neller\Future_Ages_02.pdf | J63: F02 | K63: AC_Index.xlsm | L63: Multi-stage origin of Roberts Victor eclogites, Lithos, 2012, 142-143, Pages 161-181 | M63: Rb/Sr | N63: 32 | O63: 6874 | P63: 6842 | Q63: 213.8125
A64: 97 | B64: Isotopic Disequilibrium | C64: Chemical Geology | D64: 162 | E64: 2000 | F64: Pages 169-191 | G64: C:\Essays\Geo_Dating\Neller\ | H64: Future_Ages_09 | I64: C:\Essays\Geo_Dating\Neller\Future_Ages_09.pdf | J64: F09 | K64: AC_Index.xlsm | L64: Isotopic Disequilibrium, Chemical Geology, 2000, 162, Pages 169-191 | M64: Rb/Sr | N64: -15 | O64: 201 | P64: 216 | Q64: 14.4
M65: Total | N65: =MIN(N54:N64) -> -31071 | O65: =MAX(O54:O64) -> 900000 | P65: 931071 | Q65: 29.96591677
M66: Method | N66: Minimum | O66: Maximum | P66: Difference | Q66: Ratio
A67: 55 | B67: Canadian Cordillera lithosphere | C67: Chemical Geology | D67: 166 | E67: 2000 | F67: Pages 85-101 | G67: ="C:\Essays\Geo_Dating\Neller\" -> C:\Essays\Geo_Dating\Neller\ | H67: Older_Than_Earth_09 | I67: ="C:\Essays\Geo_Dating\Neller\" & H67 & ".pdf" -> C:\Essays\Geo_Dating\Neller\Older_Than_Earth_09.pdf | J67: O_5 | K67: AB_Index.xlsm | L67: Canadian Cordillera lithosphere, Chemical Geology, 2000, 166, Pages 85-101 | M67: Re/Os | N67: -1 | O67: 748 | P67: =O67-N67 -> 749 | Q67: =ABS(P67/N67) -> 749
A68: 105 | B68: The Mamonia complex, Cyprus | C68: Chemical Geology | D68: 248 | E68: 2008 | F68: Pages 195-212 | G68: C:\Essays\Geo_Dating\Neller\ | H68: Future_Ages_14 | I68: C:\Essays\Geo_Dating\Neller\Future_Ages_14.pdf | J68: F14 | K68: AC_Index.xlsm | L68: =B68 & ", " & C68 & ", " & E68 & ", " & D68 & ", " & F68 -> The Mamonia complex, Cyprus, Chemical Geology, 2008, 248, Pages 195-212 | M68: Re/Os | N68: -1 | O68: 1550 | P68: 1551 | Q68: 1551
A69: 82 | B69: The western North China Craton | C69: Lithos | D69: 149 | E69: 2012 | F69: Pages 100-114 | G69: C:\Essays\Geo_Dating\Neller\ | H69: RF | I69: C:\Essays\Geo_Dating\Neller\RF.pdf | J69: RF | K69: AB_Index.xlsm | L69: The western North China Craton, Lithos, 2012, 149, Pages 100-114 | M69: Re/Os | N69: -1 | O69: 2240 | P69: 2241 | Q69: 2241
A70: 39 | B70: The Study of Molybdenites | C70: Earth Planetary Science Letters | D70: 61 | E70: 1982 | F70: Pages 291-296 | G70: C:\Essays\Geo_Dating\Neller\ | H70: Older_Than_Earth_7 | I70: C:\Essays\Geo_Dating\Neller\Older_Than_Earth_7.pdf | J70: C0 | K70: AA_Index.xlsm | L70: The Study of Molybdenites, Earth Planetary Science Letters, 1982, 61, Pages 291-296 | M70: Re/Os | N70: 2700 | O70: 5800 | P70: 3100 | Q70: 1.148148148
A71: 40 | B71: Reliable Re-Os Ages | C71: Geochimica et Cosmochimica Acta | D71: 57 | E71: 1993 | F71: Pages 1625-1628 | G71: C:\Essays\Geo_Dating\Neller\ | H71: Older_Than_Earth_8 | I71: C:\Essays\Geo_Dating\Neller\Older_Than_Earth_8.pdf | J71: C4 | K71: AA_Index.xlsm | L71: Reliable Re-Os Ages, Geochimica et Cosmochimica Acta, 1993, 57, Pages 1625-1628 | M71: Re/Os | N71: 2655 | O71: 6300 | P71: 3645 | Q71: 1.372881356
A72: 93 | B72: Re-Os systematics of mantle xenoliths | C72: Geochimica et Cosmochimica Acta | D72: 63 | E72: 1999 | F72: Pages 1203-1217 | G72: C:\Essays\Geo_Dating\Neller\ | H72: Future_Ages_03 | I72: C:\Essays\Geo_Dating\Neller\Future_Ages_03.pdf | J72: F03 | K72: AC_Index.xlsm | L72: Re-Os systematics of mantle xenoliths, Geochimica et Cosmochimica Acta, 1999, 63, Pages 1203-1217 | M72: Re/Os | N72: -1 | O72: 4000 | P72: 4001 | Q72: 4001
A73: 107 | B73: Northern Canadian Cordillera Xenoliths | C73: Geochimica et Cosmochimica Acta | D73: 64 | E73: 2000 | F73: Pages 3061-3071 | G73: C:\Essays\Geo_Dating\Neller\ | H73: Future_Ages_17 | I73: C:\Essays\Geo_Dating\Neller\Future_Ages_17.pdf | J73: F17 | K73: AC_Index.xlsm | L73: Northern Canadian Cordillera Xenoliths, Geochimica et Cosmochimica Acta, 2000, 64, Pages 3061-3071 | M73: Re/Os | N73: -1 | O73: 4500 | P73: 4501 | Q73: 4501
A74: 83 | B74: Single abyssal peridotite sulfides | C74: Earth Planetary Science Letters | D74: 359 | E74: 2012 | F74: Pages 279-293 | G74: C:\Essays\Geo_Dating\Neller\ | H74: RG | I74: C:\Essays\Geo_Dating\Neller\RG.pdf | J74: RG | K74: AB_Index.xlsm | L74: Single abyssal peridotite sulfides, Earth Planetary Science Letters, 2012, 359, Pages 279-293 | M74: Re/Os | N74: -2500 | O74: 2800 | P74: 5300 | Q74: 2.12
A75: 51 | B75: The Age of Continental Roots | C75: Lithos | D75: 48 | E75: 1999 | F75: Pages 171-194 | G75: C:\Essays\Geo_Dating\Neller\ | H75: Greater_Than_Earth_05 | I75: C:\Essays\Geo_Dating\Neller\Greater_Than_Earth_05.pdf | J75: G5 | K75: AB_Index.xlsm | L75: The Age of Continental Roots, Lithos, 1999, 48, Pages 171-194 | M75: Re/Os | N75: 2780 | O75: 8380 | P75: 5600 | Q75: 2.014388489
A76: 77 | B76: Re-Os systematics of peridotites | C76: Journal of the Geological Society | D76: 168 | E76: 2011 | F76: Pages 1201-1214 | G76: C:\Essays\Geo_Dating\Neller\ | H76: RA | I76: C:\Essays\Geo_Dating\Neller\RA.pdf | J76: RA | K76: AB_Index.xlsm | L76: Re-Os systematics of peridotites, Journal of the Geological Society, 2011, 168, Pages 1201-1214 | M76: Re/Os | N76: -2860 | O76: 2820 | P76: 5680 | Q76: 1.986013986
A77: 56 | B77: Lithospheric Mantle and Diamonds | C77: Lithos | D77: 112-S | E77: 2009 | F77: Pages 1120-1132 | G77: C:\Essays\Geo_Dating\Neller\ | H77: Older_Than_Earth_12 | I77: C:\Essays\Geo_Dating\Neller\Older_Than_Earth_12.pdf | J77: O_7 | K77: AB_Index.xlsm | L77: Lithospheric Mantle and Diamonds , Lithos, 2009, 112-S, Pages 1120-1132 | M77: Re/Os | N77: 1980 | O77: 7850 | P77: 5870 | Q77: 2.964646465
A78: 49 | B78: Osmium Isotopes | C78: Chemical Geology | D78: 130 | E78: 1996 | F78: Pages 55-64 | G78: C:\Essays\Geo_Dating\Neller\ | H78: Greater_Than_Earth_01 | I78: C:\Essays\Geo_Dating\Neller\Greater_Than_Earth_01.pdf | J78: G1 | K78: AB_Index.xlsm | L78: Osmium Isotopes , Chemical Geology, 1996, 130, Pages 55-64 | M78: Re/Os | N78: 90 | O78: 6900 | P78: 6810 | Q78: 75.66666667
A79: 81 | B79: Principles of Re-Os Isotopic System | C79: Journal Petrology Society Korea | D79: 15 | E79: 2006 | F79: Pages 106-117 | G79: C:\Essays\Geo_Dating\Neller\ | H79: RE | I79: C:\Essays\Geo_Dating\Neller\RE.pdf | J79: RE | K79: AB_Index.xlsm | L79: Principles of Re-Os Isotopic System, Journal Petrology Society Korea, 2006, 15, Pages 106-117 | M79: Re/Os | N79: -770 | O79: 6790 | P79: 7560 | Q79: 9.818181818
A80: 70 | B80: Isotopic signatures in Zealandia | C80: Geology | E80: 2012 | F80: Pages 1-19 | G80: C:\Essays\Geo_Dating\Neller\ | H80: R3 | I80: C:\Essays\Geo_Dating\Neller\R3.pdf | J80: R3 | K80: AB_Index.xlsm | L80: Isotopic signatures in Zealandia , Geology, 2012, , Pages 1-19 | M80: Re/Os | N80: -6240 | O80: 3510 | P80: 9750 | Q80: 1.5625
A81: 75 | B81: The Scottish margin of the North Atlantic Craton | C81: Precambrian Research | D81: 250 | E81: 2014 | F81: Pages 97-126 | G81: C:\Essays\Geo_Dating\Neller\ | H81: R8 | I81: C:\Essays\Geo_Dating\Neller\R8.pdf | J81: R8 | K81: AB_Index.xlsm | L81: The Scottish margin of the North Atlantic Craton, Precambrian Research, 2014, 250, Pages 97-126 | M81: Re/Os | N81: -7307 | O81: 3505 | P81: 10812 | Q81: 1.479677022
A82: 78 | B82: Constraints on mantle processes and late | C82: University Berlin, Thesis | E82: 2014 | F82: Pages 1-168 | G82: C:\Essays\Geo_Dating\Neller\ | H82: RB | I82: C:\Essays\Geo_Dating\Neller\RB.pdf | J82: RB | K82: AB_Index.xlsm | L82: Constraints on mantle processes and late , University Berlin, Thesis, 2014, , Pages 1-168 | M82: Re/Os | N82: -9260 | O82: 1620 | P82: 10880 | Q82: 1.174946004
A83: 38 | B83: The Siberian Craton | C83: Geochimica et Cosmochimica Acta | D83: 59 | E83: 1995 | F83: Pages 959-977 | G83: C:\Essays\Geo_Dating\Neller\ | H83: Older_Than_Earth_6 | I83: C:\Essays\Geo_Dating\Neller\Older_Than_Earth_6.pdf | J83: A8 | K83: AA_Index.xlsm | L83: The Siberian Craton, Geochimica et Cosmochimica Acta, 1995, 59, Pages 959-977 | M83: Re/Os | N83: -1 | O83: 11000 | P83: 11001 | Q83: 11001
A84: 46 | B84: Re–Os Isotopic Results | C84: Chemical Geology | D84: 291 | E84: 2012 | F84: Pages 186–198 | G84: C:\Essays\Geo_Dating\Neller\ | H84: Future_Ages_006 | I84: C:\Essays\Geo_Dating\Neller\Future_Ages_006.pdf | J84: F3 | K84: AA_Index.xlsm | L84: Re–Os Isotopic Results, Chemical Geology, 2012, 291, Pages 186–198 | M84: Re/Os | N84: -675 | O84: 10430 | P84: 11105 | Q84: 16.45185185
A85: 45 | B85: Hebi, North China Craton | C85: Chemical Geology | D85: 328 | E85: 2012 | F85: Pages 123–136 | G85: C:\Essays\Geo_Dating\Neller\ | H85: Future_Ages_005 | I85: C:\Essays\Geo_Dating\Neller\Future_Ages_005.pdf | J85: F2 | K85: AA_Index.xlsm | L85: Hebi, North China Craton, Chemical Geology, 2012, 328, Pages 123–136 | M85: Re/Os | N85: -3100 | O85: 8400 | P85: 11500 | Q85: 3.709677419
A86: 69 | B86: Early Archean partial melting events | C86: University Bonn, Thesis | E86: 2004 | F86: Pages 1-132 | G86: C:\Essays\Geo_Dating\Neller\ | H86: R2 | I86: C:\Essays\Geo_Dating\Neller\R2.pdf | J86: R2 | K86: AB_Index.xlsm | L86: Early Archean partial melting events, University Bonn, Thesis, 2004, , Pages 1-132 | M86: Re/Os | N86: -8620 | O86: 3220 | P86: 11840 | Q86: 1.373549884
A87: 44 | B87: Rocks From the Earth’s Mantle | C87: University Berlin, Thesis | E87: 2013 | F87: Pages 1-186 | G87: C:\Essays\Geo_Dating\Neller\ | H87: TRD_06 | I87: C:\Essays\Geo_Dating\Neller\TRD_06.pdf | J87: E9 | K87: AA_Index.xlsm | L87: Rocks From the Earth’s Mantle, University Berlin, Thesis, 2013, , Pages 1-186 | M87: Re/Os | N87: -9260 | O87: 3200 | P87: 12460 | Q87: 1.345572354
A88: 73 | B88: North Patagonian Mantle Xenoliths | C88: Journal of Petrology | D88: 57 | E88: 2016 | F88: Pages 685-715 | G88: C:\Essays\Geo_Dating\Neller\ | H88: R6 | I88: C:\Essays\Geo_Dating\Neller\R6.pdf | J88: R6 | K88: AB_Index.xlsm | L88: North Patagonian Mantle Xenoliths, Journal of Petrology, 2016, 57, Pages 685-715 | M88: Re/Os | N88: -2400 | O88: 10700 | P88: 13100 | Q88: 5.458333333
A89: 106 | B89: A Paleozoic Convergent Plate | C89: Chemical Geology | D89: 208 | E89: 2004 | F89: Pages 141-156 | G89: C:\Essays\Geo_Dating\Neller\ | H89: Future_Ages_16 | I89: C:\Essays\Geo_Dating\Neller\Future_Ages_16.pdf | J89: F16 | K89: AC_Index.xlsm | L89: A Paleozoic Convergent Plate, Chemical Geology, 2004, 208, Pages 141-156 | M89: Re/Os | N89: -4300 | O89: 9100 | P89: 13400 | Q89: 3.11627907
A90: 101 | B90: Re–Os Evidence | C90: Chemical Geology | D90: 236 | E90: 2007 | F90: Pages 323-338 | G90: C:\Essays\Geo_Dating\Neller\ | H90: Future_Ages_12 | I90: C:\Essays\Geo_Dating\Neller\Future_Ages_12.pdf | J90: F12 | K90: AC_Index.xlsm | L90: Re–Os Evidence, Chemical Geology, 2007, 236, Pages 323-338 | M90: Re/Os | N90: -3830 | O90: 10620 | P90: 14450 | Q90: 3.772845953
A91: 104 | B91: Central Asian Orogenic Belt | C91: Lithos | D91: 126 | E91: 2011 | F91: Pages 233-247 | G91: C:\Essays\Geo_Dating\Neller\ | H91: Future_Ages_13 | I91: C:\Essays\Geo_Dating\Neller\Future_Ages_13.pdf | J91: F13 | K91: AC_Index.xlsm | L91: Central Asian Orogenic Belt, Lithos, 2011, 126, Pages 233-247 | M91: Re/Os | N91: -3830 | O91: 10620 | P91: 14450 | Q91: 3.772845953
A92: 110 | B92: In situ Measurement of Re-Os Isotopes | C92: Geochimica et Cosmochimica Acta | D92: 66 | E92: 2002 | F92: Pages 1037-1050 | G92: C:\Essays\Geo_Dating\Neller\ | H92: Future_Ages_26 | I92: C:\Essays\Geo_Dating\Neller\Future_Ages_26.pdf | J92: F26 | K92: AC_Index.xlsm | L92: In situ Measurement of Re-Os Isotopes, Geochimica et Cosmochimica Acta, 2002, 66, Pages 1037-1050 | M92: Re/Os | N92: -7120 | O92: 7690 | P92: 14810 | Q92: 2.08005618
A93: 48 | B93: The age of Lithospheric Mantle | C93: Chemical Geology | D93: 196 | E93: 2003 | F93: Pages 107–129 | G93: C:\Essays\Geo_Dating\Neller\ | H93: Future_Ages_008 | I93: C:\Essays\Geo_Dating\Neller\Future_Ages_008.pdf | J93: F5 | K93: AA_Index.xlsm | L93: The age of Lithospheric Mantle, Chemical Geology, 2003, 196, Pages 107–129 | M93: Re/Os | N93: 150 | O93: 15410 | P93: 15260 | Q93: 101.7333333
A94: 37 | B94: Stabilisation of Archaean lithosphere | C94: Earth Planetary Science Letters | D94: 134 | E94: 1995 | F94: Pages 341-357 | G94: C:\Essays\Geo_Dating\Neller\ | H94: Pearson | I94: C:\Essays\Geo_Dating\Neller\Pearson.pdf | J94: A7 | K94: AA_Index.xlsm | L94: Stabilisation of Archaean lithosphere, Earth Planetary Science Letters, 1995, 134, Pages 341-357 | M94: Re/Os | N94: 100 | O94: 15600 | P94: 15500 | Q94: 155
A95: 108 | B95: Xenoliths from Yangyuan and Fansi | C95: Lithos | D95: 102 | E95: 2008 | F95: Pages 25-42 | G95: C:\Essays\Geo_Dating\Neller\ | H95: Future_Ages_19 | I95: C:\Essays\Geo_Dating\Neller\Future_Ages_19.pdf | J95: F19 | K95: AC_Index.xlsm | L95: Xenoliths from Yangyuan and Fansi, Lithos, 2008, 102, Pages 25-42 | M95: Re/Os | N95: -10800 | O95: 9700 | P95: 20500 | Q95: 1.898148148
A96: 109 | B96: Formation of the North Atlantic Craton | C96: Chemical Geology | D96: 276 | E96: 2010 | F96: Pages 166-187 | G96: C:\Essays\Geo_Dating\Neller\ | H96: Future_Ages_21 | I96: C:\Essays\Geo_Dating\Neller\Future_Ages_21.pdf | J96: F21 | K96: AC_Index.xlsm | L96: Formation of the North Atlantic Craton, Chemical Geology, 2010, 276, Pages 166-187 | M96: Re/Os | N96: -14258 | O96: 6994 | P96: 21252 | Q96: 1.490531631
A97: 74 | B97: Age and geochemistry of lithospheric mantle | C97: University Maryland, Thesis | E97: 2015 | F97: Pages 1-17 | G97: C:\Essays\Geo_Dating\Neller\ | H97: R7 | I97: C:\Essays\Geo_Dating\Neller\R7.pdf | J97: R7 | K97: AB_Index.xlsm | L97: Age and geochemistry of lithospheric mantle, University Maryland, Thesis, 2015, , Pages 1-17 | M97: Re/Os | N97: -2080 | O97: 21500 | P97: 23580 | Q97: 11.33653846
A98: 94 | B98: The Raobazhai peridotite massifs | C98: Chemical Geology | D98: 268 | E98: 2009 | F98: Pages 1-14 | G98: C:\Essays\Geo_Dating\Neller\ | H98: Future_Ages_04 | I98: C:\Essays\Geo_Dating\Neller\Future_Ages_04.pdf | J98: F04 | K98: AC_Index.xlsm | L98: The Raobazhai peridotite massifs, Chemical Geology, 2009, 268, Pages 1-14 | M98: Re/Os | N98: -27744 | O98: 3094 | P98: 30838 | Q98: 1.111519608
A99: 47 | B99: Lithospheric Mantle Evolution | C99: Lithos | D99: 125 | E99: 2011 | F99: Pages 405–422 | G99: ="C:\Essays\Geo_Dating\Neller\" -> C:\Essays\Geo_Dating\Neller\ | H99: Older_Than_Earth_07 | I99: C:\Essays\Geo_Dating\Neller\Older_Than_Earth_07.pdf | J99: F4 | K99: AA_Index.xlsm | L99: Lithospheric Mantle Evolution , Lithos, 2011, 125, Pages 405–422 | M99: Re/Os | N99: -24710 | O99: 8620 | P99: 33330 | Q99: 1.348846621
A100: 86 | B100: The Kaapvaal Cratonic Lithospheric Mantle | C100: Journal Of Petrology | D100: 48 | E100: 2007 | F100: Pages 589-625 | G100: C:\Essays\Geo_Dating\Neller\ | H100: To_Old_01 | I100: C:\Essays\Geo_Dating\Neller\To_Old_01.pdf | J100: T_1 | K100: AB_Index.xlsm | L100: The Kaapvaal Cratonic Lithospheric Mantle, Journal Of Petrology, 2007, 48, Pages 589-625 | M100: Re/Os | N100: 600 | O100: 34600 | P100: 34000 | Q100: 56.66666667
A101: 43 | B101: Rhenium/Osmium Geochronology of Oxide Minerals | C101: University Alberta, Thesis | E101: 2010 | F101: Pages 1-152 | G101: C:\Essays\Geo_Dating\Neller\ | H101: TRD_05 | I101: C:\Essays\Geo_Dating\Neller\TRD_05.pdf | J101: E8 | K101: AA_Index.xlsm | L101: Rhenium/Osmium Geochronology of Oxide Minerals, University Alberta, Thesis, 2010, , Pages 1-152 | M101: Re/Os | N101: -3700 | O101: 38190 | P101: 41890 | Q101: 11.32162162
A102: 53 | B102: Diamond Formation Episodes | C102: Contributions Mineral Petrology | D102: 157 | E102: 2009 | F102: Pages 525–540 | G102: C:\Essays\Geo_Dating\Neller\ | H102: Older_Than_Earth_03 | I102: C:\Essays\Geo_Dating\Neller\Older_Than_Earth_03.pdf | J102: O_3 | K102: AB_Index.xlsm | L102: Diamond Formation Episodes , Contributions Mineral Petrology, 2009, 157, Pages 525–540 | M102: Re/Os | N102: -51000 | O102: 10300 | P102: 61300 | Q102: 1.201960784
A103: 87 | B103: In Situ Analysis of Sulphides | C103: Earth Planetary Science Letters | D103: 203 | E103: 2002 | F103: Pages 651-663 | G103: C:\Essays\Geo_Dating\Neller\ | H103: To_Old_03 | I103: C:\Essays\Geo_Dating\Neller\To_Old_03.pdf | J103: T_2 | K103: AB_Index.xlsm | L103: In Situ Analysis of Sulphides, Earth Planetary Science Letters, 2002, 203, Pages 651-663 | M103: Re/Os | N103: -32000 | O103: 34000 | P103: 66000 | Q103: 2.0625
A104: 76 | B104: Xenoliths from the Bohemian Massif | C104: Chemical Geology | D104: 430 | E104: 2016 | F104: Pages 90-107 | G104: C:\Essays\Geo_Dating\Neller\ | H104: R9 | I104: C:\Essays\Geo_Dating\Neller\R9.pdf | J104: R9 | K104: AB_Index.xlsm | L104: Xenoliths from the Bohemian Massif, Chemical Geology, 2016, 430, Pages 90-107 | M104: Re/Os | N104: -1 | O104: 68000 | P104: 68001 | Q104: 68001
A105: 42 | B105: The North China Craton | C105: University Maryland, Thesis | E105: 2011 | F105: Pages 1-238 | G105: C:\Essays\Geo_Dating\Neller\ | H105: TRD_04 | I105: C:\Essays\Geo_Dating\Neller\TRD_04.pdf | J105: E7 | K105: AA_Index.xlsm | L105: The North China Craton, University Maryland, Thesis, 2011, , Pages 1-238 | M105: Re/Os | N105: -30000 | O105: 40000 | P105: 70000 | Q105: 2.333333333
A106: 52 | B106: Archean Man Shield, West Africa | C106: Precambrian Research | D106: 118 | E106: 2002 | F106: Pages 267-283 | G106: C:\Essays\Geo_Dating\Neller\ | H106: Older_Than_Earth_05 | I106: C:\Essays\Geo_Dating\Neller\Older_Than_Earth_05.pdf | J106: O_2 | K106: AB_Index.xlsm | L106: Archean Man Shield, West Africa, Precambrian Research, 2002, 118, Pages 267-283 | M106: Re/Os | N106: 1390 | O106: 77160 | P106: 75770 | Q106: 54.51079137
A107: 41 | B107: Evolution of the South China Block | C107: Geochimica et Cosmochimica Acta | D107: 73 | E107: 2009 | F107: Pages 4531–4557 | G107: C:\Essays\Geo_Dating\Neller\ | H107: TRD_03 | I107: C:\Essays\Geo_Dating\Neller\TRD_03.pdf | J107: E6 | K107: AA_Index.xlsm | L107: Evolution of the South China Block, Geochimica et Cosmochimica Acta, 2009, 73, Pages 4531–4557 | M107: Re/Os | N107: -59500 | O107: 25900 | P107: 85400 | Q107: 1.435294118
A108: 54 | B108: Re/Os Isotopes of Sulfides | C108: Lithos | D108: 102 | E108: 2008 | F108: Pages 43-64 | G108: C:\Essays\Geo_Dating\Neller\ | H108: Older_Than_Earth_04 | I108: C:\Essays\Geo_Dating\Neller\Older_Than_Earth_04.pdf | J108: O_4 | K108: AB_Index.xlsm | L108: Re/Os Isotopes of Sulfides , Lithos, 2008, 102, Pages 43-64 | M108: Re/Os | N108: -47693 | O108: 39229 | P108: 86922 | Q108: 1.822531608
A109: 72 | B109: Re-Os Geochronology of Oxide Minerals | C109: University Alberta, Thesis | E109: 2010 | F109: Pages 1-153 | G109: C:\Essays\Geo_Dating\Neller\ | H109: R5 | I109: C:\Essays\Geo_Dating\Neller\R5.pdf | J109: R5 | K109: AB_Index.xlsm | L109: Re-Os Geochronology of Oxide Minerals, University Alberta, Thesis, 2010, , Pages 1-153 | M109: Re/Os | N109: =MIN(N96:N108) -> -59500 | O109: 38190 | P109: 97690 | Q109: 1.641848739
A110: 79 | B110: The Taitao Ophiolite, Southern Chile | C110: University Maryland, Thesis | E110: 2007 | F110: Pages 1-117 | G110: C:\Essays\Geo_Dating\Neller\ | H110: RC | I110: C:\Essays\Geo_Dating\Neller\RC.pdf | J110: RC | K110: AB_Index.xlsm | L110: The Taitao Ophiolite, Southern Chile, University Maryland, Thesis, 2007, , Pages 1-117 | M110: Re/Os | N110: -111000 | O110: 1500 | P110: 112500 | Q110: 1.013513514
A111: 95 | B111: In situ Re–Os evidence | C111: Journal of Asian Earth Sciences | D111: 62 | E111: 2013 | F111: Pages 37-50 | G111: C:\Essays\Geo_Dating\Neller\ | H111: Future_Ages_07 | I111: C:\Essays\Geo_Dating\Neller\Future_Ages_07.pdf | J111: F07 | K111: AC_Index.xlsm | L111: In situ Re–Os evidence, Journal of Asian Earth Sciences, 2013, 62, Pages 37-50 | M111: Re/Os | N111: -79140 | O111: 144550 | P111: 223690 | Q111: 2.826509982
A112: 50 | B112: Evolution Beneath the Kaapvaal Craton | C112: Chemical Geology | D112: 208 | E112: 2004 | F112: Pages 89-118 | G112: ="C:\Essays\Geo_Dating\Neller\" -> C:\Essays\Geo_Dating\Neller\ | H112: Greater_Than_Earth_02 | I112: C:\Essays\Geo_Dating\Neller\Greater_Than_Earth_02.pdf | J112: G2 | K112: AB_Index.xlsm | L112: Evolution Beneath the Kaapvaal Craton, Chemical Geology, 2004, 208, Pages 89-118 | M112: Re/Os | N112: -279000 | O112: 79000 | P112: 358000 | Q112: 1.283154122
A113: 80 | B113: Samarium/Neodymium geochronology | C113: University Boston, Thesis | E113: 2014 | F113: Pages 1-207 | G113: ="C:\Essays\Geo_Dating\Neller\" -> C:\Essays\Geo_Dating\Neller\ | H113: RD | I113: C:\Essays\Geo_Dating\Neller\RD.pdf | J113: RD | K113: AB_Index.xlsm | L113: Samarium/Neodymium geochronology, University Boston, Thesis, 2014, , Pages 1-207 | M113: Re/Os | N113: -15000001 | O113: 14999999 | P113: 30000000 | Q113: 1.999999867
M114: Total | N114: =MIN(N67:N113) -> -15000001 | O114: =MAX(O67:O113) -> 14999999 | P114: 30000000 | Q114: 1.999999867
M115: Method | N115: Minimum | O115: Maximum | P115: Difference | Q115: Ratio
A116: 57 | B116: Three Apollo 14 Basalts | C116: Earth Planetary Science Letters | D116: 14 | E116: 1972 | F116: Pages 281-304. | G116: ="C:\Essays\Geo_Dating\Neller\" -> C:\Essays\Geo_Dating\Neller\ | H116: Wasserburg | I116: ="C:\Essays\Geo_Dating\Neller\" & H116 & ".pdf" -> C:\Essays\Geo_Dating\Neller\Wasserburg.pdf | J116: B4 | K116: AA_Index.xlsm | L116: Three Apollo 14 Basalts, Earth Planetary Science Letters, 1972, 14, Pages 281-304. | M116: Th/Pb | N116: 4010 | O116: 28140 | P116: =O116-N116 -> 24130 | Q116: =ABS(P116/N116) -> 6.017456359
A117: 62 | B117: The Allende and Orgueil Chondrites | C117: Geochimica et Cosmochimica Acta | D117: 40 | E117: 1976 | F117: Pages 617-634 | G117: C:\Essays\Geo_Dating\Neller\ | H117: Meteorite_Tatsumoto | I117: C:\Essays\Geo_Dating\Neller\Meteorite_Tatsumoto.pdf | J117: C8 | K117: AA_Index.xlsm | L117: The Allende and Orgueil Chondrites , Geochimica et Cosmochimica Acta, 1976, 40, Pages 617-634 | M117: Th/Pb | N117: 4810 | O117: 16490 | P117: 11680 | Q117: 2.428274428
A118: 59 | B118: Natural Radionuclide Mobility | C118: Geochimica et Cosmochimica Acta | D118: 72 | E118: 2008 | F118: Pages 2067-2089 | G118: C:\Essays\Geo_Dating\Neller\ | H118: Amelin_F | I118: C:\Essays\Geo_Dating\Neller\Amelin_F.pdf | J118: E2 | K118: AA_Index.xlsm | L118: Natural Radionuclide Mobility, Geochimica et Cosmochimica Acta, 2008, 72, Pages 2067-2089 | M118: Th/Pb | N118: 4 | O118: 82030 | P118: 82026 | Q118: 20506.5
A119: 59 | B119: Natural Radionuclide Mobility | C119: Geochimica et Cosmochimica Acta | D119: 72 | E119: 2008 | F119: Pages 2067-2089 | G119: C:\Essays\Geo_Dating\Neller\ | H119: Amelin_F | I119: C:\Essays\Geo_Dating\Neller\Amelin_F.pdf | J119: E2 | K119: AA_Index.xlsm | L119: Natural Radionuclide Mobility, Geochimica et Cosmochimica Acta, 2008, 72, Pages 2067-2089 | M119: Th/Pb | N119: -98470 | O119: 262350 | P119: 360820 | Q119: 3.664263227
M120: Total | N120: =MIN(N116:N119) -> -98470 | O120: =MAX(O116:O119) -> 262350 | P120: 360820 | Q120: 3.664263227
M121: Method | N121: Minimum | O121: Maximum | P121: Difference | Q121: Ratio
A122: 60 | B122: Isotopic Lead Ages Of Meteorites | C122: Earth Planetary Science Letters | D122: 19 | E122: 1973 | F122: Pages 321-329 | G122: C:\Essays\Geo_Dating\Neller\ | H122: Pb-206_14 | I122: C:\Essays\Geo_Dating\Neller\Pb-206_14.pdf | J122: B5 | K122: AA_Index.xlsm | L122: Isotopic Lead Ages Of Meteorites, Earth Planetary Science Letters, 1973, 19, Pages 321-329 | M122: U/Pb | N122: 4126 | O122: 8615 | P122: 4489 | Q122: 1.087978672
A123: 62 | B123: The Allende and Orgueil Chondrites | C123: Geochimica et Cosmochimica Acta | D123: 40 | E123: 1976 | F123: Pages 617-634 | G123: C:\Essays\Geo_Dating\Neller\ | H123: Meteorite_Tatsumoto | I123: C:\Essays\Geo_Dating\Neller\Meteorite_Tatsumoto.pdf | J123: C8 | K123: AA_Index.xlsm | L123: The Allende and Orgueil Chondrites , Geochimica et Cosmochimica Acta, 1976, 40, Pages 617-634 | M123: U/Pb | N123: 4920 | O123: 9860 | P123: 4940 | Q123: 1.004065041
A124: 62 | B124: The Allende and Orgueil Chondrites | C124: Geochimica et Cosmochimica Acta | D124: 40 | E124: 1976 | F124: Pages 617-634 | G124: C:\Essays\Geo_Dating\Neller\ | H124: Meteorite_Tatsumoto | I124: C:\Essays\Geo_Dating\Neller\Meteorite_Tatsumoto.pdf | J124: C8 | K124: AA_Index.xlsm | L124: The Allende and Orgueil Chondrites , Geochimica et Cosmochimica Acta, 1976, 40, Pages 617-634 | M124: U/Pb | N124: 4700 | O124: 5780 | P124: 1080 | Q124: 0.229787234
A125: 63 | B125: U-Pb ages of angrites | C125: Geochimica et Cosmochimica Acta | D125: 72 | E125: 2008 | F125: Pages 221-232 | G125: C:\Essays\Geo_Dating\Neller\ | H125: Amelin_D | I125: C:\Essays\Geo_Dating\Neller\Amelin_D.pdf | J125: E0 | K125: AA_Index.xlsm | L125: U-Pb ages of angrites, Geochimica et Cosmochimica Acta, 2008, 72, Pages 221-232 | M125: U/Pb | N125: 3727.8 | O125: 6625 | P125: 2897.2 | Q125: 0.7771876174
A126: 64 | B126: Pb isotopic age of the Allende chondrules | C126: Meteoritics And Planetary Science | D126: 42 | E126: 2007 | F126: Pages 1321-1335 | G126: C:\Essays\Geo_Dating\Neller\ | H126: Amelin_C | I126: C:\Essays\Geo_Dating\Neller\Amelin_C.pdf | J126: E3 | K126: AA_Index.xlsm | L126: Pb isotopic age of the Allende chondrules, Meteoritics And Planetary Science, 2007, 42, Pages 1321-1335 | M126: U/Pb | N126: 1799 | O126: 10066 | P126: 8267 | Q126: 4.595330739
A127: 65 | B127: Precise U-Pb dating | C127: Geochimica et Cosmochimica Acta | D127: 69 | E127: 2005 | F127: Pages 505-518 | G127: C:\Essays\Geo_Dating\Neller\ | H127: Amelin_A | I127: C:\Essays\Geo_Dating\Neller\Amelin_A.pdf | J127: E4 | K127: AA_Index.xlsm | L127: Precise U-Pb dating, Geochimica et Cosmochimica Acta, 2005, 69, Pages 505-518 | M127: U/Pb | N127: 4249 | O127: 6473 | P127: 2224 | Q127: 0.5234172747
M128: Total | N128: =MIN(N122:N127) -> 1799 | O128: =MAX(O122:O127) -> 10066 | P128: 8267 | Q128: 4.595330739
M129: Method | N129: Minimum | O129: Maximum | P129: Difference | Q129: Ratio
A130: 66 | B130: Single grain (U-Th)/He ages, Acapulco meteorite | C130: Earth Planetary Science Letters | D130: 209 | E130: 2003 | F130: Pages 323-336 | G130: C:\Essays\Geo_Dating\Neller\ | H130: Meteorite_Kyoungwon | I130: C:\Essays\Geo_Dating\Neller\Meteorite_Kyoungwon.pdf | J130: C5 | K130: AA_Index.xlsm | L130: Single grain (U-Th)/He ages, Acapulco meteorite, Earth Planetary Science Letters, 2003, 209, Pages 323-336 | M130: U/Th | N130: 1452 | O130: 4909 | P130: 3457 | Q130: 2.380853994
A137: 1 | B137: Ar-39/Ar-40 Dating of Mesosiderites, Geochimica et Cosmochimica Acta, 1990, 54, Pages 2549-2564
A138: 2 | B138: 39Ar-40Ar Ages of Eucrites, Meteoritics And Planetary Science, 2003, 38, Pages 669–710
A139: 3 | B139: Ar diffusion properties, Meteorites, Geochimica et Cosmochimica Acta, 1980, 44, Pages 1667-1682
A140: 4 | B140: Argon-39/Argon-40 Ages, Meteoritics And Planetary Science, 2001, 36, Pages 107-122
A141: 5 | B141: U-Th-Pb dating of Abee E4 Meteorite, Earth Planetary Science Letters, 1983, 62, Pages 132-146
A142: 6 | B142: 40Ar-39Ar Chronology, Meteoritics And Planetary Science, 2009, 44, Pages 293-321
A143: 7 | B143: 40-Ar / 39-Ar Ages of Allende, Icarus, 1980, 42, Pages 380-405
A144: 8 | B144: The Fossil LL6 Chondrite, Geochimica et Cosmochimica Acta, 2010, 74, Pages 1734-1747
A145: 9 | B145: 40Ar-39Ar Dating of Pseudo Tachylytes, Earth Planetary Science Letters, 2004, 223, Pages 349-364
A146: 10 | B146: Location of extraneous argon, Chemical Geology, 1990, 80, Pages 201-204
A147: 11 | B147: Excess Argon In Ultramafic Rocks, Earth Planetary Science Letters, 1974, 22, Pages 145-156
A148: 12 | B148: Analyses of the chondritic meteorite Orvinio, Meteoritics And Planetary Science, 2004, 39, Pages 1475-1493
A149: 13 | B149: Shocked meteorites: Argon-40-argon-39, Meteoritics And Planetary Science, 1997, 32, Pages 647-670
A150: 14 | B150: The Strangways impact structure, Earth Planetary Science Letters, 1999, 172, Pages 199–211
A151: 15 | B151: 40Ar-39Ar Quartz Ages, Geochimica et Cosmochimica Acta, 2006, 70, Pages 2573-2575
A152: 16 | B152: The Peace River shocked M chondrite, Geochimica et Cosmochimica Acta, 1988, 52, Pages 2487-2499
A153: 17 | B153: History Of The Acapulco Meteorite, Geochimica et Cosmochimica Acta, 1997, 61, Pages 3477-3501
A154: 18 | B154: Pressure Metamorphism in Northeast Japan, Gondwana Research, 2005, 8, Pages 617-621
A155: 19 | B155: 40 Ar/39ar Dating Of The Long Range Dikes, Earth Planetary Science Letters, 1974, 22, Pages 256-266
A156: 20 | B156: Potassium: Argon Dating of Iron Meteorites, Science, 1967, 155, Pages 999-1000
A157: 21 | B157: Potassium-argon age of iron meteorites, Geochimica et Cosmochimica Acta, 1958, 15, Pages 40-50
A158: 22 | B158: Ar/Ar dating of inclusions from IAB iron meteorites, Geochimica et Cosmochimica Acta, 1979, 43, Pages 1829-1840
A159: 23 | B159: K/Ar Age Determinations of Iron Meteorites, Earth Planetary Science Letters, 1968, 4, Pages 84-88
A160: 26 | B160: African Peridotite Xenoliths, Geochimica et Cosmochimica Acta, 1989, 53, Pages 1583-1595
A161: 27 | B161: Upper Crust in North-East Australia, International Journal Earth Science, 2012, 101, Pages 1091-1109
A162: 29 | B162: Silica Mineral Formation, Geochimica et Cosmochimica Acta, 2003, 67, Pages 1145-1176
A163: 31 | B163: Rb-Sr Ages Of Iron Meteorites, Earth Planetary Science Letters, 1967, 2, Pages 397-408
A164: 32 | B164: Isotopic discrepancies in Black Hills, South Dakota, Geochimica et Cosmochimica Acta, 1970, 34, Pages 713-725
A165: 33 | B165: Rhenium-187-Osmium-187 in iron meteorites, Meteoritics And Planetary Science, 1998, 33, Pages 647-653
A166: 34 | B166: Antarctic LL-chondrites, Geochimica et Cosmochimica Acta, 1990, 54, Pages 3509-3523
A167: 35 | B167: North Western Wyoming Craton, Earth Planetary Science Letters, 1994, 126, Pages 457-472
A168: 36 | B168: Age and Origin of Base and Precious Metal, Economic Geology, 2002, 97, Pages 35-37
A169: 37 | B169: Stabilisation of Archaean lithosphere, Earth Planetary Science Letters, 1995, 134, Pages 341-357
A170: 38 | B170: The Siberian Craton, Geochimica et Cosmochimica Acta, 1995, 59, Pages 959-977
A171: 39 | B171: The Study of Molybdenites, Earth Planetary Science Letters, 1982, 61, Pages 291-296
A172: 40 | B172: Reliable Re-Os Ages, Geochimica et Cosmochimica Acta, 1993, 57, Pages 1625-1628
A173: 41 | B173: Evolution of the South China Block, Geochimica et Cosmochimica Acta, 2009, 73, Pages 4531–4557
A174: 42 | B174: The North China Craton, University Maryland, Thesis, 2011, , Pages 1-238
A175: 43 | B175: Rhenium/Osmium Geochronology of Oxide Minerals, University Alberta, Thesis, 2010, , Pages 1-152
A176: 44 | B176: Rocks From the Earth’s Mantle, University Berlin, Thesis, 2013, , Pages 1-186
A177: 45 | B177: Hebi, North China Craton, Chemical Geology, 2012, 328, Pages 123–136
A178: 46 | B178: Re–Os Isotopic Results, Chemical Geology, 2012, 291, Pages 186–198
A179: 47 | B179: Lithospheric Mantle Evolution , Lithos, 2011, 125, Pages 405–422
A180: 48 | B180: The age of Lithospheric Mantle, Chemical Geology, 2003, 196, Pages 107–129
A181: 49 | B181: Osmium Isotopes , Chemical Geology, 1996, 130, Pages 55-64
A182: 50 | B182: Evolution Beneath the Kaapvaal Craton, Chemical Geology, 2004, 208, Pages 89-118
A183: 51 | B183: The Age of Continental Roots, Lithos, 1999, 48, Pages 171-194
A184: 52 | B184: Archean Man Shield, West Africa, Precambrian Research, 2002, 118, Pages 267-283
A185: 53 | B185: Diamond Formation Episodes , Contributions Mineral Petrology, 2009, 157, Pages 525–540
A186: 54 | B186: Re/Os Isotopes of Sulfides , Lithos, 2008, 102, Pages 43-64
A187: 55 | B187: Canadian Cordillera lithosphere, Chemical Geology, 2000, 166, Pages 85-101
A188: 56 | B188: Lithospheric Mantle and Diamonds , Lithos, 2009, 112-S, Pages 1120-1132
A189: 57 | B189: Three Apollo 14 Basalts, Earth Planetary Science Letters, 1972, 14, Pages 281-304.
A190: 59 | B190: Natural Radionuclide Mobility, Geochimica et Cosmochimica Acta, 2008, 72, Pages 2067-2089
A191: 60 | B191: Isotopic Lead Ages Of Meteorites, Earth Planetary Science Letters, 1973, 19, Pages 321-329
A192: 62 | B192: The Allende and Orgueil Chondrites , Geochimica et Cosmochimica Acta, 1976, 40, Pages 617-634
A193: 63 | B193: U-Pb ages of angrites, Geochimica et Cosmochimica Acta, 2008, 72, Pages 221-232
A194: 64 | B194: Pb isotopic age of the Allende chondrules, Meteoritics And Planetary Science, 2007, 42, Pages 1321-1335
A195: 65 | B195: Precise U-Pb dating, Geochimica et Cosmochimica Acta, 2005, 69, Pages 505-518
A196: 66 | B196: Single grain (U-Th)/He ages, Acapulco meteorite, Earth Planetary Science Letters, 2003, 209, Pages 323-336
A197: 68 | B197: Barren Miocene granitoids, Andean Geology, 2010, 37, Pages 1-31
A198: 69 | B198: Early Archean partial melting events, University Bonn, Thesis, 2004, , Pages 1-132
A199: 70 | B199: Isotopic signatures in Zealandia , Geology, 2012, , Pages 1-19
A200: 71 | B200: Mantle xenoliths from North Korea, Geology, 2010, 38, Pages 799-802
A201: 72 | B201: Re-Os Geochronology of Oxide Minerals, University Alberta, Thesis, 2010, , Pages 1-153
A202: 73 | B202: North Patagonian Mantle Xenoliths, Journal of Petrology, 2016, 57, Pages 685-715
A203: 74 | B203: Age and geochemistry of lithospheric mantle, University Maryland, Thesis, 2015, , Pages 1-17
A204: 75 | B204: The Scottish margin of the North Atlantic Craton, Precambrian Research, 2014, 250, Pages 97-126
A205: 76 | B205: Xenoliths from the Bohemian Massif, Chemical Geology, 2016, 430, Pages 90-107
A206: 77 | B206: Re-Os systematics of peridotites, Journal of the Geological Society, 2011, 168, Pages 1201-1214
... 25 more rows

Sheet Summary
A1: Essay's Title | B1: Magazine | C1: Volume | D1: Year | E1: Pages | F1: Folder | G1: File Name | H1: Pauls Computer | I1: Sheet | J1: Excel File | K1: Citation | L1: Dating | N1: Minimum | O1: Maximum | P1: Difference | Q1: Age
L2: Method | M2: Citation | N2: Million Years | O2: Million Years | P2: Million Years | Q2: Ratio
A3: Ar-39/Ar-40 Dating of Mesosiderites | B3: Geochimica et Cosmochimica Acta | C3: 54 | D3: 1990 | E3: Pages 2549-2564 | F3: ="C:\Essays\Geo_Dating\Neller\" -> C:\Essays\Geo_Dating\Neller\ | G3: BOGARD_A | H3: ="C:\Essays\Geo_Dating\Neller\" & G3 & ".pdf" -> C:\Essays\Geo_Dating\Neller\BOGARD_A.pdf | I3: A1 | J3: AA_Index.xlsm | K3: =B3 & ", " & D3 & ", " & C3 & ", " & E3 -> Geochimica et Cosmochimica Acta, 1990, 54, Pages 2549-2564 | L3: Ar/Ar | M3: 1 | N3: 1770 | O3: 13960 | P3: =O3-N3 -> 12190 | Q3: =ABS(P3/N3) -> 6.88700565
A4: 39Ar-40Ar Ages of Eucrites | B4: Meteoritics And Planetary Science | C4: 38 | D4: 2003 | E4: Pages 669–710 | F4: C:\Essays\Geo_Dating\Neller\ | G4: BOGARD_E | H4: C:\Essays\Geo_Dating\Neller\BOGARD_E.pdf | I4: A2 | J4: AA_Index.xlsm | K4: Meteoritics And Planetary Science, 2003, 38, Pages 669–710 | L4: Ar/Ar | M4: 2 | N4: 162 | O4: 9669 | P4: 9507 | Q4: 58.68518519
A5: Ar diffusion properties, Meteorites | B5: Geochimica et Cosmochimica Acta | C5: 44 | D5: 1980 | E5: Pages 1667-1682 | F5: C:\Essays\Geo_Dating\Neller\ | G5: BOGARD_B | H5: C:\Essays\Geo_Dating\Neller\BOGARD_B.pdf | I5: A3 | J5: AA_Index.xlsm | K5: Geochimica et Cosmochimica Acta, 1980, 44, Pages 1667-1682 | L5: Ar/Ar | M5: 3 | N5: 120 | O5: 9710 | P5: 9590 | Q5: 79.91666667
A6: Argon-39/Argon-40 Ages | B6: Meteoritics And Planetary Science | C6: 36 | D6: 2001 | E6: Pages 107-122 | F6: C:\Essays\Geo_Dating\Neller\ | G6: BOGARD_F | H6: C:\Essays\Geo_Dating\Neller\BOGARD_F.pdf | I6: A4 | J6: AA_Index.xlsm | K6: Meteoritics And Planetary Science, 2001, 36, Pages 107-122 | L6: Ar/Ar | M6: 4 | N6: 1102 | O6: 8058 | P6: 6956 | Q6: 6.31215971
A7: U-Th-Pb dating of Abee E4 Meteorite | B7: Earth Planetary Science Letters | C7: 62 | D7: 1983 | E7: Pages 132-146 | F7: C:\Essays\Geo_Dating\Neller\ | G7: BOGARD_C | H7: C:\Essays\Geo_Dating\Neller\BOGARD_C.pdf | I7: A5 | J7: AA_Index.xlsm | K7: Earth Planetary Science Letters, 1983, 62, Pages 132-146 | L7: Ar/Ar | M7: 5 | N7: 3560 | O7: 8900 | P7: 5340 | Q7: 1.5
A8: 40Ar-39Ar Chronology | B8: Meteoritics And Planetary Science | C8: 44 | D8: 2009 | E8: Pages 293-321 | F8: C:\Essays\Geo_Dating\Neller\ | G8: Meteorite_Korochantseva | H8: C:\Essays\Geo_Dating\Neller\Meteorite_Korochantseva.pdf | I8: B0 | J8: AA_Index.xlsm | K8: Meteoritics And Planetary Science, 2009, 44, Pages 293-321 | L8: Ar/Ar | M8: 6 | N8: 94 | O8: 14917 | P8: 14823 | Q8: 157.6914894
A9: 40-Ar / 39-Ar Ages of Allende | B9: Icarus | C9: 42 | D9: 1980 | E9: Pages 380-405 | F9: C:\Essays\Geo_Dating\Neller\ | G9: Meteorite_Jessberger | H9: C:\Essays\Geo_Dating\Neller\Meteorite_Jessberger.pdf | I9: B1 | J9: AA_Index.xlsm | K9: Icarus, 1980, 42, Pages 380-405 | L9: Ar/Ar | M9: 7 | N9: 1871 | O9: 7460 | P9: 5589 | Q9: 2.987172635
A10: The Fossil LL6 Chondrite | B10: Geochimica et Cosmochimica Acta | C10: 74 | D10: 2010 | E10: Pages 1734-1747 | F10: C:\Essays\Geo_Dating\Neller\ | G10: Older_Than_Earth_3 | H10: C:\Essays\Geo_Dating\Neller\Older_Than_Earth_3.pdf | I10: B2 | J10: AA_Index.xlsm | K10: Geochimica et Cosmochimica Acta, 2010, 74, Pages 1734-1747 | L10: Ar/Ar | M10: 8 | N10: 164 | O10: 11250 | P10: 11086 | Q10: 67.59756098
A11: 40Ar-39Ar Dating of Pseudo Tachylytes | B11: Earth Planetary Science Letters | C11: 223 | D11: 2004 | E11: Pages 349-364 | F11: C:\Essays\Geo_Dating\Neller\ | G11: Older_Than_Earth_1 | H11: C:\Essays\Geo_Dating\Neller\Older_Than_Earth_1.pdf | I11: B6 | J11: AA_Index.xlsm | K11: Earth Planetary Science Letters, 2004, 223, Pages 349-364 | L11: Ar/Ar | M11: 9 | N11: 42 | O11: 7347 | P11: 7305 | Q11: 173.9285714
A12: Location of extraneous argon | B12: Chemical Geology | C12: 80 | D12: 1990 | E12: Pages 201-204 | F12: C:\Essays\Geo_Dating\Neller\ | G12: Maluski | H12: C:\Essays\Geo_Dating\Neller\Maluski.pdf | I12: B7 | J12: AA_Index.xlsm | K12: Chemical Geology, 1990, 80, Pages 201-204 | L12: Ar/Ar | M12: 10 | N12: 1700 | O12: 22090 | P12: 20390 | Q12: 11.99411765
A13: Excess Argon In Ultramafic Rocks | B13: Earth Planetary Science Letters | C13: 22 | D13: 1974 | E13: Pages 145-156 | F13: C:\Essays\Geo_Dating\Neller\ | G13: Ages_012 | H13: C:\Essays\Geo_Dating\Neller\Ages_012.pdf | I13: B8 | J13: AA_Index.xlsm | K13: Earth Planetary Science Letters, 1974, 22, Pages 145-156 | L13: Ar/Ar | M13: 11 | N13: 580 | O13: 9840 | P13: 9260 | Q13: 15.96551724
A14: Analyses of the chondritic meteorite Orvinio | B14: Meteoritics And Planetary Science | C14: 39 | D14: 2004 | E14: Pages 1475-1493 | F14: C:\Essays\Geo_Dating\Neller\ | G14: Meteorite_Grier | H14: C:\Essays\Geo_Dating\Neller\Meteorite_Grier.pdf | I14: C1 | J14: AA_Index.xlsm | K14: Meteoritics And Planetary Science, 2004, 39, Pages 1475-1493 | L14: Ar/Ar | M14: 12 | N14: 324 | O14: 17178 | P14: 16854 | Q14: 52.01851852
A15: Shocked meteorites: Argon-40-argon-39 | B15: Meteoritics And Planetary Science | C15: 32 | D15: 1997 | E15: Pages 647-670 | F15: C:\Essays\Geo_Dating\Neller\ | G15: Meteorite_Kunz | H15: C:\Essays\Geo_Dating\Neller\Meteorite_Kunz.pdf | I15: C2 | J15: AA_Index.xlsm | K15: Meteoritics And Planetary Science, 1997, 32, Pages 647-670 | L15: Ar/Ar | M15: 13 | N15: 506 | O15: 13348 | P15: 12842 | Q15: 25.37944664
A16: The Strangways impact structure | B16: Earth Planetary Science Letters | C16: 172 | D16: 1999 | E16: Pages 199–211 | F16: C:\Essays\Geo_Dating\Neller\ | G16: Older_Than_Earth_4 | H16: C:\Essays\Geo_Dating\Neller\Older_Than_Earth_4.pdf | I16: C3 | J16: AA_Index.xlsm | K16: Earth Planetary Science Letters, 1999, 172, Pages 199–211 | L16: Ar/Ar | M16: 14 | N16: 633 | O16: 8569 | P16: 7936 | Q16: 12.5371248
A17: 40Ar-39Ar Quartz Ages | B17: Geochimica et Cosmochimica Acta | C17: 70 | D17: 2006 | E17: Pages 2573-2575 | F17: C:\Essays\Geo_Dating\Neller\ | G17: Older_Than_Earth_9 | H17: C:\Essays\Geo_Dating\Neller\Older_Than_Earth_9.pdf | I17: C7 | J17: AA_Index.xlsm | K17: Geochimica et Cosmochimica Acta, 2006, 70, Pages 2573-2575 | L17: Ar/Ar | M17: 15 | N17: 1115 | O17: 9969 | P17: 8854 | Q17: 7.940807175
A18: The Peace River shocked M chondrite | B18: Geochimica et Cosmochimica Acta | C18: 52 | D18: 1988 | E18: Pages 2487-2499 | F18: C:\Essays\Geo_Dating\Neller\ | G18: Meteorite_MCCONVILL | H18: C:\Essays\Geo_Dating\Neller\Meteorite_MCCONVILL.pdf | I18: D0 | J18: AA_Index.xlsm | K18: Geochimica et Cosmochimica Acta, 1988, 52, Pages 2487-2499 | L18: Ar/Ar | M18: 16 | N18: 510 | O18: 7100 | P18: 6590 | Q18: 12.92156863
A19: History Of The Acapulco Meteorite | B19: Geochimica et Cosmochimica Acta | C19: 61 | D19: 1997 | E19: Pages 3477-3501 | F19: C:\Essays\Geo_Dating\Neller\ | G19: Meteorite_Pellas | H19: C:\Essays\Geo_Dating\Neller\Meteorite_Pellas.pdf | I19: D1 | J19: AA_Index.xlsm | K19: Geochimica et Cosmochimica Acta, 1997, 61, Pages 3477-3501 | L19: Ar/Ar | M19: 17 | N19: 3841 | O19: 11421 | P19: 7580 | Q19: 1.973444416
A20: Pressure Metamorphism in Northeast Japan | B20: Gondwana Research | C20: 8 | D20: 2005 | E20: Pages 617-621 | F20: C:\Essays\Geo_Dating\Neller\ | G20: Itaya | H20: C:\Essays\Geo_Dating\Neller\Itaya.pdf | I20: D7 | J20: AA_Index.xlsm | K20: Gondwana Research, 2005, 8, Pages 617-621 | L20: Ar/Ar | M20: 18 | N20: 7700 | O20: 16300 | P20: 8600 | Q20: 1.116883117
A21: 40 Ar/39ar Dating Of The Long Range Dikes | B21: Earth Planetary Science Letters | C21: 22 | D21: 1974 | E21: Pages 256-266 | F21: C:\Essays\Geo_Dating\Neller\ | G21: Ages_002 | H21: C:\Essays\Geo_Dating\Neller\Ages_002.pdf | I21: D8 | J21: AA_Index.xlsm | K21: Earth Planetary Science Letters, 1974, 22, Pages 256-266 | L21: Ar/Ar | M21: 19 | N21: 651 | O21: 18620 | P21: 17969 | Q21: 27.60215054
L22: Total | N22: =MIN(N3:N21) -> 42 | O22: =MAX(O3:O21) -> 22090 | P22: 22048 | Q22: 524.952381
L23: Method | M23: Citation | N23: Minimum | O23: Maximum | P23: Difference | Q23: Ratio
A24: Potassium: Argon Dating of Iron Meteorites | B24: Science | C24: 155 | D24: 1967 | E24: Pages 999-1000 | F24: C:\Essays\Geo_Dating\Neller\ | G24: Meteor_Rancitelli | H24: C:\Essays\Geo_Dating\Neller\Meteor_Rancitelli.pdf | I24: C6 | J24: AA_Index.xlsm | K24: Science, 1967, 155, Pages 999-1000 | L24: K/Ar | M24: 20 | N24: 4700 | O24: 10400 | P24: 5700 | Q24: 1.212765957
A25: Potassium-argon age of iron meteorites | B25: Geochimica et Cosmochimica Acta | C25: 15 | D25: 1958 | E25: Pages 40-50 | F25: C:\Essays\Geo_Dating\Neller\ | G25: Meteorite_Stoenner | H25: C:\Essays\Geo_Dating\Neller\Meteorite_Stoenner.pdf | I25: D4 | J25: AA_Index.xlsm | K25: Geochimica et Cosmochimica Acta, 1958, 15, Pages 40-50 | L25: K/Ar | M25: 21 | N25: 5300 | O25: 13000 | P25: 7700 | Q25: 1.452830189
A26: Ar/Ar dating of inclusions from IAB iron meteorites | B26: Geochimica et Cosmochimica Acta | C26: 43 | D26: 1979 | E26: Pages 1829-1840 | F26: C:\Essays\Geo_Dating\Neller\ | G26: Meteorite_NIEMEYER | H26: C:\Essays\Geo_Dating\Neller\Meteorite_NIEMEYER.pdf | I26: D6 | J26: AA_Index.xlsm | K26: Geochimica et Cosmochimica Acta, 1979, 43, Pages 1829-1840 | L26: K/Ar | M26: 22 | N26: 4460 | O26: 9500 | P26: 5040 | Q26: 1.130044843
A27: K/Ar Age Determinations of Iron Meteorites | B27: Earth Planetary Science Letters | C27: 4 | D27: 1968 | E27: Pages 84-88 | F27: C:\Essays\Geo_Dating\Neller\ | G27: Meteorite_Kaiser | H27: C:\Essays\Geo_Dating\Neller\Meteorite_Kaiser.pdf | I27: D9 | J27: AA_Index.xlsm | K27: Earth Planetary Science Letters, 1968, 4, Pages 84-88 | L27: K/Ar | M27: 23 | N27: 4200 | O27: 7400 | P27: 3200 | Q27: 0.7619047619
L28: Total | N28: =MIN(N24:N27) -> 4200 | O28: =MAX(O24:O27) -> 13000 | P28: =O28-N28 -> 8800 | Q28: =ABS(P28/N28) -> 2.095238095
L29: Method | M29: Citation | N29: Minimum | O29: Maximum | P29: Difference | Q29: Ratio
A30: Upper Crust in North-East Australia | B30: International Journal Earth Science | C30: 101 | D30: 2012 | E30: Pages 1091-1109 | F30: C:\Essays\Geo_Dating\Neller\ | G30: Older_Than_Earth_11 | H30: C:\Essays\Geo_Dating\Neller\Older_Than_Earth_11.pdf | I30: O_6 | J30: AB_Index.xlsm | K30: International Journal Earth Science, 2012, 101, Pages 1091-1109 | L30: Lu/Hf | M30: 27 | N30: -3220 | O30: 3870 | P30: 7090 | Q30: 2.201863354
A31: Barren Miocene granitoids | B31: Andean Geology | C31: 37 | D31: 2010 | E31: Pages 1-31 | F31: C:\Essays\Geo_Dating\Neller\ | G31: R1 | H31: C:\Essays\Geo_Dating\Neller\R1.pdf | I31: R1 | J31: AB_Index.xlsm | K31: Andean Geology, 2010, 37, Pages 1-31 | L31: Lu/Hf | M31: 68 | N31: -8800 | O31: -630 | P31: 8170 | Q31: 0.9284090909
A32: Mantle xenoliths from North Korea | B32: Geology | C32: 38 | D32: 2010 | E32: Pages 799-802 | F32: C:\Essays\Geo_Dating\Neller\ | G32: R4 | H32: C:\Essays\Geo_Dating\Neller\R4.pdf | I32: R4 | J32: AB_Index.xlsm | K32: Geology, 2010, 38, Pages 799-802 | L32: Lu/Hf | M32: 71 | N32: -1649 | O32: 8590 | P32: 10239 | Q32: 6.209217708
A33: The Kaapvaal Cratonic Lithospheric Mantle | B33: Journal Of Petrology | C33: 48 | D33: 2007 | E33: Pages 589-625 | F33: C:\Essays\Geo_Dating\Neller\ | G33: To_Old_01 | H33: C:\Essays\Geo_Dating\Neller\To_Old_01.pdf | I33: T_1 | J33: AB_Index.xlsm | K33: Journal Of Petrology, 2007, 48, Pages 589-625 | L33: Lu/Hf | M33: 86 | N33: -320 | O33: 1730 | P33: 2050 | Q33: 6.40625
A34: Multi-stage origin of Roberts Victor eclogites | B34: Lithos | C34: 142-143 | D34: 2012 | E34: Pages 161-181 | F34: C:\Essays\Geo_Dating\Neller\ | G34: Future_Ages_02 | H34: C:\Essays\Geo_Dating\Neller\Future_Ages_02.pdf | I34: F02 | J34: AC_Index.xlsm | K34: Lithos, 2012, 142-143, Pages 161-181 | L34: Lu/Hf | M34: 92 | N34: -12340 | O34: 19870 | P34: 32210 | Q34: 2.610210697
A35: Re–Os Evidence | B35: Chemical Geology | C35: 236 | D35: 2007 | E35: Pages 323-338 | F35: C:\Essays\Geo_Dating\Neller\ | G35: Future_Ages_12 | H35: C:\Essays\Geo_Dating\Neller\Future_Ages_12.pdf | I35: F12 | J35: AC_Index.xlsm | K35: Chemical Geology, 2007, 236, Pages 323-338 | L35: Lu/Hf | M35: 101 | N35: -30 | O35: 14650 | P35: 14680 | Q35: 489.3333333
A36: Central Asian Orogenic Belt | B36: Lithos | C36: 126 | D36: 2011 | E36: Pages 233-247 | F36: C:\Essays\Geo_Dating\Neller\ | G36: Future_Ages_13 | H36: C:\Essays\Geo_Dating\Neller\Future_Ages_13.pdf | I36: F13 | J36: AC_Index.xlsm | K36: Lithos, 2011, 126, Pages 233-247 | L36: Lu/Hf | M36: 104 | N36: -9270 | O36: 14650 | P36: 23920 | Q36: 2.580366775
L37: Total | N37: =MIN(N30:N36) -> -12340 | O37: =MAX(O30:O36) -> 19870 | P37: =O37-N37 -> 32210 | Q37: =ABS(P37/N37) -> 2.610210697
L38: Method | M38: Citation | N38: Minimum | O38: Maximum | P38: Difference | Q38: Ratio
A39: The Siberian Craton | B39: Geochimica et Cosmochimica Acta | C39: 59 | D39: 1995 | E39: Pages 959-977 | F39: C:\Essays\Geo_Dating\Neller\ | G39: Older_Than_Earth_6 | H39: C:\Essays\Geo_Dating\Neller\Older_Than_Earth_6.pdf | I39: A8 | J39: AA_Index.xlsm | K39: Geochimica et Cosmochimica Acta, 1995, 59, Pages 959-977 | L39: Nd/Sm | M39: 38 | N39: -1 | O39: 3200 | P39: 3201 | Q39: 3201
A40: African Peridotite Xenoliths | B40: Geochimica et Cosmochimica Acta | C40: 53 | D40: 1989 | E40: Pages 1583-1595 | F40: C:\Essays\Geo_Dating\Neller\ | G40: Older_Than_Earth_5 | H40: C:\Essays\Geo_Dating\Neller\Older_Than_Earth_5.pdf | I40: D2 | J40: AA_Index.xlsm | K40: Geochimica et Cosmochimica Acta, 1989, 53, Pages 1583-1595 | L40: Nd/Sm | M40: 26 | N40: 1070 | O40: 12600 | P40: 11530 | Q40: 10.77570093
A41: Upper Crust in North-East Australia | B41: International Journal Earth Science | C41: 101 | D41: 2012 | E41: Pages 1091-1109 | F41: ="C:\Essays\Geo_Dating\Neller\" -> C:\Essays\Geo_Dating\Neller\ | G41: Older_Than_Earth_11 | H41: ="C:\Essays\Geo_Dating\Neller\" & G41 & ".pdf" -> C:\Essays\Geo_Dating\Neller\Older_Than_Earth_11.pdf | I41: O_6 | J41: AB_Index.xlsm | K41: =B41 & ", " & D41 & ", " & C41 & ", " & E41 -> International Journal Earth Science, 2012, 101, Pages 1091-1109 | L41: Nd/Sm | M41: 27 | N41: -800 | O41: 9730 | P41: =O41-N41 -> 10530 | Q41: =ABS(P41/N41) -> 13.1625
A42: The Kaapvaal Cratonic Lithospheric Mantle | B42: Journal Of Petrology | C42: 48 | D42: 2007 | E42: Pages 589-625 | F42: C:\Essays\Geo_Dating\Neller\ | G42: To_Old_01 | H42: C:\Essays\Geo_Dating\Neller\To_Old_01.pdf | I42: T_1 | J42: AB_Index.xlsm | K42: Journal Of Petrology, 2007, 48, Pages 589-625 | L42: Nd/Sm | M42: 86 | N42: -2247 | O42: 96661 | P42: 98908 | Q42: 44.01780151
A43: Multi-stage origin of Roberts Victor eclogites | B43: Lithos | C43: 142-143 | D43: 2012 | E43: Pages 161-181 | F43: C:\Essays\Geo_Dating\Neller\ | G43: Future_Ages_02 | H43: C:\Essays\Geo_Dating\Neller\Future_Ages_02.pdf | I43: F02 | J43: AC_Index.xlsm | K43: Lithos, 2012, 142-143, Pages 161-181 | L43: Nd/Sm | M43: 92 | N43: -22420 | O43: 8100 | P43: 30520 | Q43: 1.361284567
A44: Lu-Hf Geochronology | B44: Chemical Geology | C44: 142 | D44: 1997 | E44: Pages 63-78 | F44: C:\Essays\Geo_Dating\Neller\ | G44: Future_Ages_08 | H44: C:\Essays\Geo_Dating\Neller\Future_Ages_08.pdf | I44: F08 | J44: AC_Index.xlsm | K44: Chemical Geology, 1997, 142, Pages 63-78 | L44: Nd/Sm | M44: 96 | N44: -659 | O44: 1137 | P44: 1796 | Q44: 2.725341426
A45: Multiple Metasomatic Events | B45: Lithos | C45: 112-S | D45: 2009 | E45: Pages 896-912 | F45: C:\Essays\Geo_Dating\Neller\ | G45: Future_Ages_11 | H45: C:\Essays\Geo_Dating\Neller\Future_Ages_11.pdf | I45: F11 | J45: AC_Index.xlsm | K45: Lithos, 2009, 112-S, Pages 896-912 | L45: Nd/Sm | M45: 98 | N45: -2192 | O45: 2013 | P45: 4205 | Q45: 1.918339416
A46: Re–Os Evidence | B46: Chemical Geology | C46: 236 | D46: 2007 | E46: Pages 323-338 | F46: C:\Essays\Geo_Dating\Neller\ | G46: Future_Ages_12 | H46: C:\Essays\Geo_Dating\Neller\Future_Ages_12.pdf | I46: F12 | J46: AC_Index.xlsm | K46: Chemical Geology, 2007, 236, Pages 323-338 | L46: Nd/Sm | M46: 101 | N46: 820 | O46: 5910 | P46: 5090 | Q46: 6.207317073
A47: Central Asian Orogenic Belt | B47: Lithos | C47: 126 | D47: 2011 | E47: Pages 233-247 | F47: C:\Essays\Geo_Dating\Neller\ | G47: Future_Ages_13 | H47: C:\Essays\Geo_Dating\Neller\Future_Ages_13.pdf | I47: F13 | J47: AC_Index.xlsm | K47: Lithos, 2011, 126, Pages 233-247 | L47: Nd/Sm | M47: 104 | N47: 490 | O47: 5910 | P47: 5420 | Q47: 11.06122449
L48: Total | N48: =MIN(N39:N47) -> -22420 | O48: =MAX(O39:O47) -> 96661 | P48: =O48-N48 -> 119081 | Q48: =ABS(P48/N48) -> 5.311373773
L49: Method | M49: Citation | N49: Minimum | O49: Maximum | P49: Difference | Q49: Ratio
A50: The Allende and Orgueil Chondrites | B50: Geochimica et Cosmochimica Acta | C50: 40 | D50: 1976 | E50: Pages 617-634 | F50: C:\Essays\Geo_Dating\Neller\ | G50: Meteorite_Tatsumoto | H50: C:\Essays\Geo_Dating\Neller\Meteorite_Tatsumoto.pdf | I50: C8 | J50: AA_Index.xlsm | K50: Geochimica et Cosmochimica Acta, 1976, 40, Pages 617-634 | L50: Pb/Pb | M50: 62 | N50: 4467 | O50: 4569 | P50: 102 | Q50: 0.02283411686
A51: Silica Mineral Formation | B51: Geochimica et Cosmochimica Acta | C51: 67 | D51: 2003 | E51: Pages 1145-1176 | F51: C:\Essays\Geo_Dating\Neller\ | G51: Amelin_G | H51: C:\Essays\Geo_Dating\Neller\Amelin_G.pdf | I51: E5 | J51: AA_Index.xlsm | K51: Geochimica et Cosmochimica Acta, 2003, 67, Pages 1145-1176 | L51: Pb/Pb | M51: 29 | N51: -3879 | O51: 11 | P51: 3890 | Q51: 1.002835782
L52: Total | N52: =MIN(N50:N51) -> -3879 | O52: =MAX(O50:O51) -> 4569 | P52: =O52-N52 -> 8448 | Q52: =ABS(P52/N52) -> 2.177880897
L53: Method | M53: Citation | N53: Minimum | O53: Maximum | P53: Difference | Q53: Ratio
A54: The Siberian Craton | B54: Geochimica et Cosmochimica Acta | C54: 59 | D54: 1995 | E54: Pages 959-977 | F54: C:\Essays\Geo_Dating\Neller\ | G54: Older_Than_Earth_6 | H54: C:\Essays\Geo_Dating\Neller\Older_Than_Earth_6.pdf | I54: A8 | J54: AA_Index.xlsm | K54: Geochimica et Cosmochimica Acta, 1995, 59, Pages 959-977 | L54: Rb/Sr | M54: 38 | N54: 5445 | O54: 12716 | P54: 7271 | Q54: 1.335353535
A55: Rb-Sr Ages Of Iron Meteorites | B55: Earth Planetary Science Letters | C55: 2 | D55: 1967 | E55: Pages 397-408 | F55: C:\Essays\Geo_Dating\Neller\ | G55: Meteorite_Burnett | H55: C:\Essays\Geo_Dating\Neller\Meteorite_Burnett.pdf | I55: A9 | J55: AA_Index.xlsm | K55: Earth Planetary Science Letters, 1967, 2, Pages 397-408 | L55: Rb/Sr | M55: 31 | N55: 3700 | O55: 9300 | P55: 5600 | Q55: 1.513513514
A56: Isotopic discrepancies in Black Hills, South Dakota | B56: Geochimica et Cosmochimica Acta | C56: 34 | D56: 1970 | E56: Pages 713-725 | F56: C:\Essays\Geo_Dating\Neller\ | G56: Riley | H56: C:\Essays\Geo_Dating\Neller\Riley.pdf | I56: B3 | J56: AA_Index.xlsm | K56: Geochimica et Cosmochimica Acta, 1970, 34, Pages 713-725 | L56: Rb/Sr | M56: 32 | N56: 1400 | O56: 900000 | P56: 898600 | Q56: 641.8571429
A57: Rhenium-187-Osmium-187 in iron meteorites | B57: Meteoritics And Planetary Science | C57: 33 | D57: 1998 | E57: Pages 647-653 | F57: C:\Essays\Geo_Dating\Neller\ | G57: Meteorite_Birck | H57: C:\Essays\Geo_Dating\Neller\Meteorite_Birck.pdf | I57: B9 | J57: AA_Index.xlsm | K57: Meteoritics And Planetary Science, 1998, 33, Pages 647-653 | L57: Rb/Sr | M57: 33 | N57: 1180 | O57: 13700 | P57: 12520 | Q57: 10.61016949
A58: Antarctic LL-chondrites | B58: Geochimica et Cosmochimica Acta | C58: 54 | D58: 1990 | E58: Pages 3509-3523 | F58: C:\Essays\Geo_Dating\Neller\ | G58: Meteorite_Okano | H58: C:\Essays\Geo_Dating\Neller\Meteorite_Okano.pdf | I58: C9 | J58: AA_Index.xlsm | K58: Geochimica et Cosmochimica Acta, 1990, 54, Pages 3509-3523 | L58: Rb/Sr | M58: 34 | N58: 3110 | O58: 7330 | P58: 4220 | Q58: 1.356913183
A59: North Western Wyoming Craton | B59: Earth Planetary Science Letters | C59: 126 | D59: 1994 | E59: Pages 457-472 | F59: C:\Essays\Geo_Dating\Neller\ | G59: Older_Than_Earth_2 | H59: C:\Essays\Geo_Dating\Neller\Older_Than_Earth_2.pdf | I59: D3 | J59: AA_Index.xlsm | K59: Earth Planetary Science Letters, 1994, 126, Pages 457-472 | L59: Rb/Sr | M59: 35 | N59: -3440 | O59: 15500 | P59: 18940 | Q59: 5.505813953
A60: Age and Origin of Base and Precious Metal | B60: Economic Geology | C60: 97 | D60: 2002 | E60: Pages 35-37 | F60: C:\Essays\Geo_Dating\Neller\ | G60: Ages_001 | H60: C:\Essays\Geo_Dating\Neller\Ages_001.pdf | I60: D5 | J60: AA_Index.xlsm | K60: Economic Geology, 2002, 97, Pages 35-37 | L60: Rb/Sr | M60: 36 | N60: 79 | O60: 23312 | P60: 23233 | Q60: 294.0886076
A61: Rb-Sr And Sm-Nd Studies | B61: Chemical Geology | C61: 52 | D61: 1985 | E61: Pages 249-271 | F61: C:\Essays\Geo_Dating\Neller\ | G61: To_Old_06 | H61: C:\Essays\Geo_Dating\Neller\To_Old_06.pdf | I61: T_3 | J61: AB_Index.xlsm | K61: Chemical Geology, 1985, 52, Pages 249-271 | L61: Rb/Sr | M61: 88 | N61: 267 | O61: 20000 | P61: 19733 | Q61: 73.90636704
A62: Norwegian Caledonides: An isotopic investigation | B62: Lithos | C62: 117 | D62: 2010 | E62: Pages 1-19 | F62: C:\Essays\Geo_Dating\Neller\ | G62: Future_Ages_01 | H62: C:\Essays\Geo_Dating\Neller\Future_Ages_01.pdf | I62: F01 | J62: AC_Index.xlsm | K62: Lithos, 2010, 117, Pages 1-19 | L62: Rb/Sr | M62: 89 | N62: -31071 | O62: 76523 | P62: 107594 | Q62: 3.462843166
A63: Multi-stage origin of Roberts Victor eclogites | B63: Lithos | C63: 142-143 | D63: 2012 | E63: Pages 161-181 | F63: C:\Essays\Geo_Dating\Neller\ | G63: Future_Ages_02 | H63: C:\Essays\Geo_Dating\Neller\Future_Ages_02.pdf | I63: F02 | J63: AC_Index.xlsm | K63: Lithos, 2012, 142-143, Pages 161-181 | L63: Rb/Sr | M63: 92 | N63: 32 | O63: 6874 | P63: 6842 | Q63: 213.8125
A64: Isotopic Disequilibrium | B64: Chemical Geology | C64: 162 | D64: 2000 | E64: Pages 169-191 | F64: C:\Essays\Geo_Dating\Neller\ | G64: Future_Ages_09 | H64: C:\Essays\Geo_Dating\Neller\Future_Ages_09.pdf | I64: F09 | J64: AC_Index.xlsm | K64: Chemical Geology, 2000, 162, Pages 169-191 | L64: Rb/Sr | M64: 97 | N64: -15 | O64: 201 | P64: 216 | Q64: 14.4
L65: Total | N65: =MIN(N54:N64) -> -31071 | O65: =MAX(O54:O64) -> 900000 | P65: =O65-N65 -> 931071 | Q65: =ABS(P65/N65) -> 29.96591677
L66: Method | N66: Minimum | O66: Maximum | P66: Difference | Q66: Ratio
A67: Canadian Cordillera lithosphere | B67: Chemical Geology | C67: 166 | D67: 2000 | E67: Pages 85-101 | F67: ="C:\Essays\Geo_Dating\Neller\" -> C:\Essays\Geo_Dating\Neller\ | G67: Older_Than_Earth_09 | H67: ="C:\Essays\Geo_Dating\Neller\" & G67 & ".pdf" -> C:\Essays\Geo_Dating\Neller\Older_Than_Earth_09.pdf | I67: O_5 | J67: AB_Index.xlsm | K67: =B67 & ", " & D67 & ", " & C67 & ", " & E67 -> Chemical Geology, 2000, 166, Pages 85-101 | L67: Re/Os | M67: 55 | N67: -1 | O67: 748 | P67: =O67-N67 -> 749 | Q67: =ABS(P67/N67) -> 749
A68: The Mamonia complex, Cyprus | B68: Chemical Geology | C68: 248 | D68: 2008 | E68: Pages 195-212 | F68: C:\Essays\Geo_Dating\Neller\ | G68: Future_Ages_14 | H68: C:\Essays\Geo_Dating\Neller\Future_Ages_14.pdf | I68: F14 | J68: AC_Index.xlsm | K68: Chemical Geology, 2008, 248, Pages 195-212 | L68: Re/Os | M68: 105 | N68: -1 | O68: 1550 | P68: 1551 | Q68: 1551
A69: The western North China Craton | B69: Lithos | C69: 149 | D69: 2012 | E69: Pages 100-114 | F69: C:\Essays\Geo_Dating\Neller\ | G69: RF | H69: C:\Essays\Geo_Dating\Neller\RF.pdf | I69: RF | J69: AB_Index.xlsm | K69: Lithos, 2012, 149, Pages 100-114 | L69: Re/Os | M69: 82 | N69: -1 | O69: 2240 | P69: 2241 | Q69: 2241
A70: The Study of Molybdenites | B70: Earth Planetary Science Letters | C70: 61 | D70: 1982 | E70: Pages 291-296 | F70: C:\Essays\Geo_Dating\Neller\ | G70: Older_Than_Earth_7 | H70: C:\Essays\Geo_Dating\Neller\Older_Than_Earth_7.pdf | I70: C0 | J70: AA_Index.xlsm | K70: Earth Planetary Science Letters, 1982, 61, Pages 291-296 | L70: Re/Os | M70: 39 | N70: 2700 | O70: 5800 | P70: 3100 | Q70: 1.148148148
A71: Reliable Re-Os Ages | B71: Geochimica et Cosmochimica Acta | C71: 57 | D71: 1993 | E71: Pages 1625-1628 | F71: C:\Essays\Geo_Dating\Neller\ | G71: Older_Than_Earth_8 | H71: C:\Essays\Geo_Dating\Neller\Older_Than_Earth_8.pdf | I71: C4 | J71: AA_Index.xlsm | K71: Geochimica et Cosmochimica Acta, 1993, 57, Pages 1625-1628 | L71: Re/Os | M71: 40 | N71: 2655 | O71: 6300 | P71: 3645 | Q71: 1.372881356
A72: Re-Os systematics of mantle xenoliths | B72: Geochimica et Cosmochimica Acta | C72: 63 | D72: 1999 | E72: Pages 1203-1217 | F72: C:\Essays\Geo_Dating\Neller\ | G72: Future_Ages_03 | H72: C:\Essays\Geo_Dating\Neller\Future_Ages_03.pdf | I72: F03 | J72: AC_Index.xlsm | K72: Geochimica et Cosmochimica Acta, 1999, 63, Pages 1203-1217 | L72: Re/Os | M72: 93 | N72: -1 | O72: 4000 | P72: 4001 | Q72: 4001
A73: Northern Canadian Cordillera Xenoliths | B73: Geochimica et Cosmochimica Acta | C73: 64 | D73: 2000 | E73: Pages 3061-3071 | F73: C:\Essays\Geo_Dating\Neller\ | G73: Future_Ages_17 | H73: C:\Essays\Geo_Dating\Neller\Future_Ages_17.pdf | I73: F17 | J73: AC_Index.xlsm | K73: Geochimica et Cosmochimica Acta, 2000, 64, Pages 3061-3071 | L73: Re/Os | M73: 107 | N73: -1 | O73: 4500 | P73: 4501 | Q73: 4501
A74: Single abyssal peridotite sulfides | B74: Earth Planetary Science Letters | C74: 359 | D74: 2012 | E74: Pages 279-293 | F74: C:\Essays\Geo_Dating\Neller\ | G74: RG | H74: C:\Essays\Geo_Dating\Neller\RG.pdf | I74: RG | J74: AB_Index.xlsm | K74: Earth Planetary Science Letters, 2012, 359, Pages 279-293 | L74: Re/Os | M74: 83 | N74: -2500 | O74: 2800 | P74: 5300 | Q74: 2.12
A75: The Age of Continental Roots | B75: Lithos | C75: 48 | D75: 1999 | E75: Pages 171-194 | F75: C:\Essays\Geo_Dating\Neller\ | G75: Greater_Than_Earth_05 | H75: C:\Essays\Geo_Dating\Neller\Greater_Than_Earth_05.pdf | I75: G5 | J75: AB_Index.xlsm | K75: Lithos, 1999, 48, Pages 171-194 | L75: Re/Os | M75: 51 | N75: 2780 | O75: 8380 | P75: 5600 | Q75: 2.014388489
A76: Re-Os systematics of peridotites | B76: Journal of the Geological Society | C76: 168 | D76: 2011 | E76: Pages 1201-1214 | F76: C:\Essays\Geo_Dating\Neller\ | G76: RA | H76: C:\Essays\Geo_Dating\Neller\RA.pdf | I76: RA | J76: AB_Index.xlsm | K76: Journal of the Geological Society, 2011, 168, Pages 1201-1214 | L76: Re/Os | M76: 77 | N76: -2860 | O76: 2820 | P76: 5680 | Q76: 1.986013986
A77: Lithospheric Mantle and Diamonds | B77: Lithos | C77: 112-S | D77: 2009 | E77: Pages 1120-1132 | F77: C:\Essays\Geo_Dating\Neller\ | G77: Older_Than_Earth_12 | H77: C:\Essays\Geo_Dating\Neller\Older_Than_Earth_12.pdf | I77: O_7 | J77: AB_Index.xlsm | K77: Lithos, 2009, 112-S, Pages 1120-1132 | L77: Re/Os | M77: 56 | N77: 1980 | O77: 7850 | P77: 5870 | Q77: 2.964646465
A78: Osmium Isotopes | B78: Chemical Geology | C78: 130 | D78: 1996 | E78: Pages 55-64 | F78: C:\Essays\Geo_Dating\Neller\ | G78: Greater_Than_Earth_01 | H78: C:\Essays\Geo_Dating\Neller\Greater_Than_Earth_01.pdf | I78: G1 | J78: AB_Index.xlsm | K78: Chemical Geology, 1996, 130, Pages 55-64 | L78: Re/Os | M78: 49 | N78: 90 | O78: 6900 | P78: 6810 | Q78: 75.66666667
A79: Principles of Re-Os Isotopic System | B79: Journal Petrology Society Korea | C79: 15 | D79: 2006 | E79: Pages 106-117 | F79: C:\Essays\Geo_Dating\Neller\ | G79: RE | H79: C:\Essays\Geo_Dating\Neller\RE.pdf | I79: RE | J79: AB_Index.xlsm | K79: Journal Petrology Society Korea, 2006, 15, Pages 106-117 | L79: Re/Os | M79: 81 | N79: -770 | O79: 6790 | P79: 7560 | Q79: 9.818181818
A80: Isotopic signatures in Zealandia | B80: Geology | D80: 2012 | E80: Pages 1-19 | F80: C:\Essays\Geo_Dating\Neller\ | G80: R3 | H80: C:\Essays\Geo_Dating\Neller\R3.pdf | I80: R3 | J80: AB_Index.xlsm | K80: Geology, 2012, , Pages 1-19 | L80: Re/Os | M80: 70 | N80: -6240 | O80: 3510 | P80: 9750 | Q80: 1.5625
A81: The Scottish margin of the North Atlantic Craton | B81: Precambrian Research | C81: 250 | D81: 2014 | E81: Pages 97-126 | F81: C:\Essays\Geo_Dating\Neller\ | G81: R8 | H81: C:\Essays\Geo_Dating\Neller\R8.pdf | I81: R8 | J81: AB_Index.xlsm | K81: Precambrian Research, 2014, 250, Pages 97-126 | L81: Re/Os | M81: 75 | N81: -7307 | O81: 3505 | P81: 10812 | Q81: 1.479677022
A82: Constraints on mantle processes and late | B82: University Berlin, Thesis | D82: 2014 | E82: Pages 1-168 | F82: C:\Essays\Geo_Dating\Neller\ | G82: RB | H82: C:\Essays\Geo_Dating\Neller\RB.pdf | I82: RB | J82: AB_Index.xlsm | K82: University Berlin, Thesis, 2014, , Pages 1-168 | L82: Re/Os | M82: 78 | N82: -9260 | O82: 1620 | P82: 10880 | Q82: 1.174946004
A83: The Siberian Craton | B83: Geochimica et Cosmochimica Acta | C83: 59 | D83: 1995 | E83: Pages 959-977 | F83: C:\Essays\Geo_Dating\Neller\ | G83: Older_Than_Earth_6 | H83: C:\Essays\Geo_Dating\Neller\Older_Than_Earth_6.pdf | I83: A8 | J83: AA_Index.xlsm | K83: Geochimica et Cosmochimica Acta, 1995, 59, Pages 959-977 | L83: Re/Os | M83: 38 | N83: -1 | O83: 11000 | P83: 11001 | Q83: 11001
A84: Re–Os Isotopic Results | B84: Chemical Geology | C84: 291 | D84: 2012 | E84: Pages 186–198 | F84: C:\Essays\Geo_Dating\Neller\ | G84: Future_Ages_006 | H84: C:\Essays\Geo_Dating\Neller\Future_Ages_006.pdf | I84: F3 | J84: AA_Index.xlsm | K84: Chemical Geology, 2012, 291, Pages 186–198 | L84: Re/Os | M84: 46 | N84: -675 | O84: 10430 | P84: 11105 | Q84: 16.45185185
A85: Hebi, North China Craton | B85: Chemical Geology | C85: 328 | D85: 2012 | E85: Pages 123–136 | F85: C:\Essays\Geo_Dating\Neller\ | G85: Future_Ages_005 | H85: C:\Essays\Geo_Dating\Neller\Future_Ages_005.pdf | I85: F2 | J85: AA_Index.xlsm | K85: Chemical Geology, 2012, 328, Pages 123–136 | L85: Re/Os | M85: 45 | N85: -3100 | O85: 8400 | P85: 11500 | Q85: 3.709677419
A86: Early Archean partial melting events | B86: University Bonn, Thesis | D86: 2004 | E86: Pages 1-132 | F86: C:\Essays\Geo_Dating\Neller\ | G86: R2 | H86: C:\Essays\Geo_Dating\Neller\R2.pdf | I86: R2 | J86: AB_Index.xlsm | K86: University Bonn, Thesis, 2004, , Pages 1-132 | L86: Re/Os | M86: 69 | N86: -8620 | O86: 3220 | P86: 11840 | Q86: 1.373549884
A87: Rocks From the Earth’s Mantle | B87: University Berlin, Thesis | D87: 2013 | E87: Pages 1-186 | F87: C:\Essays\Geo_Dating\Neller\ | G87: TRD_06 | H87: C:\Essays\Geo_Dating\Neller\TRD_06.pdf | I87: E9 | J87: AA_Index.xlsm | K87: University Berlin, Thesis, 2013, , Pages 1-186 | L87: Re/Os | M87: 44 | N87: -9260 | O87: 3200 | P87: 12460 | Q87: 1.345572354
A88: North Patagonian Mantle Xenoliths | B88: Journal of Petrology | C88: 57 | D88: 2016 | E88: Pages 685-715 | F88: C:\Essays\Geo_Dating\Neller\ | G88: R6 | H88: C:\Essays\Geo_Dating\Neller\R6.pdf | I88: R6 | J88: AB_Index.xlsm | K88: Journal of Petrology, 2016, 57, Pages 685-715 | L88: Re/Os | M88: 73 | N88: -2400 | O88: 10700 | P88: 13100 | Q88: 5.458333333
A89: A Paleozoic Convergent Plate | B89: Chemical Geology | C89: 208 | D89: 2004 | E89: Pages 141-156 | F89: C:\Essays\Geo_Dating\Neller\ | G89: Future_Ages_16 | H89: C:\Essays\Geo_Dating\Neller\Future_Ages_16.pdf | I89: F16 | J89: AC_Index.xlsm | K89: Chemical Geology, 2004, 208, Pages 141-156 | L89: Re/Os | M89: 106 | N89: -4300 | O89: 9100 | P89: 13400 | Q89: 3.11627907
A90: Re–Os Evidence | B90: Chemical Geology | C90: 236 | D90: 2007 | E90: Pages 323-338 | F90: C:\Essays\Geo_Dating\Neller\ | G90: Future_Ages_12 | H90: C:\Essays\Geo_Dating\Neller\Future_Ages_12.pdf | I90: F12 | J90: AC_Index.xlsm | K90: Chemical Geology, 2007, 236, Pages 323-338 | L90: Re/Os | M90: 101 | N90: -3830 | O90: 10620 | P90: 14450 | Q90: 3.772845953
A91: Central Asian Orogenic Belt | B91: Lithos | C91: 126 | D91: 2011 | E91: Pages 233-247 | F91: C:\Essays\Geo_Dating\Neller\ | G91: Future_Ages_13 | H91: C:\Essays\Geo_Dating\Neller\Future_Ages_13.pdf | I91: F13 | J91: AC_Index.xlsm | K91: Lithos, 2011, 126, Pages 233-247 | L91: Re/Os | M91: 104 | N91: -3830 | O91: 10620 | P91: 14450 | Q91: 3.772845953
A92: In situ Measurement of Re-Os Isotopes | B92: Geochimica et Cosmochimica Acta | C92: 66 | D92: 2002 | E92: Pages 1037-1050 | F92: C:\Essays\Geo_Dating\Neller\ | G92: Future_Ages_26 | H92: C:\Essays\Geo_Dating\Neller\Future_Ages_26.pdf | I92: F26 | J92: AC_Index.xlsm | K92: Geochimica et Cosmochimica Acta, 2002, 66, Pages 1037-1050 | L92: Re/Os | M92: 110 | N92: -7120 | O92: 7690 | P92: 14810 | Q92: 2.08005618
A93: The age of Lithospheric Mantle | B93: Chemical Geology | C93: 196 | D93: 2003 | E93: Pages 107–129 | F93: C:\Essays\Geo_Dating\Neller\ | G93: Future_Ages_008 | H93: C:\Essays\Geo_Dating\Neller\Future_Ages_008.pdf | I93: F5 | J93: AA_Index.xlsm | K93: Chemical Geology, 2003, 196, Pages 107–129 | L93: Re/Os | M93: 48 | N93: 150 | O93: 15410 | P93: 15260 | Q93: 101.7333333
A94: Stabilisation of Archaean lithosphere | B94: Earth Planetary Science Letters | C94: 134 | D94: 1995 | E94: Pages 341-357 | F94: C:\Essays\Geo_Dating\Neller\ | G94: Pearson | H94: C:\Essays\Geo_Dating\Neller\Pearson.pdf | I94: A7 | J94: AA_Index.xlsm | K94: Earth Planetary Science Letters, 1995, 134, Pages 341-357 | L94: Re/Os | M94: 37 | N94: 100 | O94: 15600 | P94: 15500 | Q94: 155
A95: Xenoliths from Yangyuan and Fansi | B95: Lithos | C95: 102 | D95: 2008 | E95: Pages 25-42 | F95: C:\Essays\Geo_Dating\Neller\ | G95: Future_Ages_19 | H95: C:\Essays\Geo_Dating\Neller\Future_Ages_19.pdf | I95: F19 | J95: AC_Index.xlsm | K95: Lithos, 2008, 102, Pages 25-42 | L95: Re/Os | M95: 108 | N95: -10800 | O95: 9700 | P95: 20500 | Q95: 1.898148148
A96: Formation of the North Atlantic Craton | B96: Chemical Geology | C96: 276 | D96: 2010 | E96: Pages 166-187 | F96: C:\Essays\Geo_Dating\Neller\ | G96: Future_Ages_21 | H96: C:\Essays\Geo_Dating\Neller\Future_Ages_21.pdf | I96: F21 | J96: AC_Index.xlsm | K96: Chemical Geology, 2010, 276, Pages 166-187 | L96: Re/Os | M96: 109 | N96: -14258 | O96: 6994 | P96: 21252 | Q96: 1.490531631
A97: Age and geochemistry of lithospheric mantle | B97: University Maryland, Thesis | D97: 2015 | E97: Pages 1-17 | F97: C:\Essays\Geo_Dating\Neller\ | G97: R7 | H97: C:\Essays\Geo_Dating\Neller\R7.pdf | I97: R7 | J97: AB_Index.xlsm | K97: University Maryland, Thesis, 2015, , Pages 1-17 | L97: Re/Os | M97: 74 | N97: -2080 | O97: 21500 | P97: 23580 | Q97: 11.33653846
A98: The Raobazhai peridotite massifs | B98: Chemical Geology | C98: 268 | D98: 2009 | E98: Pages 1-14 | F98: C:\Essays\Geo_Dating\Neller\ | G98: Future_Ages_04 | H98: C:\Essays\Geo_Dating\Neller\Future_Ages_04.pdf | I98: F04 | J98: AC_Index.xlsm | K98: Chemical Geology, 2009, 268, Pages 1-14 | L98: Re/Os | M98: 94 | N98: -27744 | O98: 3094 | P98: 30838 | Q98: 1.111519608
A99: Lithospheric Mantle Evolution | B99: Lithos | C99: 125 | D99: 2011 | E99: Pages 405–422 | F99: ="C:\Essays\Geo_Dating\Neller\" -> C:\Essays\Geo_Dating\Neller\ | G99: Older_Than_Earth_07 | H99: C:\Essays\Geo_Dating\Neller\Older_Than_Earth_07.pdf | I99: F4 | J99: AA_Index.xlsm | K99: Lithos, 2011, 125, Pages 405–422 | L99: Re/Os | M99: 47 | N99: -24710 | O99: 8620 | P99: 33330 | Q99: 1.348846621
A100: The Kaapvaal Cratonic Lithospheric Mantle | B100: Journal Of Petrology | C100: 48 | D100: 2007 | E100: Pages 589-625 | F100: C:\Essays\Geo_Dating\Neller\ | G100: To_Old_01 | H100: C:\Essays\Geo_Dating\Neller\To_Old_01.pdf | I100: T_1 | J100: AB_Index.xlsm | K100: Journal Of Petrology, 2007, 48, Pages 589-625 | L100: Re/Os | M100: 86 | N100: 600 | O100: 34600 | P100: 34000 | Q100: 56.66666667
A101: Rhenium/Osmium Geochronology of Oxide Minerals | B101: University Alberta, Thesis | D101: 2010 | E101: Pages 1-152 | F101: C:\Essays\Geo_Dating\Neller\ | G101: TRD_05 | H101: C:\Essays\Geo_Dating\Neller\TRD_05.pdf | I101: E8 | J101: AA_Index.xlsm | K101: University Alberta, Thesis, 2010, , Pages 1-152 | L101: Re/Os | M101: 43 | N101: -3700 | O101: 38190 | P101: 41890 | Q101: 11.32162162
A102: Diamond Formation Episodes | B102: Contributions Mineral Petrology | C102: 157 | D102: 2009 | E102: Pages 525–540 | F102: C:\Essays\Geo_Dating\Neller\ | G102: Older_Than_Earth_03 | H102: C:\Essays\Geo_Dating\Neller\Older_Than_Earth_03.pdf | I102: O_3 | J102: AB_Index.xlsm | K102: Contributions Mineral Petrology, 2009, 157, Pages 525–540 | L102: Re/Os | M102: 53 | N102: -51000 | O102: 10300 | P102: 61300 | Q102: 1.201960784
A103: In Situ Analysis of Sulphides | B103: Earth Planetary Science Letters | C103: 203 | D103: 2002 | E103: Pages 651-663 | F103: C:\Essays\Geo_Dating\Neller\ | G103: To_Old_03 | H103: C:\Essays\Geo_Dating\Neller\To_Old_03.pdf | I103: T_2 | J103: AB_Index.xlsm | K103: Earth Planetary Science Letters, 2002, 203, Pages 651-663 | L103: Re/Os | M103: 87 | N103: -32000 | O103: 34000 | P103: 66000 | Q103: 2.0625
A104: Xenoliths from the Bohemian Massif | B104: Chemical Geology | C104: 430 | D104: 2016 | E104: Pages 90-107 | F104: C:\Essays\Geo_Dating\Neller\ | G104: R9 | H104: C:\Essays\Geo_Dating\Neller\R9.pdf | I104: R9 | J104: AB_Index.xlsm | K104: Chemical Geology, 2016, 430, Pages 90-107 | L104: Re/Os | M104: 76 | N104: -1 | O104: 68000 | P104: 68001 | Q104: 68001
A105: The North China Craton | B105: University Maryland, Thesis | D105: 2011 | E105: Pages 1-238 | F105: C:\Essays\Geo_Dating\Neller\ | G105: TRD_04 | H105: C:\Essays\Geo_Dating\Neller\TRD_04.pdf | I105: E7 | J105: AA_Index.xlsm | K105: University Maryland, Thesis, 2011, , Pages 1-238 | L105: Re/Os | M105: 42 | N105: -30000 | O105: 40000 | P105: 70000 | Q105: 2.333333333
A106: Archean Man Shield, West Africa | B106: Precambrian Research | C106: 118 | D106: 2002 | E106: Pages 267-283 | F106: C:\Essays\Geo_Dating\Neller\ | G106: Older_Than_Earth_05 | H106: C:\Essays\Geo_Dating\Neller\Older_Than_Earth_05.pdf | I106: O_2 | J106: AB_Index.xlsm | K106: Precambrian Research, 2002, 118, Pages 267-283 | L106: Re/Os | M106: 52 | N106: 1390 | O106: 77160 | P106: 75770 | Q106: 54.51079137
A107: Evolution of the South China Block | B107: Geochimica et Cosmochimica Acta | C107: 73 | D107: 2009 | E107: Pages 4531–4557 | F107: C:\Essays\Geo_Dating\Neller\ | G107: TRD_03 | H107: C:\Essays\Geo_Dating\Neller\TRD_03.pdf | I107: E6 | J107: AA_Index.xlsm | K107: Geochimica et Cosmochimica Acta, 2009, 73, Pages 4531–4557 | L107: Re/Os | M107: 41 | N107: -59500 | O107: 25900 | P107: 85400 | Q107: 1.435294118
A108: Re–Os isotope constraints | B108: Earth and Planetary Science Letters | C108: 268 | D108: 2008 | E108: Pages 89-101 | F108: C:\Essays\Geo_Dating\Neller\ | G108: EPSL_268.89 | H108: C:\Essays\Geo_Dating\Neller\EPSL_268.89.pdf | I108: F01 | J108: AD_Index.xlsm | K108: Earth and Planetary Science Letters, 2008, 268, Pages 89-101 | L108: Re/Os | M108: 111 | N108: 30 | O108: 52250 | P108: =O108-N108 -> 52220 | Q108: =ABS(P108/N108) -> 1740.666667
A109: Highly siderophile element fractionations | B109: Earth and Planetary Science Letters | C109: 297 | D109: 2010 | E109: Pages 287–297 | F109: C:\Essays\Geo_Dating\Neller\ | G109: EPSL_297.287 | H109: C:\Essays\Geo_Dating\Neller\EPSL_297.287.pdf | I109: F02 | J109: AD_Index.xlsm | K109: Earth and Planetary Science Letters, 2010, 297, Pages 287–297 | L109: Re/Os | M109: 112 | N109: -8600 | O109: 40000 | P109: 48600 | Q109: 5.651162791
A110: Archean mantle residues | B110: Earth and Planetary Science Letters | C110: 424 | D110: 2015 | E110: Pages 109-118 | F110: C:\Essays\Geo_Dating\Neller\ | G110: EPSL_424.109 | H110: C:\Essays\Geo_Dating\Neller\EPSL_424.109.pdf | I110: F03 | J110: AD_Index.xlsm | K110: Earth and Planetary Science Letters, 2015, 424, Pages 109-118 | L110: Re/Os | M110: 113 | N110: -11800 | O110: 27500 | P110: 39300 | Q110: 3.330508475
A111: Xenoliths from the Obnazhennaya kimberlite | B111: Earth and Planetary Science Letters | C111: 428 | D111: 2015 | E111: Pages 108-119 | F111: C:\Essays\Geo_Dating\Neller\ | G111: EPSL_428.108 | H111: C:\Essays\Geo_Dating\Neller\EPSL_428.108.pdf | I111: F04 | J111: AD_Index.xlsm | K111: Earth and Planetary Science Letters, 2015, 428, Pages 108-119 | L111: Re/Os | M111: 114 | N111: -4040 | O111: 8520 | P111: 12560 | Q111: 3.108910891
A112: Osmium mass balance in peridotite | B112: Geochimica et Cosmochimica Acta | C112: 75 | D112: 2011 | E112: Pages 5574-5596 | F112: C:\Essays\Geo_Dating\Neller\ | G112: GCA_075.5574 | H112: C:\Essays\Geo_Dating\Neller\GCA_075.5574.pdf | I112: F05 | J112: AD_Index.xlsm | K112: Geochimica et Cosmochimica Acta, 2011, 75, Pages 5574-5596 | L112: Re/Os | M112: 115 | N112: -1 | O112: 1640 | P112: 1641 | Q112: 1641
A113: Mantle keel beneath West Greenland | B113: Geochimica et Cosmochimica Acta | C113: 203 | D113: 2017 | E113: Pages 37-53 | F113: C:\Essays\Geo_Dating\Neller\ | G113: GCA_203.37 | H113: C:\Essays\Geo_Dating\Neller\GCA_203.37.pdf | I113: F06 | J113: AD_Index.xlsm | K113: Geochimica et Cosmochimica Acta, 2017, 203, Pages 37-53 | L113: Re/Os | M113: 116 | N113: -11275 | O113: 3426 | P113: 14701 | Q113: 1.303858093
A114: Re/Os Isotopes of Sulfides | B114: Lithos | C114: 102 | D114: 2008 | E114: Pages 43-64 | F114: C:\Essays\Geo_Dating\Neller\ | G114: Older_Than_Earth_04 | H114: C:\Essays\Geo_Dating\Neller\Older_Than_Earth_04.pdf | I114: O_4 | J114: AB_Index.xlsm | K114: Lithos, 2008, 102, Pages 43-64 | L114: Re/Os | M114: 54 | N114: -47693 | O114: 39229 | P114: 86922 | Q114: 1.822531608
A115: Re-Os Geochronology of Oxide Minerals | B115: University Alberta, Thesis | D115: 2010 | E115: Pages 1-153 | F115: C:\Essays\Geo_Dating\Neller\ | G115: R5 | H115: C:\Essays\Geo_Dating\Neller\R5.pdf | I115: R5 | J115: AB_Index.xlsm | K115: University Alberta, Thesis, 2010, , Pages 1-153 | L115: Re/Os | M115: 72 | N115: =MIN(N96:N114) -> -59500 | O115: 38190 | P115: 97690 | Q115: 1.641848739
A116: The Taitao Ophiolite, Southern Chile | B116: University Maryland, Thesis | D116: 2007 | E116: Pages 1-117 | F116: C:\Essays\Geo_Dating\Neller\ | G116: RC | H116: C:\Essays\Geo_Dating\Neller\RC.pdf | I116: RC | J116: AB_Index.xlsm | K116: University Maryland, Thesis, 2007, , Pages 1-117 | L116: Re/Os | M116: 79 | N116: -111000 | O116: 1500 | P116: 112500 | Q116: 1.013513514
A117: In situ Re–Os evidence | B117: Journal of Asian Earth Sciences | C117: 62 | D117: 2013 | E117: Pages 37-50 | F117: C:\Essays\Geo_Dating\Neller\ | G117: Future_Ages_07 | H117: C:\Essays\Geo_Dating\Neller\Future_Ages_07.pdf | I117: F07 | J117: AC_Index.xlsm | K117: Journal of Asian Earth Sciences, 2013, 62, Pages 37-50 | L117: Re/Os | M117: 95 | N117: -79140 | O117: 144550 | P117: 223690 | Q117: 2.826509982
A118: Evolution Beneath the Kaapvaal Craton | B118: Chemical Geology | C118: 208 | D118: 2004 | E118: Pages 89-118 | F118: ="C:\Essays\Geo_Dating\Neller\" -> C:\Essays\Geo_Dating\Neller\ | G118: Greater_Than_Earth_02 | H118: C:\Essays\Geo_Dating\Neller\Greater_Than_Earth_02.pdf | I118: G2 | J118: AB_Index.xlsm | K118: Chemical Geology, 2004, 208, Pages 89-118 | L118: Re/Os | M118: 50 | N118: -279000 | O118: 79000 | P118: 358000 | Q118: 1.283154122
A119: Samarium/Neodymium geochronology | B119: University Boston, Thesis | D119: 2014 | E119: Pages 1-207 | F119: ="C:\Essays\Geo_Dating\Neller\" -> C:\Essays\Geo_Dating\Neller\ | G119: RD | H119: C:\Essays\Geo_Dating\Neller\RD.pdf | I119: RD | J119: AB_Index.xlsm | K119: University Boston, Thesis, 2014, , Pages 1-207 | L119: Re/Os | M119: 80 | N119: -15000001 | O119: 14999999 | P119: 30000000 | Q119: 1.999999867
L120: Total | N120: =MIN(N67:N119) -> -15000001 | O120: =MAX(O67:O119) -> 14999999 | P120: 30000000 | Q120: 1.999999867
L121: Method | N121: Minimum | O121: Maximum | P121: Difference | Q121: Ratio
A122: Three Apollo 14 Basalts | B122: Earth Planetary Science Letters | C122: 14 | D122: 1972 | E122: Pages 281-304. | F122: ="C:\Essays\Geo_Dating\Neller\" -> C:\Essays\Geo_Dating\Neller\ | G122: Wasserburg | H122: ="C:\Essays\Geo_Dating\Neller\" & G122 & ".pdf" -> C:\Essays\Geo_Dating\Neller\Wasserburg.pdf | I122: B4 | J122: AA_Index.xlsm | K122: =B122 & ", " & D122 & ", " & C122 & ", " & E122 -> Earth Planetary Science Letters, 1972, 14, Pages 281-304. | L122: Th/Pb | M122: 57 | N122: 4010 | O122: 28140 | P122: =O122-N122 -> 24130 | Q122: =ABS(P122/N122) -> 6.017456359
A123: The Allende and Orgueil Chondrites | B123: Geochimica et Cosmochimica Acta | C123: 40 | D123: 1976 | E123: Pages 617-634 | F123: C:\Essays\Geo_Dating\Neller\ | G123: Meteorite_Tatsumoto | H123: C:\Essays\Geo_Dating\Neller\Meteorite_Tatsumoto.pdf | I123: C8 | J123: AA_Index.xlsm | K123: Geochimica et Cosmochimica Acta, 1976, 40, Pages 617-634 | L123: Th/Pb | M123: 62 | N123: 4810 | O123: 16490 | P123: 11680 | Q123: 2.428274428
A124: Natural Radionuclide Mobility | B124: Geochimica et Cosmochimica Acta | C124: 72 | D124: 2008 | E124: Pages 2067-2089 | F124: C:\Essays\Geo_Dating\Neller\ | G124: Amelin_F | H124: C:\Essays\Geo_Dating\Neller\Amelin_F.pdf | I124: E2 | J124: AA_Index.xlsm | K124: Geochimica et Cosmochimica Acta, 2008, 72, Pages 2067-2089 | L124: Th/Pb | M124: 59 | N124: 4 | O124: 82030 | P124: 82026 | Q124: 20506.5
A125: Natural Radionuclide Mobility | B125: Geochimica et Cosmochimica Acta | C125: 72 | D125: 2008 | E125: Pages 2067-2089 | F125: C:\Essays\Geo_Dating\Neller\ | G125: Amelin_F | H125: C:\Essays\Geo_Dating\Neller\Amelin_F.pdf | I125: E2 | J125: AA_Index.xlsm | K125: =B125 & ", " & D125 & ", " & C125 & ", " & E125 -> Geochimica et Cosmochimica Acta, 2008, 72, Pages 2067-2089 | L125: Th/Pb | M125: 59 | N125: -98470 | O125: 262350 | P125: =O125-N125 -> 360820 | Q125: =ABS(P125/N125) -> 3.664263227
L126: Total | N126: =MIN(N122:N125) -> -98470 | O126: =MAX(O122:O125) -> 262350 | P126: =O126-N126 -> 360820 | Q126: =ABS(P126/N126) -> 3.664263227
L127: Method | N127: Minimum | O127: Maximum | P127: Difference | Q127: Ratio
A128: Isotopic Lead Ages Of Meteorites | B128: Earth Planetary Science Letters | C128: 19 | D128: 1973 | E128: Pages 321-329 | F128: C:\Essays\Geo_Dating\Neller\ | G128: Pb-206_14 | H128: C:\Essays\Geo_Dating\Neller\Pb-206_14.pdf | I128: B5 | J128: AA_Index.xlsm | K128: Earth Planetary Science Letters, 1973, 19, Pages 321-329 | L128: U/Pb | M128: 60 | N128: 4126 | O128: 8615 | P128: 4489 | Q128: 1.087978672
A129: The Allende and Orgueil Chondrites | B129: Geochimica et Cosmochimica Acta | C129: 40 | D129: 1976 | E129: Pages 617-634 | F129: C:\Essays\Geo_Dating\Neller\ | G129: Meteorite_Tatsumoto | H129: C:\Essays\Geo_Dating\Neller\Meteorite_Tatsumoto.pdf | I129: C8 | J129: AA_Index.xlsm | K129: Geochimica et Cosmochimica Acta, 1976, 40, Pages 617-634 | L129: U/Pb | M129: 62 | N129: 4920 | O129: 9860 | P129: 4940 | Q129: 1.004065041
A130: The Allende and Orgueil Chondrites | B130: Geochimica et Cosmochimica Acta | C130: 40 | D130: 1976 | E130: Pages 617-634 | F130: C:\Essays\Geo_Dating\Neller\ | G130: Meteorite_Tatsumoto | H130: C:\Essays\Geo_Dating\Neller\Meteorite_Tatsumoto.pdf | I130: C8 | J130: AA_Index.xlsm | K130: Geochimica et Cosmochimica Acta, 1976, 40, Pages 617-634 | L130: U/Pb | M130: 62 | N130: 4700 | O130: 5780 | P130: 1080 | Q130: 0.229787234
A131: U-Pb ages of angrites | B131: Geochimica et Cosmochimica Acta | C131: 72 | D131: 2008 | E131: Pages 221-232 | F131: C:\Essays\Geo_Dating\Neller\ | G131: Amelin_D | H131: C:\Essays\Geo_Dating\Neller\Amelin_D.pdf | I131: E0 | J131: AA_Index.xlsm | K131: Geochimica et Cosmochimica Acta, 2008, 72, Pages 221-232 | L131: U/Pb | M131: 63 | N131: 3727.8 | O131: 6625 | P131: 2897.2 | Q131: 0.7771876174
A132: Pb isotopic age of the Allende chondrules | B132: Meteoritics And Planetary Science | C132: 42 | D132: 2007 | E132: Pages 1321-1335 | F132: C:\Essays\Geo_Dating\Neller\ | G132: Amelin_C | H132: C:\Essays\Geo_Dating\Neller\Amelin_C.pdf | I132: E3 | J132: AA_Index.xlsm | K132: Meteoritics And Planetary Science, 2007, 42, Pages 1321-1335 | L132: U/Pb | M132: 64 | N132: 1799 | O132: 10066 | P132: 8267 | Q132: 4.595330739
A133: Precise U-Pb dating | B133: Geochimica et Cosmochimica Acta | C133: 69 | D133: 2005 | E133: Pages 505-518 | F133: C:\Essays\Geo_Dating\Neller\ | G133: Amelin_A | H133: C:\Essays\Geo_Dating\Neller\Amelin_A.pdf | I133: E4 | J133: AA_Index.xlsm | K133: Geochimica et Cosmochimica Acta, 2005, 69, Pages 505-518 | L133: U/Pb | M133: 65 | N133: 4249 | O133: 6473 | P133: 2224 | Q133: 0.5234172747
L134: Total | N134: =MIN(N128:N133) -> 1799 | O134: =MAX(O128:O133) -> 10066 | P134: =O134-N134 -> 8267 | Q134: =ABS(P134/N134) -> 4.595330739
L135: Method | N135: Minimum | O135: Maximum | P135: Difference | Q135: Ratio
A136: Single grain (U-Th)/He ages, Acapulco meteorite | B136: Earth Planetary Science Letters | C136: 209 | D136: 2003 | E136: Pages 323-336 | F136: C:\Essays\Geo_Dating\Neller\ | G136: Meteorite_Kyoungwon | H136: C:\Essays\Geo_Dating\Neller\Meteorite_Kyoungwon.pdf | I136: C5 | J136: AA_Index.xlsm | K136: Earth Planetary Science Letters, 2003, 209, Pages 323-336 | L136: U/Th | M136: 66 | N136: 1452 | O136: 4909 | P136: 3457 | Q136: 2.380853994
A137: Totals | B137: Totals | F137: C:\Essays\Geo_Dating\Neller\ | G137: Origin | H137: C:\Essays\Geo_Dating\Neller\Origin.pdf
L138: Method | M138: Citation | N138: Minimum | O138: Maximum | P138: Difference | Q138: Ratio
L139: Pb/Pb | M139: 62 | N139: 4467 | O139: 4569 | P139: =O139-N139 -> 102 | Q139: =ABS(P139/N139) -> 0.02283411686
L140: Pb/Pb | M140: 29 | N140: -3879 | O140: 11 | P140: 3890 | Q140: 1.002835782

Sheet Searches
A1: Page | B1: Google Advanced Search | J1: ID | K1: Supplementary Data Files
A2: 0 | B2: Lutetium Hafnium "TRD" filetype:pdf | J2: A | K2: GCA 53 (1989) 1583–1595
B3: Google Advanced Search | J3: B | K3: GCA 72 (2008) 221–232
A4: 0 | B4: Lutetium Hafnium "TDM" filetype:pdf | J4: C | K4: GCA 72 (2008) 2067–2089
B5: Google Advanced Search | J5: D | K5: GCA 73 (2009) 5212–5223
A6: 0 | B6: Lutetium Hafnium "TMA" filetype:pdf | J6: E | K6: GCA 73 (2009) 5793–5819
B7: Google Advanced Search | J7: F | K7: GCA 74 (2010) 1734–1747
A8: 0 | B8: Lutetium Hafnium "CHUR" filetype:pdf | J8: G | K8: GCA 74 (2010) 5368–5381
J9: H | K9: GCA 75 (2011) 4456–4475
J10: J | K10: Lithos 112S (2009) 1120–1132
A11: Page | B11: Google Advanced Search | E11: TRD | F11: Rhenium depletion ages | J11: K | K11: Lithos 126 (2011) 233–247
A12: 5 | B12: Rhenium Osmium "TRD" filetype:pdf | E12: TDM | F12: Depleted model age | J12: L | K12: Lithos 149 (2012) 100–114
B13: Google Advanced Search | E13: TMA | F13: Mantle extraction ages | J13: M | K13: Chemical Geology 276 (2010) 166–187
A14: 13.6 | B14: Rhenium Osmium "TDM" filetype:pdf | E14: CHUR | F14: Chondritic Uniform Reservoir | J14: N | K14: Chemical Geology 430 (2016) 90–107
B15: Google Advanced Search | J15: P | K15: EPSL 223 (2004) 349–364
A16: 3.5 | B16: Rhenium Osmium "TMA" filetype:pdf | J16: Q | K16: EPSL 22 (1974) 145-156
B17: Google Advanced Search | J17: R | K17: Int J Earth Sci (Geol Rundsch) (2012) 101:1091–1109
A18: 12 | B18: Rhenium Osmium "CHUR" filetype:pdf | J18: S | K18: Geology, 2010, 38[9]:799–802
B19: Google Advanced Search | J19: T | K19: Norsk Geologisk Tidsskrift, 1964, 44:183-196
A20: 1 | B20: Rhenium "negative age" filetype:pdf | J20: U | K20: Journal Geophysical Research, 1962, 67:2998-2999
B21: Google Advanced Search | J21: V | K21: TRD
A22: 0 | B22: Rhenium "future age" filetype:pdf | J22: W | K22: TDM
J23: X | K23: TRD
J24: Y | K24: CHUR
A25: Page | B25: Google Advanced Search
A26: 0 | B26: Rubidium Strontium "TRD" filetype:pdf
A27: ` | B27: Google Advanced Search
A28: 0 | B28: Rubidium Strontium "TDM" filetype:pdf
B29: Google Advanced Search
A30: 0 | B30: Rubidium Strontium "TMA" filetype:pdf
B31: Google Advanced Search | K31: Andean Geology, 2010, 37, Pages 1-31
A32: 0 | B32: Rubidium Strontium "CHUR" filetype:pdf | K32: Chemical Geology, 1985, 52, Pages 249-271
K33: Chemical Geology, 1990, 80, Pages 201-204
K34: Chemical Geology, 1996, 130, Pages 55-64
A35: Page | B35: Google Advanced Search | K35: Chemical Geology, 1997, 142, Pages 63-78
A36: 0 | B36: Neodymium Samarium "TRD" filetype:pdf | K36: Chemical Geology, 2000, 162, Pages 169-191
B37: Google Advanced Search | K37: Chemical Geology, 2000, 166, Pages 85-101
A38: 4 | B38: Neodymium Samarium "TDM" filetype:pdf | K38: Chemical Geology, 2003, 196, Pages 107–129
B39: Google Advanced Search | K39: Chemical Geology, 2004, 208, Pages 141-156
A40: 0 | B40: Neodymium Samarium "TMA" filetype:pdf | K40: Chemical Geology, 2004, 208, Pages 89-118
B41: Google Advanced Search | K41: Chemical Geology, 2007, 236, Pages 323-338
A42: 0 | B42: Neodymium Samarium "CHUR" filetype:pdf | K42: Chemical Geology, 2007, 236, Pages 323-338
K43: Chemical Geology, 2007, 236, Pages 323-338
K44: Chemical Geology, 2008, 248, Pages 195-212
K45: Chemical Geology, 2009, 268, Pages 1-14
K46: Chemical Geology, 2010, 276, Pages 166-187
K47: Chemical Geology, 2012, 291, Pages 186–198
K48: Chemical Geology, 2012, 328, Pages 123–136
K49: Chemical Geology, 2016, 430, Pages 90-107
K50: Contributions Mineral Petrology, 2009, 157, Pages 525–540
K51: Earth Planetary Science Letters, 1967, 2, Pages 397-408
K52: Earth Planetary Science Letters, 1968, 4, Pages 84-88
K53: Earth Planetary Science Letters, 1972, 14, Pages 281-304.
K54: Earth Planetary Science Letters, 1973, 19, Pages 321-329
K55: Earth Planetary Science Letters, 1974, 22, Pages 145-156
K56: Earth Planetary Science Letters, 1974, 22, Pages 256-266
K57: Earth Planetary Science Letters, 1982, 61, Pages 291-296
K58: Earth Planetary Science Letters, 1983, 62, Pages 132-146
K59: Earth Planetary Science Letters, 1994, 126, Pages 457-472
K60: Earth Planetary Science Letters, 1995, 134, Pages 341-357
K61: Earth Planetary Science Letters, 1999, 172, Pages 199–211
K62: Earth Planetary Science Letters, 2002, 203, Pages 651-663
K63: Earth Planetary Science Letters, 2003, 209, Pages 323-336
K64: Earth Planetary Science Letters, 2004, 223, Pages 349-364
K65: Earth Planetary Science Letters, 2012, 359, Pages 279-293
K66: Economic Geology, 2002, 97, Pages 35-37
K67: Geochimica et Cosmochimica Acta, 1958, 15, Pages 40-50
K68: Geochimica et Cosmochimica Acta, 1970, 34, Pages 713-725
K69: Geochimica et Cosmochimica Acta, 1976, 40, Pages 617-634
K70: Geochimica et Cosmochimica Acta, 1976, 40, Pages 617-634
K71: Geochimica et Cosmochimica Acta, 1976, 40, Pages 617-634
K72: Geochimica et Cosmochimica Acta, 1976, 40, Pages 617-634
K73: Geochimica et Cosmochimica Acta, 1979, 43, Pages 1829-1840
K74: Geochimica et Cosmochimica Acta, 1980, 44, Pages 1667-1682
K75: Geochimica et Cosmochimica Acta, 1988, 52, Pages 2487-2499
K76: Geochimica et Cosmochimica Acta, 1989, 53, Pages 1583-1595
K77: Geochimica et Cosmochimica Acta, 1990, 54, Pages 2549-2564
K78: Geochimica et Cosmochimica Acta, 1990, 54, Pages 3509-3523
K79: Geochimica et Cosmochimica Acta, 1993, 57, Pages 1625-1628
K80: Geochimica et Cosmochimica Acta, 1995, 59, Pages 959-977
K81: Geochimica et Cosmochimica Acta, 1995, 59, Pages 959-977
K82: Geochimica et Cosmochimica Acta, 1995, 59, Pages 959-977
K83: Geochimica et Cosmochimica Acta, 1997, 61, Pages 3477-3501
K84: Geochimica et Cosmochimica Acta, 1999, 63, Pages 1203-1217
K85: Geochimica et Cosmochimica Acta, 2000, 64, Pages 2913-2928
K86: Geochimica et Cosmochimica Acta, 2000, 64, Pages 3061-3071
K87: Geochimica et Cosmochimica Acta, 2002, 66, Pages 1037-1050
K88: Geochimica et Cosmochimica Acta, 2003, 67, Pages 1145-1176
K89: Geochimica et Cosmochimica Acta, 2005, 69, Pages 505-518
K90: Geochimica et Cosmochimica Acta, 2006, 70, Pages 2573-2575
K91: Geochimica et Cosmochimica Acta, 2008, 72, Pages 2067-2089
K92: Geochimica et Cosmochimica Acta, 2008, 72, Pages 221-232
K93: Geochimica et Cosmochimica Acta, 2009, 73, Pages 4531–4557
K94: Geochimica et Cosmochimica Acta, 2010, 74, Pages 1734-1747
K95: Geology, 2010, 38, Pages 799-802
K96: Geology, 2012, , Pages 1-19
K97: Gondwana Research, 2005, 8, Pages 617-621
K98: Icarus, 1980, 42, Pages 380-405
K99: International Journal Earth Science, 2012, 101, Pages 1091-1109
K100: International Journal Earth Science, 2012, 101, Pages 1091-1109
K101: Journal of Asian Earth Sciences, 2013, 62, Pages 37-50
K102: Journal Of Petrology, 2007, 48, Pages 589-625
K103: Journal Of Petrology, 2007, 48, Pages 589-625
K104: Journal Of Petrology, 2007, 48, Pages 589-625
K105: Journal of Petrology, 2016, 57, Pages 685-715
K106: Journal of the Geological Society, 2011, 168, Pages 1201-1214
K107: Journal Petrology Society Korea, 2006, 15, Pages 106-117
K108: Lithos, 1999, 48, Pages 171-194
K109: Lithos, 2008, 102, Pages 25-42
K110: Lithos, 2008, 102, Pages 43-64
K111: Lithos, 2009, 112-S, Pages 1120-1132
K112: Lithos, 2009, 112-S, Pages 896-912
K113: Lithos, 2010, 117, Pages 1-19
K114: Lithos, 2011, 125, Pages 405–422
K115: Lithos, 2011, 126, Pages 233-247
K116: Lithos, 2011, 126, Pages 233-247
K117: Lithos, 2011, 126, Pages 233-247
K118: Lithos, 2012, 142-143, Pages 161-181
K119: Lithos, 2012, 142-143, Pages 161-181
K120: Lithos, 2012, 142-143, Pages 161-181
K121: Lithos, 2012, 149, Pages 100-114
K122: Meteoritics And Planetary Science, 1997, 32, Pages 647-670
K123: Meteoritics And Planetary Science, 1998, 33, Pages 647-653
K124: Meteoritics And Planetary Science, 2001, 36, Pages 107-122
K125: Meteoritics And Planetary Science, 2003, 38, Pages 669–710
K126: Meteoritics And Planetary Science, 2004, 39, Pages 1475-1493
K127: Meteoritics And Planetary Science, 2007, 42, Pages 1321-1335
K128: Meteoritics And Planetary Science, 2009, 44, Pages 293-321
K129: Precambrian Research, 2002, 118, Pages 267-283
K130: Precambrian Research, 2014, 250, Pages 97-126
K131: Science, 1967, 155, Pages 999-1000
K132: University Alberta, Thesis, 2010, , Pages 1-152
K133: University Alberta, Thesis, 2010, , Pages 1-153
K134: University Berlin, Thesis, 2013, , Pages 1-186
K135: University Berlin, Thesis, 2014, , Pages 1-168
K136: University Bonn, Thesis, 2004, , Pages 1-132
K137: University Boston, Thesis, 2014, , Pages 1-207
K138: University Maryland, Thesis, 2007, , Pages 1-117
K139: University Maryland, Thesis, 2011, , Pages 1-238
K140: University Maryland, Thesis, 2015, , Pages 1-17

Sheet ALL
A1: Essay's Title | B1: Magazine | C1: Volume | D1: Year | E1: Pages | F1: Folder | G1: File Name | H1: Pauls Computer | I1: Sheet | J1: Excel File | K1: Citation | L1: Method | M1: Citation | N1: Min Age (Ma) | O1: Max Age (Ma) | P1: Difference (Ma) | Q1: Age Ratio
A2: Ar-39/Ar-40 Dating of Mesosiderites | B2: Geochimica et Cosmochimica Acta | C2: 54 | D2: 1990 | E2: Pages 2549-2564 | F2: ="C:\Essays\Geo_Dating\Neller\" -> C:\Essays\Geo_Dating\Neller\ | G2: BOGARD_A | H2: ="C:\Essays\Geo_Dating\Neller\" & G2 & ".pdf" -> C:\Essays\Geo_Dating\Neller\BOGARD_A.pdf | I2: A1 | J2: AA_Index.xlsm | K2: =B2 & ", " & D2 & ", " & C2 & ", " & E2 -> Geochimica et Cosmochimica Acta, 1990, 54, Pages 2549-2564 | L2: Ar/Ar | M2: 1 | N2: 1770 | O2: 13960 | P2: =O2-N2 -> 12190 | Q2: =ABS(P2/N2) -> 6.88700565
A3: 39Ar-40Ar Ages of Eucrites | B3: Meteoritics And Planetary Science | C3: 38 | D3: 2003 | E3: Pages 669–710 | F3: C:\Essays\Geo_Dating\Neller\ | G3: BOGARD_E | H3: C:\Essays\Geo_Dating\Neller\BOGARD_E.pdf | I3: A2 | J3: AA_Index.xlsm | K3: Meteoritics And Planetary Science, 2003, 38, Pages 669–710 | L3: Ar/Ar | M3: 2 | N3: 162 | O3: 9669 | P3: 9507 | Q3: 58.68518519
A4: Ar diffusion properties, Meteorites | B4: Geochimica et Cosmochimica Acta | C4: 44 | D4: 1980 | E4: Pages 1667-1682 | F4: C:\Essays\Geo_Dating\Neller\ | G4: BOGARD_B | H4: C:\Essays\Geo_Dating\Neller\BOGARD_B.pdf | I4: A3 | J4: AA_Index.xlsm | K4: Geochimica et Cosmochimica Acta, 1980, 44, Pages 1667-1682 | L4: Ar/Ar | M4: 3 | N4: 120 | O4: 9710 | P4: 9590 | Q4: 79.91666667
A5: Argon-39/Argon-40 Ages | B5: Meteoritics And Planetary Science | C5: 36 | D5: 2001 | E5: Pages 107-122 | F5: C:\Essays\Geo_Dating\Neller\ | G5: BOGARD_F | H5: C:\Essays\Geo_Dating\Neller\BOGARD_F.pdf | I5: A4 | J5: AA_Index.xlsm | K5: Meteoritics And Planetary Science, 2001, 36, Pages 107-122 | L5: Ar/Ar | M5: 4 | N5: 1102 | O5: 8058 | P5: 6956 | Q5: 6.31215971
A6: U-Th-Pb dating of Abee E4 Meteorite | B6: Earth Planetary Science Letters | C6: 62 | D6: 1983 | E6: Pages 132-146 | F6: C:\Essays\Geo_Dating\Neller\ | G6: BOGARD_C | H6: C:\Essays\Geo_Dating\Neller\BOGARD_C.pdf | I6: A5 | J6: AA_Index.xlsm | K6: Earth Planetary Science Letters, 1983, 62, Pages 132-146 | L6: Ar/Ar | M6: 5 | N6: 3560 | O6: 8900 | P6: 5340 | Q6: 1.5
A7: 40Ar-39Ar Chronology | B7: Meteoritics And Planetary Science | C7: 44 | D7: 2009 | E7: Pages 293-321 | F7: C:\Essays\Geo_Dating\Neller\ | G7: Meteorite_Korochantseva | H7: C:\Essays\Geo_Dating\Neller\Meteorite_Korochantseva.pdf | I7: B0 | J7: AA_Index.xlsm | K7: Meteoritics And Planetary Science, 2009, 44, Pages 293-321 | L7: Ar/Ar | M7: 6 | N7: 94 | O7: 14917 | P7: 14823 | Q7: 157.6914894
A8: 40-Ar / 39-Ar Ages of Allende | B8: Icarus | C8: 42 | D8: 1980 | E8: Pages 380-405 | F8: C:\Essays\Geo_Dating\Neller\ | G8: Meteorite_Jessberger | H8: C:\Essays\Geo_Dating\Neller\Meteorite_Jessberger.pdf | I8: B1 | J8: AA_Index.xlsm | K8: Icarus, 1980, 42, Pages 380-405 | L8: Ar/Ar | M8: 7 | N8: 1871 | O8: 7460 | P8: 5589 | Q8: 2.987172635
A9: The Fossil LL6 Chondrite | B9: Geochimica et Cosmochimica Acta | C9: 74 | D9: 2010 | E9: Pages 1734-1747 | F9: C:\Essays\Geo_Dating\Neller\ | G9: Older_Than_Earth_3 | H9: C:\Essays\Geo_Dating\Neller\Older_Than_Earth_3.pdf | I9: B2 | J9: AA_Index.xlsm | K9: Geochimica et Cosmochimica Acta, 2010, 74, Pages 1734-1747 | L9: Ar/Ar | M9: 8 | N9: 164 | O9: 11250 | P9: 11086 | Q9: 67.59756098
A10: 40Ar-39Ar Dating of Pseudo Tachylytes | B10: Earth Planetary Science Letters | C10: 223 | D10: 2004 | E10: Pages 349-364 | F10: C:\Essays\Geo_Dating\Neller\ | G10: Older_Than_Earth_1 | H10: C:\Essays\Geo_Dating\Neller\Older_Than_Earth_1.pdf | I10: B6 | J10: AA_Index.xlsm | K10: Earth Planetary Science Letters, 2004, 223, Pages 349-364 | L10: Ar/Ar | M10: 9 | N10: 42 | O10: 7347 | P10: 7305 | Q10: 173.9285714
A11: Location of extraneous argon | B11: Chemical Geology | C11: 80 | D11: 1990 | E11: Pages 201-204 | F11: C:\Essays\Geo_Dating\Neller\ | G11: Maluski | H11: C:\Essays\Geo_Dating\Neller\Maluski.pdf | I11: B7 | J11: AA_Index.xlsm | K11: Chemical Geology, 1990, 80, Pages 201-204 | L11: Ar/Ar | M11: 10 | N11: 1700 | O11: 22090 | P11: 20390 | Q11: 11.99411765
A12: Excess Argon In Ultramafic Rocks | B12: Earth Planetary Science Letters | C12: 22 | D12: 1974 | E12: Pages 145-156 | F12: C:\Essays\Geo_Dating\Neller\ | G12: Ages_012 | H12: C:\Essays\Geo_Dating\Neller\Ages_012.pdf | I12: B8 | J12: AA_Index.xlsm | K12: Earth Planetary Science Letters, 1974, 22, Pages 145-156 | L12: Ar/Ar | M12: 11 | N12: 580 | O12: 9840 | P12: 9260 | Q12: 15.96551724
A13: Analyses of the chondritic meteorite Orvinio | B13: Meteoritics And Planetary Science | C13: 39 | D13: 2004 | E13: Pages 1475-1493 | F13: C:\Essays\Geo_Dating\Neller\ | G13: Meteorite_Grier | H13: C:\Essays\Geo_Dating\Neller\Meteorite_Grier.pdf | I13: C1 | J13: AA_Index.xlsm | K13: Meteoritics And Planetary Science, 2004, 39, Pages 1475-1493 | L13: Ar/Ar | M13: 12 | N13: 324 | O13: 17178 | P13: 16854 | Q13: 52.01851852
A14: Shocked meteorites: Argon-40-argon-39 | B14: Meteoritics And Planetary Science | C14: 32 | D14: 1997 | E14: Pages 647-670 | F14: C:\Essays\Geo_Dating\Neller\ | G14: Meteorite_Kunz | H14: C:\Essays\Geo_Dating\Neller\Meteorite_Kunz.pdf | I14: C2 | J14: AA_Index.xlsm | K14: Meteoritics And Planetary Science, 1997, 32, Pages 647-670 | L14: Ar/Ar | M14: 13 | N14: 506 | O14: 13348 | P14: 12842 | Q14: 25.37944664
A15: The Strangways impact structure | B15: Earth Planetary Science Letters | C15: 172 | D15: 1999 | E15: Pages 199–211 | F15: C:\Essays\Geo_Dating\Neller\ | G15: Older_Than_Earth_4 | H15: C:\Essays\Geo_Dating\Neller\Older_Than_Earth_4.pdf | I15: C3 | J15: AA_Index.xlsm | K15: Earth Planetary Science Letters, 1999, 172, Pages 199–211 | L15: Ar/Ar | M15: 14 | N15: 633 | O15: 8569 | P15: 7936 | Q15: 12.5371248
A16: 40Ar-39Ar Quartz Ages | B16: Geochimica et Cosmochimica Acta | C16: 70 | D16: 2006 | E16: Pages 2573-2575 | F16: C:\Essays\Geo_Dating\Neller\ | G16: Older_Than_Earth_9 | H16: C:\Essays\Geo_Dating\Neller\Older_Than_Earth_9.pdf | I16: C7 | J16: AA_Index.xlsm | K16: Geochimica et Cosmochimica Acta, 2006, 70, Pages 2573-2575 | L16: Ar/Ar | M16: 15 | N16: 1115 | O16: 9969 | P16: 8854 | Q16: 7.940807175
A17: The Peace River shocked M chondrite | B17: Geochimica et Cosmochimica Acta | C17: 52 | D17: 1988 | E17: Pages 2487-2499 | F17: C:\Essays\Geo_Dating\Neller\ | G17: Meteorite_MCCONVILL | H17: C:\Essays\Geo_Dating\Neller\Meteorite_MCCONVILL.pdf | I17: D0 | J17: AA_Index.xlsm | K17: Geochimica et Cosmochimica Acta, 1988, 52, Pages 2487-2499 | L17: Ar/Ar | M17: 16 | N17: 510 | O17: 7100 | P17: 6590 | Q17: 12.92156863
A18: History Of The Acapulco Meteorite | B18: Geochimica et Cosmochimica Acta | C18: 61 | D18: 1997 | E18: Pages 3477-3501 | F18: C:\Essays\Geo_Dating\Neller\ | G18: Meteorite_Pellas | H18: C:\Essays\Geo_Dating\Neller\Meteorite_Pellas.pdf | I18: D1 | J18: AA_Index.xlsm | K18: Geochimica et Cosmochimica Acta, 1997, 61, Pages 3477-3501 | L18: Ar/Ar | M18: 17 | N18: 3841 | O18: 11421 | P18: 7580 | Q18: 1.973444416
A19: Pressure Metamorphism in Northeast Japan | B19: Gondwana Research | C19: 8 | D19: 2005 | E19: Pages 617-621 | F19: C:\Essays\Geo_Dating\Neller\ | G19: Itaya | H19: C:\Essays\Geo_Dating\Neller\Itaya.pdf | I19: D7 | J19: AA_Index.xlsm | K19: Gondwana Research, 2005, 8, Pages 617-621 | L19: Ar/Ar | M19: 18 | N19: 7700 | O19: 16300 | P19: 8600 | Q19: 1.116883117
A20: 40 Ar/39ar Dating Of The Long Range Dikes | B20: Earth Planetary Science Letters | C20: 22 | D20: 1974 | E20: Pages 256-266 | F20: C:\Essays\Geo_Dating\Neller\ | G20: Ages_002 | H20: C:\Essays\Geo_Dating\Neller\Ages_002.pdf | I20: D8 | J20: AA_Index.xlsm | K20: Earth Planetary Science Letters, 1974, 22, Pages 256-266 | L20: Ar/Ar | M20: 19 | N20: 651 | O20: 18620 | P20: 17969 | Q20: 27.60215054
A21: Potassium: Argon Dating of Iron Meteorites | B21: Science | C21: 155 | D21: 1967 | E21: Pages 999-1000 | F21: C:\Essays\Geo_Dating\Neller\ | G21: Meteor_Rancitelli | H21: C:\Essays\Geo_Dating\Neller\Meteor_Rancitelli.pdf | I21: C6 | J21: AA_Index.xlsm | K21: Science, 1967, 155, Pages 999-1000 | L21: K/Ar | M21: 20 | N21: 4700 | O21: 10400 | P21: 5700 | Q21: 1.212765957
A22: Potassium-argon age of iron meteorites | B22: Geochimica et Cosmochimica Acta | C22: 15 | D22: 1958 | E22: Pages 40-50 | F22: C:\Essays\Geo_Dating\Neller\ | G22: Meteorite_Stoenner | H22: C:\Essays\Geo_Dating\Neller\Meteorite_Stoenner.pdf | I22: D4 | J22: AA_Index.xlsm | K22: Geochimica et Cosmochimica Acta, 1958, 15, Pages 40-50 | L22: K/Ar | M22: 21 | N22: 5300 | O22: 13000 | P22: 7700 | Q22: 1.452830189
A23: Ar/Ar dating of inclusions from IAB iron meteorites | B23: Geochimica et Cosmochimica Acta | C23: 43 | D23: 1979 | E23: Pages 1829-1840 | F23: C:\Essays\Geo_Dating\Neller\ | G23: Meteorite_NIEMEYER | H23: C:\Essays\Geo_Dating\Neller\Meteorite_NIEMEYER.pdf | I23: D6 | J23: AA_Index.xlsm | K23: Geochimica et Cosmochimica Acta, 1979, 43, Pages 1829-1840 | L23: K/Ar | M23: 22 | N23: 4460 | O23: 9500 | P23: 5040 | Q23: 1.130044843
A24: K/Ar Age Determinations of Iron Meteorites | B24: Earth Planetary Science Letters | C24: 4 | D24: 1968 | E24: Pages 84-88 | F24: C:\Essays\Geo_Dating\Neller\ | G24: Meteorite_Kaiser | H24: C:\Essays\Geo_Dating\Neller\Meteorite_Kaiser.pdf | I24: D9 | J24: AA_Index.xlsm | K24: Earth Planetary Science Letters, 1968, 4, Pages 84-88 | L24: K/Ar | M24: 23 | N24: 4200 | O24: 7400 | P24: 3200 | Q24: 0.7619047619
A25: Upper Crust in North-East Australia | B25: International Journal Earth Science | C25: 101 | D25: 2012 | E25: Pages 1091-1109 | F25: C:\Essays\Geo_Dating\Neller\ | G25: Older_Than_Earth_11 | H25: C:\Essays\Geo_Dating\Neller\Older_Than_Earth_11.pdf | I25: O_6 | J25: AB_Index.xlsm | K25: International Journal Earth Science, 2012, 101, Pages 1091-1109 | L25: Lu/Hf | M25: 27 | N25: -3220 | O25: 3870 | P25: 7090 | Q25: 2.201863354
A26: The Siberian Craton | B26: Geochimica et Cosmochimica Acta | C26: 59 | D26: 1995 | E26: Pages 959-977 | F26: C:\Essays\Geo_Dating\Neller\ | G26: Older_Than_Earth_6 | H26: C:\Essays\Geo_Dating\Neller\Older_Than_Earth_6.pdf | I26: A8 | J26: AA_Index.xlsm | K26: Geochimica et Cosmochimica Acta, 1995, 59, Pages 959-977 | L26: Nd/Sm | M26: 38 | N26: -1 | O26: 3200 | P26: 3201 | Q26: 3201
A27: African Peridotite Xenoliths | B27: Geochimica et Cosmochimica Acta | C27: 53 | D27: 1989 | E27: Pages 1583-1595 | F27: C:\Essays\Geo_Dating\Neller\ | G27: Older_Than_Earth_5 | H27: C:\Essays\Geo_Dating\Neller\Older_Than_Earth_5.pdf | I27: D2 | J27: AA_Index.xlsm | K27: Geochimica et Cosmochimica Acta, 1989, 53, Pages 1583-1595 | L27: Nd/Sm | M27: 26 | N27: 1070 | O27: 12600 | P27: 11530 | Q27: 10.77570093
A28: Upper Crust in North-East Australia | B28: International Journal Earth Science | C28: 101 | D28: 2012 | E28: Pages 1091-1109 | F28: C:\Essays\Geo_Dating\Neller\ | G28: Older_Than_Earth_11 | H28: C:\Essays\Geo_Dating\Neller\Older_Than_Earth_11.pdf | I28: O_6 | J28: AB_Index.xlsm | K28: International Journal Earth Science, 2012, 101, Pages 1091-1109 | L28: Nd/Sm | M28: 27 | N28: -800 | O28: 9730 | P28: 10530 | Q28: 13.1625
A29: The Allende and Orgueil Chondrites | B29: Geochimica et Cosmochimica Acta | C29: 40 | D29: 1976 | E29: Pages 617-634 | F29: C:\Essays\Geo_Dating\Neller\ | G29: Meteorite_Tatsumoto | H29: C:\Essays\Geo_Dating\Neller\Meteorite_Tatsumoto.pdf | I29: C8 | J29: AA_Index.xlsm | K29: Geochimica et Cosmochimica Acta, 1976, 40, Pages 617-634 | L29: Pb/Pb | M29: 62 | N29: 4467 | O29: 4569 | P29: 102 | Q29: 0.02283411686
A30: Silica Mineral Formation | B30: Geochimica et Cosmochimica Acta | C30: 67 | D30: 2003 | E30: Pages 1145-1176 | F30: C:\Essays\Geo_Dating\Neller\ | G30: Amelin_G | H30: C:\Essays\Geo_Dating\Neller\Amelin_G.pdf | I30: E5 | J30: AA_Index.xlsm | K30: Geochimica et Cosmochimica Acta, 2003, 67, Pages 1145-1176 | L30: Pb/Pb | M30: 29 | N30: -3879 | O30: 11 | P30: 3890 | Q30: 1.002835782
A31: The Siberian Craton | B31: Geochimica et Cosmochimica Acta | C31: 59 | D31: 1995 | E31: Pages 959-977 | F31: C:\Essays\Geo_Dating\Neller\ | G31: Older_Than_Earth_6 | H31: C:\Essays\Geo_Dating\Neller\Older_Than_Earth_6.pdf | I31: A8 | J31: AA_Index.xlsm | K31: Geochimica et Cosmochimica Acta, 1995, 59, Pages 959-977 | L31: Rb/Sr | M31: 38 | N31: 5445 | O31: 12716 | P31: 7271 | Q31: 1.335353535
A32: Rb-Sr Ages Of Iron Meteorites | B32: Earth Planetary Science Letters | C32: 2 | D32: 1967 | E32: Pages 397-408 | F32: C:\Essays\Geo_Dating\Neller\ | G32: Meteorite_Burnett | H32: C:\Essays\Geo_Dating\Neller\Meteorite_Burnett.pdf | I32: A9 | J32: AA_Index.xlsm | K32: Earth Planetary Science Letters, 1967, 2, Pages 397-408 | L32: Rb/Sr | M32: 31 | N32: 3700 | O32: 9300 | P32: 5600 | Q32: 1.513513514
A33: Isotopic discrepancies in Black Hills, South Dakota | B33: Geochimica et Cosmochimica Acta | C33: 34 | D33: 1970 | E33: Pages 713-725 | F33: C:\Essays\Geo_Dating\Neller\ | G33: Riley | H33: C:\Essays\Geo_Dating\Neller\Riley.pdf | I33: B3 | J33: AA_Index.xlsm | K33: Geochimica et Cosmochimica Acta, 1970, 34, Pages 713-725 | L33: Rb/Sr | M33: 32 | N33: 1400 | O33: 900000 | P33: 898600 | Q33: 641.8571429
A34: Rhenium-187-Osmium-187 in iron meteorites | B34: Meteoritics And Planetary Science | C34: 33 | D34: 1998 | E34: Pages 647-653 | F34: C:\Essays\Geo_Dating\Neller\ | G34: Meteorite_Birck | H34: C:\Essays\Geo_Dating\Neller\Meteorite_Birck.pdf | I34: B9 | J34: AA_Index.xlsm | K34: Meteoritics And Planetary Science, 1998, 33, Pages 647-653 | L34: Rb/Sr | M34: 33 | N34: 1180 | O34: 13700 | P34: 12520 | Q34: 10.61016949
A35: Antarctic LL-chondrites | B35: Geochimica et Cosmochimica Acta | C35: 54 | D35: 1990 | E35: Pages 3509-3523 | F35: C:\Essays\Geo_Dating\Neller\ | G35: Meteorite_Okano | H35: C:\Essays\Geo_Dating\Neller\Meteorite_Okano.pdf | I35: C9 | J35: AA_Index.xlsm | K35: Geochimica et Cosmochimica Acta, 1990, 54, Pages 3509-3523 | L35: Rb/Sr | M35: 34 | N35: 3110 | O35: 7330 | P35: 4220 | Q35: 1.356913183
A36: North Western Wyoming Craton | B36: Earth Planetary Science Letters | C36: 126 | D36: 1994 | E36: Pages 457-472 | F36: C:\Essays\Geo_Dating\Neller\ | G36: Older_Than_Earth_2 | H36: C:\Essays\Geo_Dating\Neller\Older_Than_Earth_2.pdf | I36: D3 | J36: AA_Index.xlsm | K36: Earth Planetary Science Letters, 1994, 126, Pages 457-472 | L36: Rb/Sr | M36: 35 | N36: -3440 | O36: 15500 | P36: 18940 | Q36: 5.505813953
A37: Age and Origin of Base and Precious Metal | B37: Economic Geology | C37: 97 | D37: 2002 | E37: Pages 35-37 | F37: C:\Essays\Geo_Dating\Neller\ | G37: Ages_001 | H37: C:\Essays\Geo_Dating\Neller\Ages_001.pdf | I37: D5 | J37: AA_Index.xlsm | K37: Economic Geology, 2002, 97, Pages 35-37 | L37: Rb/Sr | M37: 36 | N37: 79 | O37: 23312 | P37: 23233 | Q37: 294.0886076
A38: Stabilisation of Archaean lithosphere | B38: Earth Planetary Science Letters | C38: 134 | D38: 1995 | E38: Pages 341-357 | F38: C:\Essays\Geo_Dating\Neller\ | G38: Pearson | H38: C:\Essays\Geo_Dating\Neller\Pearson.pdf | I38: A7 | J38: AA_Index.xlsm | K38: Earth Planetary Science Letters, 1995, 134, Pages 341-357 | L38: Re/Os | M38: 37 | N38: 100 | O38: 15600 | P38: 15500 | Q38: 155
A39: The Siberian Craton | B39: Geochimica et Cosmochimica Acta | C39: 59 | D39: 1995 | E39: Pages 959-977 | F39: C:\Essays\Geo_Dating\Neller\ | G39: Older_Than_Earth_6 | H39: C:\Essays\Geo_Dating\Neller\Older_Than_Earth_6.pdf | I39: A8 | J39: AA_Index.xlsm | K39: Geochimica et Cosmochimica Acta, 1995, 59, Pages 959-977 | L39: Re/Os | M39: 38 | N39: -1 | O39: 11000 | P39: 11001 | Q39: 11001
A40: The Study of Molybdenites | B40: Earth Planetary Science Letters | C40: 61 | D40: 1982 | E40: Pages 291-296 | F40: C:\Essays\Geo_Dating\Neller\ | G40: Older_Than_Earth_7 | H40: C:\Essays\Geo_Dating\Neller\Older_Than_Earth_7.pdf | I40: C0 | J40: AA_Index.xlsm | K40: Earth Planetary Science Letters, 1982, 61, Pages 291-296 | L40: Re/Os | M40: 39 | N40: 2700 | O40: 5800 | P40: 3100 | Q40: 1.148148148
A41: Reliable Re-Os Ages | B41: Geochimica et Cosmochimica Acta | C41: 57 | D41: 1993 | E41: Pages 1625-1628 | F41: C:\Essays\Geo_Dating\Neller\ | G41: Older_Than_Earth_8 | H41: C:\Essays\Geo_Dating\Neller\Older_Than_Earth_8.pdf | I41: C4 | J41: AA_Index.xlsm | K41: Geochimica et Cosmochimica Acta, 1993, 57, Pages 1625-1628 | L41: Re/Os | M41: 40 | N41: 2655 | O41: 6300 | P41: 3645 | Q41: 1.372881356
A42: Evolution of the South China Block | B42: Geochimica et Cosmochimica Acta | C42: 73 | D42: 2009 | E42: Pages 4531–4557 | F42: C:\Essays\Geo_Dating\Neller\ | G42: TRD_03 | H42: C:\Essays\Geo_Dating\Neller\TRD_03.pdf | I42: E6 | J42: AA_Index.xlsm | K42: Geochimica et Cosmochimica Acta, 2009, 73, Pages 4531–4557 | L42: Re/Os | M42: 41 | N42: -59500 | O42: 25900 | P42: 85400 | Q42: 1.435294118
A43: The North China Craton | B43: University Maryland, Thesis | D43: 2011 | E43: Pages 1-238 | F43: C:\Essays\Geo_Dating\Neller\ | G43: TRD_04 | H43: C:\Essays\Geo_Dating\Neller\TRD_04.pdf | I43: E7 | J43: AA_Index.xlsm | K43: University Maryland, Thesis, 2011, , Pages 1-238 | L43: Re/Os | M43: 42 | N43: -30000 | O43: 40000 | P43: 70000 | Q43: 2.333333333
A44: Rhenium/Osmium Geochronology of Oxide Minerals | B44: University Alberta, Thesis | D44: 2010 | E44: Pages 1-152 | F44: C:\Essays\Geo_Dating\Neller\ | G44: TRD_05 | H44: C:\Essays\Geo_Dating\Neller\TRD_05.pdf | I44: E8 | J44: AA_Index.xlsm | K44: University Alberta, Thesis, 2010, , Pages 1-152 | L44: Re/Os | M44: 43 | N44: -3700 | O44: 38190 | P44: 41890 | Q44: 11.32162162
A45: Rocks From the Earth’s Mantle | B45: University Berlin, Thesis | D45: 2013 | E45: Pages 1-186 | F45: C:\Essays\Geo_Dating\Neller\ | G45: TRD_06 | H45: C:\Essays\Geo_Dating\Neller\TRD_06.pdf | I45: E9 | J45: AA_Index.xlsm | K45: University Berlin, Thesis, 2013, , Pages 1-186 | L45: Re/Os | M45: 44 | N45: -9260 | O45: 3200 | P45: 12460 | Q45: 1.345572354
A46: Hebi, North China Craton | B46: Chemical Geology | C46: 328 | D46: 2012 | E46: Pages 123–136 | F46: C:\Essays\Geo_Dating\Neller\ | G46: Future_Ages_005 | H46: C:\Essays\Geo_Dating\Neller\Future_Ages_005.pdf | I46: F2 | J46: AA_Index.xlsm | K46: Chemical Geology, 2012, 328, Pages 123–136 | L46: Re/Os | M46: 45 | N46: -3100 | O46: 8400 | P46: 11500 | Q46: 3.709677419
A47: Re–Os Isotopic Results | B47: Chemical Geology | C47: 291 | D47: 2012 | E47: Pages 186–198 | F47: C:\Essays\Geo_Dating\Neller\ | G47: Future_Ages_006 | H47: C:\Essays\Geo_Dating\Neller\Future_Ages_006.pdf | I47: F3 | J47: AA_Index.xlsm | K47: Chemical Geology, 2012, 291, Pages 186–198 | L47: Re/Os | M47: 46 | N47: -675 | O47: 10430 | P47: 11105 | Q47: 16.45185185
A48: Lithospheric Mantle Evolution | B48: Lithos | C48: 125 | D48: 2011 | E48: Pages 405–422 | F48: C:\Essays\Geo_Dating\Neller\ | G48: Older_Than_Earth_07 | H48: C:\Essays\Geo_Dating\Neller\Older_Than_Earth_07.pdf | I48: F4 | J48: AA_Index.xlsm | K48: Lithos, 2011, 125, Pages 405–422 | L48: Re/Os | M48: 47 | N48: -24710 | O48: 8620 | P48: 33330 | Q48: 1.348846621
A49: The age of Lithospheric Mantle | B49: Chemical Geology | C49: 196 | D49: 2003 | E49: Pages 107–129 | F49: C:\Essays\Geo_Dating\Neller\ | G49: Future_Ages_008 | H49: C:\Essays\Geo_Dating\Neller\Future_Ages_008.pdf | I49: F5 | J49: AA_Index.xlsm | K49: Chemical Geology, 2003, 196, Pages 107–129 | L49: Re/Os | M49: 48 | N49: 150 | O49: 15410 | P49: 15260 | Q49: 101.7333333
A50: Osmium Isotopes | B50: Chemical Geology | C50: 130 | D50: 1996 | E50: Pages 55-64 | F50: C:\Essays\Geo_Dating\Neller\ | G50: Greater_Than_Earth_01 | H50: C:\Essays\Geo_Dating\Neller\Greater_Than_Earth_01.pdf | I50: G1 | J50: AB_Index.xlsm | K50: Chemical Geology, 1996, 130, Pages 55-64 | L50: Re/Os | M50: 49 | N50: 90 | O50: 6900 | P50: 6810 | Q50: 75.66666667
A51: Evolution Beneath the Kaapvaal Craton | B51: Chemical Geology | C51: 208 | D51: 2004 | E51: Pages 89-118 | F51: C:\Essays\Geo_Dating\Neller\ | G51: Greater_Than_Earth_02 | H51: C:\Essays\Geo_Dating\Neller\Greater_Than_Earth_02.pdf | I51: G2 | J51: AB_Index.xlsm | K51: Chemical Geology, 2004, 208, Pages 89-118 | L51: Re/Os | M51: 50 | N51: -279000 | O51: 79000 | P51: 358000 | Q51: 1.283154122
A52: The Age of Continental Roots | B52: Lithos | C52: 48 | D52: 1999 | E52: Pages 171-194 | F52: C:\Essays\Geo_Dating\Neller\ | G52: Greater_Than_Earth_05 | H52: C:\Essays\Geo_Dating\Neller\Greater_Than_Earth_05.pdf | I52: G5 | J52: AB_Index.xlsm | K52: Lithos, 1999, 48, Pages 171-194 | L52: Re/Os | M52: 51 | N52: 2780 | O52: 8380 | P52: 5600 | Q52: 2.014388489
A53: Archean Man Shield, West Africa | B53: Precambrian Research | C53: 118 | D53: 2002 | E53: Pages 267-283 | F53: C:\Essays\Geo_Dating\Neller\ | G53: Older_Than_Earth_05 | H53: C:\Essays\Geo_Dating\Neller\Older_Than_Earth_05.pdf | I53: O_2 | J53: AB_Index.xlsm | K53: Precambrian Research, 2002, 118, Pages 267-283 | L53: Re/Os | M53: 52 | N53: 1390 | O53: 77160 | P53: 75770 | Q53: 54.51079137
A54: Diamond Formation Episodes | B54: Contributions Mineral Petrology | C54: 157 | D54: 2009 | E54: Pages 525–540 | F54: C:\Essays\Geo_Dating\Neller\ | G54: Older_Than_Earth_03 | H54: C:\Essays\Geo_Dating\Neller\Older_Than_Earth_03.pdf | I54: O_3 | J54: AB_Index.xlsm | K54: Contributions Mineral Petrology, 2009, 157, Pages 525–540 | L54: Re/Os | M54: 53 | N54: -51000 | O54: 10300 | P54: 61300 | Q54: 1.201960784
A55: Re/Os Isotopes of Sulfides | B55: Lithos | C55: 102 | D55: 2008 | E55: Pages 43-64 | F55: C:\Essays\Geo_Dating\Neller\ | G55: Older_Than_Earth_04 | H55: C:\Essays\Geo_Dating\Neller\Older_Than_Earth_04.pdf | I55: O_4 | J55: AB_Index.xlsm | K55: Lithos, 2008, 102, Pages 43-64 | L55: Re/Os | M55: 54 | N55: -47693 | O55: 39229 | P55: 86922 | Q55: 1.822531608
A56: Canadian Cordillera lithosphere | B56: Chemical Geology | C56: 166 | D56: 2000 | E56: Pages 85-101 | F56: C:\Essays\Geo_Dating\Neller\ | G56: Older_Than_Earth_09 | H56: C:\Essays\Geo_Dating\Neller\Older_Than_Earth_09.pdf | I56: O_5 | J56: AB_Index.xlsm | K56: Chemical Geology, 2000, 166, Pages 85-101 | L56: Re/Os | M56: 55 | N56: -1 | O56: 748 | P56: 749 | Q56: 749
A57: Lithospheric Mantle and Diamonds | B57: Lithos | C57: 112-S | D57: 2009 | E57: Pages 1120-1132 | F57: C:\Essays\Geo_Dating\Neller\ | G57: Older_Than_Earth_12 | H57: C:\Essays\Geo_Dating\Neller\Older_Than_Earth_12.pdf | I57: O_7 | J57: AB_Index.xlsm | K57: Lithos, 2009, 112-S, Pages 1120-1132 | L57: Re/Os | M57: 56 | N57: 1980 | O57: 7850 | P57: 5870 | Q57: 2.964646465
A58: Three Apollo 14 Basalts | B58: Earth Planetary Science Letters | C58: 14 | D58: 1972 | E58: Pages 281-304. | F58: C:\Essays\Geo_Dating\Neller\ | G58: Wasserburg | H58: C:\Essays\Geo_Dating\Neller\Wasserburg.pdf | I58: B4 | J58: AA_Index.xlsm | K58: Earth Planetary Science Letters, 1972, 14, Pages 281-304. | L58: Th/Pb | M58: 57 | N58: 4010 | O58: 28140 | P58: 24130 | Q58: 6.017456359
A59: The Allende and Orgueil Chondrites | B59: Geochimica et Cosmochimica Acta | C59: 40 | D59: 1976 | E59: Pages 617-634 | F59: C:\Essays\Geo_Dating\Neller\ | G59: Meteorite_Tatsumoto | H59: C:\Essays\Geo_Dating\Neller\Meteorite_Tatsumoto.pdf | I59: C8 | J59: AA_Index.xlsm | K59: Geochimica et Cosmochimica Acta, 1976, 40, Pages 617-634 | L59: Th/Pb | M59: 62 | N59: 4810 | O59: 16490 | P59: 11680 | Q59: 2.428274428
A60: Natural Radionuclide Mobility | B60: Geochimica et Cosmochimica Acta | C60: 72 | D60: 2008 | E60: Pages 2067-2089 | F60: C:\Essays\Geo_Dating\Neller\ | G60: Amelin_F | H60: C:\Essays\Geo_Dating\Neller\Amelin_F.pdf | I60: E2 | J60: AA_Index.xlsm | K60: Geochimica et Cosmochimica Acta, 2008, 72, Pages 2067-2089 | L60: Th/Pb | M60: 59 | N60: 4 | O60: 82030 | P60: 82026 | Q60: 20506.5
A61: Isotopic Lead Ages Of Meteorites | B61: Earth Planetary Science Letters | C61: 19 | D61: 1973 | E61: Pages 321-329 | F61: C:\Essays\Geo_Dating\Neller\ | G61: Pb-206_14 | H61: C:\Essays\Geo_Dating\Neller\Pb-206_14.pdf | I61: B5 | J61: AA_Index.xlsm | K61: Earth Planetary Science Letters, 1973, 19, Pages 321-329 | L61: U/Pb | M61: 60 | N61: 4126 | O61: 8615 | P61: 4489 | Q61: 1.087978672
A62: The Allende and Orgueil Chondrites | B62: Geochimica et Cosmochimica Acta | C62: 40 | D62: 1976 | E62: Pages 617-634 | F62: C:\Essays\Geo_Dating\Neller\ | G62: Meteorite_Tatsumoto | H62: C:\Essays\Geo_Dating\Neller\Meteorite_Tatsumoto.pdf | I62: C8 | J62: AA_Index.xlsm | K62: Geochimica et Cosmochimica Acta, 1976, 40, Pages 617-634 | L62: U/Pb | M62: 62 | N62: 4920 | O62: 9860 | P62: 4940 | Q62: 1.004065041
A63: The Allende and Orgueil Chondrites | B63: Geochimica et Cosmochimica Acta | C63: 40 | D63: 1976 | E63: Pages 617-634 | F63: C:\Essays\Geo_Dating\Neller\ | G63: Meteorite_Tatsumoto | H63: C:\Essays\Geo_Dating\Neller\Meteorite_Tatsumoto.pdf | I63: C8 | J63: AA_Index.xlsm | K63: Geochimica et Cosmochimica Acta, 1976, 40, Pages 617-634 | L63: U/Pb | M63: 62 | N63: 4700 | O63: 5780 | P63: 1080 | Q63: 0.229787234
A64: U-Pb ages of angrites | B64: Geochimica et Cosmochimica Acta | C64: 72 | D64: 2008 | E64: Pages 221-232 | F64: C:\Essays\Geo_Dating\Neller\ | G64: Amelin_D | H64: C:\Essays\Geo_Dating\Neller\Amelin_D.pdf | I64: E0 | J64: AA_Index.xlsm | K64: Geochimica et Cosmochimica Acta, 2008, 72, Pages 221-232 | L64: U/Pb | M64: 63 | N64: 3727.8 | O64: 6625 | P64: 2897.2 | Q64: 0.7771876174
A65: Pb isotopic age of the Allende chondrules | B65: Meteoritics And Planetary Science | C65: 42 | D65: 2007 | E65: Pages 1321-1335 | F65: C:\Essays\Geo_Dating\Neller\ | G65: Amelin_C | H65: C:\Essays\Geo_Dating\Neller\Amelin_C.pdf | I65: E3 | J65: AA_Index.xlsm | K65: Meteoritics And Planetary Science, 2007, 42, Pages 1321-1335 | L65: U/Pb | M65: 64 | N65: 1799 | O65: 10066 | P65: 8267 | Q65: 4.595330739
A66: Precise U-Pb dating | B66: Geochimica et Cosmochimica Acta | C66: 69 | D66: 2005 | E66: Pages 505-518 | F66: ="C:\Essays\Geo_Dating\Neller\" -> C:\Essays\Geo_Dating\Neller\ | G66: Amelin_A | H66: ="C:\Essays\Geo_Dating\Neller\" & G66 & ".pdf" -> C:\Essays\Geo_Dating\Neller\Amelin_A.pdf | I66: E4 | J66: AA_Index.xlsm | K66: =B66 & ", " & D66 & ", " & C66 & ", " & E66 -> Geochimica et Cosmochimica Acta, 2005, 69, Pages 505-518 | L66: U/Pb | M66: 65 | N66: 4249 | O66: 6473 | P66: =O66-N66 -> 2224 | Q66: =ABS(P66/N66) -> 0.5234172747
A67: Single grain (U-Th)/He ages, Acapulco meteorite | B67: Earth Planetary Science Letters | C67: 209 | D67: 2003 | E67: Pages 323-336 | F67: C:\Essays\Geo_Dating\Neller\ | G67: Meteorite_Kyoungwon | H67: C:\Essays\Geo_Dating\Neller\Meteorite_Kyoungwon.pdf | I67: C5 | J67: AA_Index.xlsm | K67: Earth Planetary Science Letters, 2003, 209, Pages 323-336 | L67: U/Th | M67: 66 | N67: 1452 | O67: 4909 | P67: =O67-N67 -> 3457 | Q67: 2.380853994
A68: Geochronology of Quaternary Opal | B68: Geochimica et Cosmochimica Acta | C68: 64 | D68: 2000 | E68: Pages 2913-2928 | F68: C:\Essays\Geo_Dating\Neller\ | G68: Amelin_E | H68: C:\Essays\Geo_Dating\Neller\Amelin_E.pdf | I68: E1 | J68: AA_Index.xlsm | K68: Geochimica et Cosmochimica Acta, 2000, 64, Pages 2913-2928 | M68: 105
A69: Barren Miocene granitoids | B69: Andean Geology | C69: 37 | D69: 2010 | E69: Pages 1-31 | F69: C:\Essays\Geo_Dating\Neller\ | G69: R1 | H69: C:\Essays\Geo_Dating\Neller\R1.pdf | I69: R1 | J69: AB_Index.xlsm | K69: Andean Geology, 2010, 37, Pages 1-31 | L69: Lu/Hf | M69: 68 | N69: -8800 | O69: -630 | P69: =O69-N69 -> 8170 | Q69: 0.9284090909
A70: Early Archean partial melting events | B70: University Bonn, Thesis | D70: 2004 | E70: Pages 1-132 | F70: C:\Essays\Geo_Dating\Neller\ | G70: R2 | H70: C:\Essays\Geo_Dating\Neller\R2.pdf | I70: R2 | J70: AB_Index.xlsm | K70: University Bonn, Thesis, 2004, , Pages 1-132 | L70: Re/Os | M70: 69 | N70: -8620 | O70: 3220 | P70: 11840 | Q70: 1.373549884
A71: Isotopic signatures in Zealandia | B71: Geology | D71: 2012 | E71: Pages 1-19 | F71: C:\Essays\Geo_Dating\Neller\ | G71: R3 | H71: C:\Essays\Geo_Dating\Neller\R3.pdf | I71: R3 | J71: AB_Index.xlsm | K71: Geology, 2012, , Pages 1-19 | L71: Re/Os | M71: 70 | N71: -6240 | O71: 3510 | P71: 9750 | Q71: 1.5625
A72: Mantle xenoliths from North Korea | B72: Geology | C72: 38 | D72: 2010 | E72: Pages 799-802 | F72: C:\Essays\Geo_Dating\Neller\ | G72: R4 | H72: C:\Essays\Geo_Dating\Neller\R4.pdf | I72: R4 | J72: AB_Index.xlsm | K72: Geology, 2010, 38, Pages 799-802 | L72: Lu/Hf | M72: 71 | N72: -1649 | O72: 8590 | P72: 10239 | Q72: 6.209217708
A73: Re-Os Geochronology of Oxide Minerals | B73: University Alberta, Thesis | D73: 2010 | E73: Pages 1-153 | F73: C:\Essays\Geo_Dating\Neller\ | G73: R5 | H73: C:\Essays\Geo_Dating\Neller\R5.pdf | I73: R5 | J73: AB_Index.xlsm | K73: University Alberta, Thesis, 2010, , Pages 1-153 | L73: Re/Os | M73: 72 | N73: =MIN(N60:N72) -> -8800 | O73: 38190 | P73: 46990 | Q73: 5.339772727
A74: North Patagonian Mantle Xenoliths | B74: Journal of Petrology | C74: 57 | D74: 2016 | E74: Pages 685-715 | F74: C:\Essays\Geo_Dating\Neller\ | G74: R6 | H74: C:\Essays\Geo_Dating\Neller\R6.pdf | I74: R6 | J74: AB_Index.xlsm | K74: Journal of Petrology, 2016, 57, Pages 685-715 | L74: Re/Os | M74: 73 | N74: -2400 | O74: 10700 | P74: 13100 | Q74: 5.458333333
A75: Age and geochemistry of lithospheric mantle | B75: University Maryland, Thesis | D75: 2015 | E75: Pages 1-17 | F75: C:\Essays\Geo_Dating\Neller\ | G75: R7 | H75: C:\Essays\Geo_Dating\Neller\R7.pdf | I75: R7 | J75: AB_Index.xlsm | K75: University Maryland, Thesis, 2015, , Pages 1-17 | L75: Re/Os | M75: 74 | N75: -2080 | O75: 21500 | P75: 23580 | Q75: 11.33653846
A76: The Scottish margin of the North Atlantic Craton | B76: Precambrian Research | C76: 250 | D76: 2014 | E76: Pages 97-126 | F76: C:\Essays\Geo_Dating\Neller\ | G76: R8 | H76: C:\Essays\Geo_Dating\Neller\R8.pdf | I76: R8 | J76: AB_Index.xlsm | K76: Precambrian Research, 2014, 250, Pages 97-126 | L76: Re/Os | M76: 75 | N76: -7307 | O76: 3505 | P76: 10812 | Q76: 1.479677022
A77: Xenoliths from the Bohemian Massif | B77: Chemical Geology | C77: 430 | D77: 2016 | E77: Pages 90-107 | F77: C:\Essays\Geo_Dating\Neller\ | G77: R9 | H77: C:\Essays\Geo_Dating\Neller\R9.pdf | I77: R9 | J77: AB_Index.xlsm | K77: Chemical Geology, 2016, 430, Pages 90-107 | L77: Re/Os | M77: 76 | N77: -1 | O77: 68000 | P77: 68001 | Q77: =ABS(P77/N77) -> 68001
A78: Re-Os systematics of peridotites | B78: Journal of the Geological Society | C78: 168 | D78: 2011 | E78: Pages 1201-1214 | F78: C:\Essays\Geo_Dating\Neller\ | G78: RA | H78: C:\Essays\Geo_Dating\Neller\RA.pdf | I78: RA | J78: AB_Index.xlsm | K78: Journal of the Geological Society, 2011, 168, Pages 1201-1214 | L78: Re/Os | M78: 77 | N78: -2860 | O78: 2820 | P78: 5680 | Q78: =ABS(P78/N78) -> 1.986013986
A79: Constraints on mantle processes and late | B79: University Berlin, Thesis | D79: 2014 | E79: Pages 1-168 | F79: C:\Essays\Geo_Dating\Neller\ | G79: RB | H79: C:\Essays\Geo_Dating\Neller\RB.pdf | I79: RB | J79: AB_Index.xlsm | K79: University Berlin, Thesis, 2014, , Pages 1-168 | L79: Re/Os | M79: 78 | N79: -9260 | O79: 1620 | P79: 10880 | Q79: 1.174946004
A80: The Taitao Ophiolite, Southern Chile | B80: University Maryland, Thesis | D80: 2007 | E80: Pages 1-117 | F80: C:\Essays\Geo_Dating\Neller\ | G80: RC | H80: C:\Essays\Geo_Dating\Neller\RC.pdf | I80: RC | J80: AB_Index.xlsm | K80: University Maryland, Thesis, 2007, , Pages 1-117 | L80: Re/Os | M80: 79 | N80: -111000 | O80: 1500 | P80: 112500 | Q80: 1.013513514
A81: Samarium/Neodymium geochronology | B81: University Boston, Thesis | D81: 2014 | E81: Pages 1-207 | F81: C:\Essays\Geo_Dating\Neller\ | G81: RD | H81: C:\Essays\Geo_Dating\Neller\RD.pdf | I81: RD | J81: AB_Index.xlsm | K81: University Boston, Thesis, 2014, , Pages 1-207 | L81: Re/Os | M81: 80 | N81: -15000001 | O81: 14999999 | P81: 30000000 | Q81: 1.999999867
A82: Principles of Re-Os Isotopic System | B82: Journal Petrology Society Korea | C82: 15 | D82: 2006 | E82: Pages 106-117 | F82: C:\Essays\Geo_Dating\Neller\ | G82: RE | H82: C:\Essays\Geo_Dating\Neller\RE.pdf | I82: RE | J82: AB_Index.xlsm | K82: Journal Petrology Society Korea, 2006, 15, Pages 106-117 | L82: Re/Os | M82: 81 | N82: -770 | O82: 6790 | P82: 7560 | Q82: 9.818181818
A83: The western North China Craton | B83: Lithos | C83: 149 | D83: 2012 | E83: Pages 100-114 | F83: C:\Essays\Geo_Dating\Neller\ | G83: RF | H83: C:\Essays\Geo_Dating\Neller\RF.pdf | I83: RF | J83: AB_Index.xlsm | K83: Lithos, 2012, 149, Pages 100-114 | L83: Re/Os | M83: 82 | N83: -1 | O83: 2240 | P83: 2241 | Q83: 2241
A84: Single abyssal peridotite sulfides | B84: Earth Planetary Science Letters | C84: 359 | D84: 2012 | E84: Pages 279-293 | F84: C:\Essays\Geo_Dating\Neller\ | G84: RG | H84: C:\Essays\Geo_Dating\Neller\RG.pdf | I84: RG | J84: AB_Index.xlsm | K84: Earth Planetary Science Letters, 2012, 359, Pages 279-293 | L84: Re/Os | M84: 83 | N84: -2500 | O84: 2800 | P84: 5300 | Q84: 2.12
A85: The Kaapvaal Cratonic Lithospheric Mantle | B85: Journal Of Petrology | C85: 48 | D85: 2007 | E85: Pages 589-625 | F85: C:\Essays\Geo_Dating\Neller\ | G85: To_Old_01 | H85: C:\Essays\Geo_Dating\Neller\To_Old_01.pdf | I85: T_1 | J85: AB_Index.xlsm | K85: Journal Of Petrology, 2007, 48, Pages 589-625 | L85: Nd/Sm | M85: 86 | N85: -2247 | O85: 96661 | P85: 98908 | Q85: 44.01780151
A86: The Kaapvaal Cratonic Lithospheric Mantle | B86: Journal Of Petrology | C86: 48 | D86: 2007 | E86: Pages 589-625 | F86: C:\Essays\Geo_Dating\Neller\ | G86: To_Old_01 | H86: ="C:\Essays\Geo_Dating\Neller\" & G86 & ".pdf" -> C:\Essays\Geo_Dating\Neller\To_Old_01.pdf | I86: T_1 | J86: AB_Index.xlsm | K86: =B86 & ", " & D86 & ", " & C86 & ", " & E86 -> Journal Of Petrology, 2007, 48, Pages 589-625 | L86: Re/Os | M86: 86 | N86: 600 | O86: 34600 | P86: =O86-N86 -> 34000 | Q86: =ABS(P86/N86) -> 56.66666667
A87: The Kaapvaal Cratonic Lithospheric Mantle | B87: Journal Of Petrology | C87: 48 | D87: 2007 | E87: Pages 589-625 | F87: C:\Essays\Geo_Dating\Neller\ | G87: To_Old_01 | H87: ="C:\Essays\Geo_Dating\Neller\" & G87 & ".pdf" -> C:\Essays\Geo_Dating\Neller\To_Old_01.pdf | I87: T_1 | J87: AB_Index.xlsm | K87: =B87 & ", " & D87 & ", " & C87 & ", " & E87 -> Journal Of Petrology, 2007, 48, Pages 589-625 | L87: Lu/Hf | M87: 86 | N87: -320 | O87: 1730 | P87: =O87-N87 -> 2050 | Q87: =ABS(P87/N87) -> 6.40625
A88: In Situ Analysis of Sulphides | B88: Earth Planetary Science Letters | C88: 203 | D88: 2002 | E88: Pages 651-663 | F88: C:\Essays\Geo_Dating\Neller\ | G88: To_Old_03 | H88: C:\Essays\Geo_Dating\Neller\To_Old_03.pdf | I88: T_2 | J88: AB_Index.xlsm | K88: Earth Planetary Science Letters, 2002, 203, Pages 651-663 | L88: Re/Os | M88: 87 | N88: -32000 | O88: 34000 | P88: 66000 | Q88: 2.0625
A89: Rb-Sr And Sm-Nd Studies | B89: Chemical Geology | C89: 52 | D89: 1985 | E89: Pages 249-271 | F89: C:\Essays\Geo_Dating\Neller\ | G89: To_Old_06 | H89: ="C:\Essays\Geo_Dating\Neller\" & G89 & ".pdf" -> C:\Essays\Geo_Dating\Neller\To_Old_06.pdf | I89: T_3 | J89: AB_Index.xlsm | K89: =B89 & ", " & D89 & ", " & C89 & ", " & E89 -> Chemical Geology, 1985, 52, Pages 249-271 | L89: Rb/Sr | M89: 88 | N89: 267 | O89: 20000 | P89: =O89-N89 -> 19733 | Q89: =ABS(P89/N89) -> 73.90636704
A90: Norwegian Caledonides: An isotopic investigation | B90: Lithos | C90: 117 | D90: 2010 | E90: Pages 1-19 | F90: C:\Essays\Geo_Dating\Neller\ | G90: Future_Ages_01 | H90: C:\Essays\Geo_Dating\Neller\Future_Ages_01.pdf | I90: F01 | J90: AC_Index.xlsm | K90: Lithos, 2010, 117, Pages 1-19 | L90: Rb/Sr | M90: 89 | N90: -31071 | O90: 76523 | P90: 107594 | Q90: 3.462843166
A91: Multi-stage origin of Roberts Victor eclogites | B91: Lithos | C91: 142-143 | D91: 2012 | E91: Pages 161-181 | F91: C:\Essays\Geo_Dating\Neller\ | G91: Future_Ages_02 | H91: C:\Essays\Geo_Dating\Neller\Future_Ages_02.pdf | I91: F02 | J91: AC_Index.xlsm | K91: Lithos, 2012, 142-143, Pages 161-181 | L91: Rb/Sr | M91: 92 | N91: 32 | O91: 6874 | P91: 6842 | Q91: 213.8125
A92: Multi-stage origin of Roberts Victor eclogites | B92: Lithos | C92: 142-143 | D92: 2012 | E92: Pages 161-181 | F92: C:\Essays\Geo_Dating\Neller\ | G92: Future_Ages_02 | H92: ="C:\Essays\Geo_Dating\Neller\" & G92 & ".pdf" -> C:\Essays\Geo_Dating\Neller\Future_Ages_02.pdf | I92: F02 | J92: AC_Index.xlsm | K92: =B92 & ", " & D92 & ", " & C92 & ", " & E92 -> Lithos, 2012, 142-143, Pages 161-181 | L92: Lu/Hf | M92: 92 | N92: -12340 | O92: 19870 | P92: =O92-N92 -> 32210 | Q92: =ABS(P92/N92) -> 2.610210697
A93: Multi-stage origin of Roberts Victor eclogites | B93: Lithos | C93: 142-143 | D93: 2012 | E93: Pages 161-181 | F93: C:\Essays\Geo_Dating\Neller\ | G93: Future_Ages_02 | H93: C:\Essays\Geo_Dating\Neller\Future_Ages_02.pdf | I93: F02 | J93: AC_Index.xlsm | K93: Lithos, 2012, 142-143, Pages 161-181 | L93: Nd/Sm | M93: 92 | N93: -22420 | O93: 8100 | P93: 30520 | Q93: 1.361284567
A94: Re-Os systematics of mantle xenoliths | B94: Geochimica et Cosmochimica Acta | C94: 63 | D94: 1999 | E94: Pages 1203-1217 | F94: C:\Essays\Geo_Dating\Neller\ | G94: Future_Ages_03 | H94: C:\Essays\Geo_Dating\Neller\Future_Ages_03.pdf | I94: F03 | J94: AC_Index.xlsm | K94: Geochimica et Cosmochimica Acta, 1999, 63, Pages 1203-1217 | L94: Re/Os | M94: 93 | N94: -1 | O94: 4000 | P94: 4001 | Q94: 4001
A95: The Raobazhai peridotite massifs | B95: Chemical Geology | C95: 268 | D95: 2009 | E95: Pages 1-14 | F95: C:\Essays\Geo_Dating\Neller\ | G95: Future_Ages_04 | H95: C:\Essays\Geo_Dating\Neller\Future_Ages_04.pdf | I95: F04 | J95: AC_Index.xlsm | K95: Chemical Geology, 2009, 268, Pages 1-14 | L95: Re/Os | M95: 94 | N95: -27744 | O95: 3094 | P95: 30838 | Q95: 1.111519608
A96: In situ Re–Os evidence | B96: Journal of Asian Earth Sciences | C96: 62 | D96: 2013 | E96: Pages 37-50 | F96: C:\Essays\Geo_Dating\Neller\ | G96: Future_Ages_07 | H96: C:\Essays\Geo_Dating\Neller\Future_Ages_07.pdf | I96: F07 | J96: AC_Index.xlsm | K96: Journal of Asian Earth Sciences, 2013, 62, Pages 37-50 | L96: Re/Os | M96: 95 | N96: -79140 | O96: 144550 | P96: 223690 | Q96: 2.826509982
A97: Lu-Hf Geochronology | B97: Chemical Geology | C97: 142 | D97: 1997 | E97: Pages 63-78 | F97: ="C:\Essays\Geo_Dating\Neller\" -> C:\Essays\Geo_Dating\Neller\ | G97: Future_Ages_08 | H97: C:\Essays\Geo_Dating\Neller\Future_Ages_08.pdf | I97: F08 | J97: AC_Index.xlsm | K97: Chemical Geology, 1997, 142, Pages 63-78 | L97: Nd/Sm | M97: 96 | N97: -659 | O97: 1137 | P97: 1796 | Q97: 2.725341426
A98: Isotopic Disequilibrium | B98: Chemical Geology | C98: 162 | D98: 2000 | E98: Pages 169-191 | F98: C:\Essays\Geo_Dating\Neller\ | G98: Future_Ages_09 | H98: C:\Essays\Geo_Dating\Neller\Future_Ages_09.pdf | I98: F09 | J98: AC_Index.xlsm | K98: Chemical Geology, 2000, 162, Pages 169-191 | L98: Rb/Sr | M98: 97 | N98: -15 | O98: 201 | P98: 216 | Q98: 14.4
A99: Multiple Metasomatic Events | B99: Lithos | C99: 112-S | D99: 2009 | E99: Pages 896-912 | F99: C:\Essays\Geo_Dating\Neller\ | G99: Future_Ages_11 | H99: C:\Essays\Geo_Dating\Neller\Future_Ages_11.pdf | I99: F11 | J99: AC_Index.xlsm | K99: Lithos, 2009, 112-S, Pages 896-912 | L99: Nd/Sm | M99: 98 | N99: -2192 | O99: 2013 | P99: 4205 | Q99: 1.918339416
A100: Re–Os Evidence | B100: Chemical Geology | C100: 236 | D100: 2007 | E100: Pages 323-338 | F100: C:\Essays\Geo_Dating\Neller\ | G100: Future_Ages_12 | H100: C:\Essays\Geo_Dating\Neller\Future_Ages_12.pdf | I100: F12 | J100: AC_Index.xlsm | K100: Chemical Geology, 2007, 236, Pages 323-338 | L100: Re/Os | M100: 101 | N100: -3830 | O100: 10620 | P100: 14450 | Q100: 3.772845953
A101: Re–Os Evidence | B101: Chemical Geology | C101: 236 | D101: 2007 | E101: Pages 323-338 | F101: C:\Essays\Geo_Dating\Neller\ | G101: Future_Ages_12 | H101: ="C:\Essays\Geo_Dating\Neller\" & G101 & ".pdf" -> C:\Essays\Geo_Dating\Neller\Future_Ages_12.pdf | I101: F12 | J101: AC_Index.xlsm | K101: =B101 & ", " & D101 & ", " & C101 & ", " & E101 -> Chemical Geology, 2007, 236, Pages 323-338 | L101: Lu/Hf | M101: 101 | N101: -30 | O101: 14650 | P101: =O101-N101 -> 14680 | Q101: =ABS(P101/N101) -> 489.3333333
A102: Re–Os Evidence | B102: Chemical Geology | C102: 236 | D102: 2007 | E102: Pages 323-338 | F102: C:\Essays\Geo_Dating\Neller\ | G102: Future_Ages_12 | H102: C:\Essays\Geo_Dating\Neller\Future_Ages_12.pdf | I102: F12 | J102: AC_Index.xlsm | K102: Chemical Geology, 2007, 236, Pages 323-338 | L102: Nd/Sm | M102: 101 | N102: 820 | O102: 5910 | P102: 5090 | Q102: 6.207317073
A103: Central Asian Orogenic Belt | B103: Lithos | C103: 126 | D103: 2011 | E103: Pages 233-247 | F103: C:\Essays\Geo_Dating\Neller\ | G103: Future_Ages_13 | H103: C:\Essays\Geo_Dating\Neller\Future_Ages_13.pdf | I103: F13 | J103: AC_Index.xlsm | K103: Lithos, 2011, 126, Pages 233-247 | L103: Nd/Sm | M103: 104 | N103: 490 | O103: 5910 | P103: 5420 | Q103: 11.06122449
A104: Central Asian Orogenic Belt | B104: Lithos | C104: 126 | D104: 2011 | E104: Pages 233-247 | F104: C:\Essays\Geo_Dating\Neller\ | G104: Future_Ages_13 | H104: ="C:\Essays\Geo_Dating\Neller\" & G104 & ".pdf" -> C:\Essays\Geo_Dating\Neller\Future_Ages_13.pdf | I104: F13 | J104: AC_Index.xlsm | K104: =B104 & ", " & D104 & ", " & C104 & ", " & E104 -> Lithos, 2011, 126, Pages 233-247 | L104: Lu/Hf | M104: 104 | N104: -9270 | O104: 14650 | P104: 23920 | Q104: 2.580366775
A105: Central Asian Orogenic Belt | B105: Lithos | C105: 126 | D105: 2011 | E105: Pages 233-247 | F105: C:\Essays\Geo_Dating\Neller\ | G105: Future_Ages_13 | H105: C:\Essays\Geo_Dating\Neller\Future_Ages_13.pdf | I105: F13 | J105: AC_Index.xlsm | K105: Lithos, 2011, 126, Pages 233-247 | L105: Re/Os | M105: 104 | N105: -3830 | O105: 10620 | P105: 14450 | Q105: 3.772845953
A106: The Mamonia complex, Cyprus | B106: Chemical Geology | C106: 248 | D106: 2008 | E106: Pages 195-212 | F106: C:\Essays\Geo_Dating\Neller\ | G106: Future_Ages_14 | H106: C:\Essays\Geo_Dating\Neller\Future_Ages_14.pdf | I106: F14 | J106: AC_Index.xlsm | K106: Chemical Geology, 2008, 248, Pages 195-212 | L106: Re/Os | M106: 105 | N106: -1 | O106: 1550 | P106: 1551 | Q106: 1551
A107: A Paleozoic Convergent Plate | B107: Chemical Geology | C107: 208 | D107: 2004 | E107: Pages 141-156 | F107: C:\Essays\Geo_Dating\Neller\ | G107: Future_Ages_16 | H107: C:\Essays\Geo_Dating\Neller\Future_Ages_16.pdf | I107: F16 | J107: AC_Index.xlsm | K107: Chemical Geology, 2004, 208, Pages 141-156 | L107: Re/Os | M107: 106 | N107: -4300 | O107: 9100 | P107: 13400 | Q107: 3.11627907
A108: Northern Canadian Cordillera Xenoliths | B108: Geochimica et Cosmochimica Acta | C108: 64 | D108: 2000 | E108: Pages 3061-3071 | F108: C:\Essays\Geo_Dating\Neller\ | G108: Future_Ages_17 | H108: C:\Essays\Geo_Dating\Neller\Future_Ages_17.pdf | I108: F17 | J108: AC_Index.xlsm | K108: Geochimica et Cosmochimica Acta, 2000, 64, Pages 3061-3071 | L108: Re/Os | M108: 107 | N108: -1 | O108: 4500 | P108: 4501 | Q108: 4501
A109: Xenoliths from Yangyuan and Fansi | B109: Lithos | C109: 102 | D109: 2008 | E109: Pages 25-42 | F109: C:\Essays\Geo_Dating\Neller\ | G109: Future_Ages_19 | H109: C:\Essays\Geo_Dating\Neller\Future_Ages_19.pdf | I109: F19 | J109: AC_Index.xlsm | K109: Lithos, 2008, 102, Pages 25-42 | L109: Re/Os | M109: 108 | N109: -10800 | O109: 9700 | P109: 20500 | Q109: 1.898148148
A110: Formation of the North Atlantic Craton | B110: Chemical Geology | C110: 276 | D110: 2010 | E110: Pages 166-187 | F110: C:\Essays\Geo_Dating\Neller\ | G110: Future_Ages_21 | H110: C:\Essays\Geo_Dating\Neller\Future_Ages_21.pdf | I110: F21 | J110: AC_Index.xlsm | K110: Chemical Geology, 2010, 276, Pages 166-187 | L110: Re/Os | M110: 109 | N110: -14258 | O110: 6994 | P110: 21252 | Q110: 1.490531631
A111: In situ Measurement of Re-Os Isotopes | B111: Geochimica et Cosmochimica Acta | C111: 66 | D111: 2002 | E111: Pages 1037-1050 | F111: C:\Essays\Geo_Dating\Neller\ | G111: Future_Ages_26 | H111: C:\Essays\Geo_Dating\Neller\Future_Ages_26.pdf | I111: F26 | J111: AC_Index.xlsm | K111: Geochimica et Cosmochimica Acta, 2002, 66, Pages 1037-1050 | L111: Re/Os | M111: 110 | N111: -7120 | O111: 7690 | P111: 14810 | Q111: 2.08005618
A112: Re–Os isotope constraints | B112: Earth and Planetary Science Letters | C112: 268 | D112: 2008 | E112: Pages 89-101 | F112: C:\Essays\Geo_Dating\Neller\ | G112: EPSL_268.89 | H112: C:\Essays\Geo_Dating\Neller\EPSL_268.89.pdf | I112: F01 | J112: AD_Index.xlsm | K112: Earth and Planetary Science Letters, 2008, 268, Pages 89-101 | L112: Re/Os | M112: 111 | N112: 30 | O112: 52250 | P112: =O112-N112 -> 52220 | Q112: =ABS(P112/N112) -> 1740.666667
A113: Highly siderophile element fractionations | B113: Earth and Planetary Science Letters | C113: 297 | D113: 2010 | E113: Pages 287–297 | F113: C:\Essays\Geo_Dating\Neller\ | G113: EPSL_297.287 | H113: C:\Essays\Geo_Dating\Neller\EPSL_297.287.pdf | I113: F02 | J113: AD_Index.xlsm | K113: Earth and Planetary Science Letters, 2010, 297, Pages 287–297 | L113: Re/Os | M113: 112 | N113: -8600 | O113: 40000 | P113: 48600 | Q113: 5.651162791
A114: Archean mantle residues | B114: Earth and Planetary Science Letters | C114: 424 | D114: 2015 | E114: Pages 109-118 | F114: C:\Essays\Geo_Dating\Neller\ | G114: EPSL_424.109 | H114: C:\Essays\Geo_Dating\Neller\EPSL_424.109.pdf | I114: F03 | J114: AD_Index.xlsm | K114: Earth and Planetary Science Letters, 2015, 424, Pages 109-118 | L114: Re/Os | M114: 113 | N114: -11800 | O114: 27500 | P114: 39300 | Q114: 3.330508475
A115: Xenoliths from the Obnazhennaya kimberlite | B115: Earth and Planetary Science Letters | C115: 428 | D115: 2015 | E115: Pages 108-119 | F115: C:\Essays\Geo_Dating\Neller\ | G115: EPSL_428.108 | H115: C:\Essays\Geo_Dating\Neller\EPSL_428.108.pdf | I115: F04 | J115: AD_Index.xlsm | K115: Earth and Planetary Science Letters, 2015, 428, Pages 108-119 | L115: Re/Os | M115: 114 | N115: -4040 | O115: 8520 | P115: 12560 | Q115: 3.108910891
A116: Osmium mass balance in peridotite | B116: Geochimica et Cosmochimica Acta | C116: 75 | D116: 2011 | E116: Pages 5574-5596 | F116: C:\Essays\Geo_Dating\Neller\ | G116: GCA_075.5574 | H116: C:\Essays\Geo_Dating\Neller\GCA_075.5574.pdf | I116: F05 | J116: AD_Index.xlsm | K116: Geochimica et Cosmochimica Acta, 2011, 75, Pages 5574-5596 | L116: Re/Os | M116: 115 | N116: -1 | O116: 1640 | P116: 1641 | Q116: 1641
A117: Mantle keel beneath West Greenland | B117: Geochimica et Cosmochimica Acta | C117: 203 | D117: 2017 | E117: Pages 37-53 | F117: C:\Essays\Geo_Dating\Neller\ | G117: GCA_203.37 | H117: C:\Essays\Geo_Dating\Neller\GCA_203.37.pdf | I117: F06 | J117: AD_Index.xlsm | K117: Geochimica et Cosmochimica Acta, 2017, 203, Pages 37-53 | L117: Re/Os | M117: 116 | N117: -11275 | O117: 3426 | P117: 14701 | Q117: 1.303858093
N118: Min Age (Ma) | O118: Max Age (Ma) | P118: Difference (Ma) | Q118: Age Ratio
